Body name,Service Area,Dept,Expenses Type,Detailed Expenses Type,Transaction number,Expense Code,Date,Amount,Capital/Revenue,Supplier Name,Supplier ID
WANDSWORTH COUNCIL,CS,ADMINISTRATION,OTH LA,CONTRIBUTION - WESTMINSTER,20279855,100044500,25-Apr-14,"77,100.00",Revenue,CITY OF WESTMINSTER,2002005
WANDSWORTH COUNCIL,CS,ADMINISTRATION,DIRECT2,AGENCY STAFF,20278679,100300510,15-Apr-14,592.38,Revenue,MATRIX SCM LIMITED,2014926
WANDSWORTH COUNCIL,CS,ADMINISTRATION,DIRECT2,AGENCY STAFF,20279061,100300510,17-Apr-14,596.52,Revenue,MATRIX SCM LIMITED,2014926
WANDSWORTH COUNCIL,CS,ADMINISTRATION,DIRECT2,AGENCY STAFF,20279271,100300510,23-Apr-14,596.52,Revenue,MATRIX SCM LIMITED,2014926
WANDSWORTH COUNCIL,CS,ADMINISTRATION,PRINTING STAT & GEN OFFICE EXP,PRINTING AND STATIONERY,20278965,100333420,16-Apr-14,"1,089.40",Revenue,PLASTEK MAILING SERVICES LTD,2018800
WANDSWORTH COUNCIL,CS,ENVIRONMENT & COMMUNITY,COMMUNICATIONS & COMP,I.T. SOFTWARE,382734,100336240,17-Apr-14,"4,373.84",Revenue,NORTHGATE INFORMATION SOLUTIONS UK LTD,SP0000812
WANDSWORTH COUNCIL,CS,ENVIRONMENT & COMMUNITY,COMMUNICATIONS & COMP,I.T. SOFTWARE,382759,100336240,17-Apr-14,"1,226.50",Revenue,NORTHGATE INFORMATION SOLUTIONS UK LTD,SP0000812
WANDSWORTH COUNCIL,CS,ADMINISTRATION,"REPAIRS, ALTERATIONS & MTCE","REPS, ALTS & MTCE-BUILDINGS",20279381,100410000,23-Apr-14,880.00,Revenue,MR SERVICES,2001591
WANDSWORTH COUNCIL,CS,ADMINISTRATION,"REPAIRS, ALTERATIONS & MTCE","REPS, ALTS & MTCE-BUILDINGS",20279382,100410000,23-Apr-14,810.00,Revenue,MR SERVICES,2001591
WANDSWORTH COUNCIL,CS,ADMINISTRATION,SERVICES,CONSULTANTS FEES,20277824,100534200,07-Apr-14,"5,280.00",Revenue,Alan Baxter & Associates LLP,2991000
WANDSWORTH COUNCIL,CS,ADMINISTRATION,SERVICES,CONSULTANTS FEES,20277825,100534200,07-Apr-14,"2,542.50",Revenue,Alan Baxter & Associates LLP,2991000
WANDSWORTH COUNCIL,CS,ADMINISTRATION,SERVICES,CONSULTANTS FEES,20279377,100534200,23-Apr-14,"46,000.00",Revenue,FeildenCleggBradleyStudios,2991000
WANDSWORTH COUNCIL,CS,ADMINISTRATION,SERVICES,CONSULTANTS FEES,20279379,100534200,23-Apr-14,750.00,Revenue,GEP Safety Consultants Ltd,2991000
WANDSWORTH COUNCIL,CS,ADMINISTRATION,SERVICES,CONSULTANTS FEES,20279354,100534200,23-Apr-14,800.00,Revenue,J S LEWIS,2014245
WANDSWORTH COUNCIL,CS,ADMINISTRATION,SERVICES,CONSULTANTS FEES,20279378,100534200,23-Apr-14,"5,500.00",Revenue,MLM Consulting Engineers Ltd,2991000
WANDSWORTH COUNCIL,CS,ADMINISTRATION,SERVICES,CONSULTANTS FEES,20279376,100534200,23-Apr-14,580.00,Revenue,Randall Surveys LLP,2991000
WANDSWORTH COUNCIL,CS,ADMINISTRATION,PRIVATE,GENERAL CONTRACT WORK,20279619,100645370,25-Apr-14,321.74,Revenue,BT PAYMENT SERVICES LTD,2009138
WANDSWORTH COUNCIL,CS,ADMINISTRATION,SERVICES,PROJECT WORK,20277961,102034800,08-Apr-14,"35,740.60",Revenue,WANDSWORTH CARE ALLIANCE,2006618
WANDSWORTH COUNCIL,ERS,ADMINISTRATION,SERVICES,PROJECT WORK,20278999,102234800,17-Apr-14,"3,500.00",Revenue,ONE VOICE,2018763
WANDSWORTH COUNCIL,CS,ADMINISTRATION,DIRECT2,AGENCY STAFF,20278679,103000510,15-Apr-14,485.63,Revenue,MATRIX SCM LIMITED,2014926
WANDSWORTH COUNCIL,CS,ADMINISTRATION,DIRECT2,AGENCY STAFF,20279061,103000510,17-Apr-14,387.83,Revenue,MATRIX SCM LIMITED,2014926
WANDSWORTH COUNCIL,CS,ADMINISTRATION,DIRECT2,AGENCY STAFF,20279271,103000510,23-Apr-14,873.46,Revenue,MATRIX SCM LIMITED,2014926
WANDSWORTH COUNCIL,CS,ENVIRONMENT & COMMUNITY,PRINTING STAT & GEN OFFICE EXP,PRINTING AND STATIONERY,381517,103033420,03-Apr-14,138.00,Revenue,OFFICE DEPOT UK LTD,SP0000092
WANDSWORTH COUNCIL,CS,ENVIRONMENT & COMMUNITY,PRINTING STAT & GEN OFFICE EXP,PRINTING AND STATIONERY,381517,103033420,03-Apr-14,45.27,Revenue,OFFICE DEPOT UK LTD,SP0000092
WANDSWORTH COUNCIL,CS,ENVIRONMENT & COMMUNITY,PRINTING STAT & GEN OFFICE EXP,PRINTING AND STATIONERY,381517,103033420,03-Apr-14,500.00,Revenue,OFFICE DEPOT UK LTD,SP0000092
WANDSWORTH COUNCIL,CS,ADMINISTRATION,COMMUNICATIONS & COMP,I.T. EQUIPMENT & MAINTENANCE,20279001,103036210,17-Apr-14,"10,378.24",Revenue,NEOPOST LTD,2007384
WANDSWORTH COUNCIL,CS,ADMINISTRATION,COMMUNICATIONS & COMP,XPRESS COMPUTER,20277932,103036570,08-Apr-14,"24,850.91",Revenue,XPRESS SOFTWARE SOLUTIONS LTD,2007991
WANDSWORTH COUNCIL,CS,ADMINISTRATION,"EQUIPMENT, FURNITURE & MATS",FLOWERS,20279689,103130170,25-Apr-14,541.00,Revenue,PATRICIA WONG,2001370
WANDSWORTH COUNCIL,CS,ADMINISTRATION,CUSTOMER & CLIENT RECPTS - EXT,CITIZENSHIP CEREMONIES,20277999,103180620,11-Apr-14,"1,976.00",Revenue,BLINKY MEDIA LTD,2017275
WANDSWORTH COUNCIL,CDC,ADMINISTRATION,GRANTS & SUBSCRIPTIONS,SUBSCRIPTIONS - LGA,20279165,103337650,17-Apr-14,"-7,965.00",Revenue,LOCAL GOVERNMENT ASSOCIATION,2006262
WANDSWORTH COUNCIL,CDC,ADMINISTRATION,GRANTS & SUBSCRIPTIONS,SUBSCRIPTIONS - LGA,20279165,103337650,17-Apr-14,"58,616.05",Revenue,LOCAL GOVERNMENT ASSOCIATION,2006262
WANDSWORTH COUNCIL,CS,ADMINISTRATION,INDIRECT,IN-SERVICE TRAINING-SLA,20278968,10340074L00381,16-Apr-14,930.00,Revenue,URBAN C AND A,2018805
WANDSWORTH COUNCIL,ASC,ADMINISTRATION,HEALTH,THIRD PARTY PYMT - HEALTH,20278741,105141130,15-Apr-14,"4,000.00",Revenue,HIGHTREES CONNUNITY DEVELOPMENT TRUST,2018756
WANDSWORTH COUNCIL,ASC,ADMINISTRATION,HEALTH,CHLAMYDIA SCREENING,20279106,105141760,17-Apr-14,"2,002.50",Revenue,PREVENTX LTD,2016936
WANDSWORTH COUNCIL,ASC,ADMINISTRATION,HEALTH,CONDOM DISTRIBUTION,20279062,105241720,17-Apr-14,488.00,Revenue,PASSANTE HEALTHCARE LTD,2016795
WANDSWORTH COUNCIL,ASC,ADMINISTRATION,HEALTH,THIRD PARTY PAYMENTS- TRAINING,20279058,105340530,17-Apr-14,"1,500.00",Revenue,SMART HEALTH SOLUTIONS,2018751
WANDSWORTH COUNCIL,ASC,ADMINISTRATION,DIRECT2,AGENCY STAFF,20279271,105800510,23-Apr-14,675.86,Revenue,MATRIX SCM LIMITED,2014926
WANDSWORTH COUNCIL,ASC,SOCIAL SERVICES,DIRECT2,AGENCY STAFF,20278844,106000510,15-Apr-14,991.97,Revenue,MATRIX SCM LIMITED,2014926
WANDSWORTH COUNCIL,ASC,ADMINISTRATION,"EQUIPMENT, FURNITURE & MATS",TOILET AND MEDICAL SUPPLIES,20279053,106030460,17-Apr-14,737.75,Revenue,FRONTIER MEDICAL GROUP,2017365
WANDSWORTH COUNCIL,ASC,ADMINISTRATION,HEALTH,PRESCRIBING SERVICES,20278737,106040550,15-Apr-14,"70,149.99",Revenue,NHS WANDSWORTH CCG,2018126
WANDSWORTH COUNCIL,ASC,ADMINISTRATION,HEALTH,TIER 2&3 COMMUNITY SERVICES,20279046,106041250,17-Apr-14,"3,390.00",Revenue,BLENHEIM CDP,2006252
WANDSWORTH COUNCIL,ASC,ADMINISTRATION,HEALTH,TIER 2&3 COMMUNITY SERVICES,20280086,106041250,28-Apr-14,"1,600.00",Revenue,GENERATE,2003238
WANDSWORTH COUNCIL,ASC,ADMINISTRATION,HEALTH,TIER 2&3 COMMUNITY SERVICES,20279052,106041250,17-Apr-14,"253,661.66",Revenue,KCA,2017193
WANDSWORTH COUNCIL,ASC,ADMINISTRATION,HEALTH,TIER 4 INPATIENT DETOX,20280085,106041270,28-Apr-14,"22,322.00",Revenue,EQUINOX,2007457
WANDSWORTH COUNCIL,ASC,ADMINISTRATION,HEALTH,FLOATING SUPPORT & OUTREACH,20279044,106041420,17-Apr-14,"15,645.80",Revenue,EQUINOX,2007457
WANDSWORTH COUNCIL,ASC,ADMINISTRATION,HEALTH,USER INVOLVEMENT,20279049,106041470,17-Apr-14,683.82,Revenue,WANDSWORTH CARE ALLIANCE,2006618
WANDSWORTH COUNCIL,ASC,ADMINISTRATION,HEALTH,NEXT PROJECT,20279045,106041480,17-Apr-14,"8,000.00",Revenue,ADDACTION,2017437
WANDSWORTH COUNCIL,ASC,ADMINISTRATION,HEALTH,GP CHLAMYDIA SCREENING LES,20279043,106041540,17-Apr-14,"10,750.00",Revenue,EQUINOX,2007457
WANDSWORTH COUNCIL,ASC,ADMINISTRATION,HEALTH,PRIM CARE ALCHL CLINICS PILOTS,20279042,106141750,17-Apr-14,"15,031.00",Revenue,CHATFIELD HEALTH CARE,2006295
WANDSWORTH COUNCIL,ASC,ADMINISTRATION,DIRECT2,AGENCY STAFF,20279054,106200510,17-Apr-14,"4,119.41",Revenue,SOUTH WEST LONDON & ST GEORGES MENTAL HEALTH NHS,2002084
WANDSWORTH COUNCIL,ASC,ADMINISTRATION,HEALTH,PHARMACY LES,20277957,106341410,11-Apr-14,536.56,Revenue,NSK LTD,2001684
WANDSWORTH COUNCIL,ASC,ADMINISTRATION,HEALTH,PHARMACY LES,20277957,106341410,11-Apr-14,50.00,Revenue,NSK LTD,2001684
WANDSWORTH COUNCIL,ASC,ADMINISTRATION,HEALTH,PHARMACY LES,20277934,106341410,11-Apr-14,778.33,Revenue,PEARL CHEMIST LTD,2015428
WANDSWORTH COUNCIL,ASC,ADMINISTRATION,HEALTH,PHARMACY LES,20277934,106341410,11-Apr-14,60.00,Revenue,PEARL CHEMIST LTD,2015428
WANDSWORTH COUNCIL,ASC,ADMINISTRATION,SERVICES,PROJECT WORK,20278731,106434800,15-Apr-14,885.00,Revenue,ULTIMATE PROMOTION COMPANT LTD,2012667
WANDSWORTH COUNCIL,ASC,ADMINISTRATION,SERVICES,PROJECT WORK,20279814,107034800,25-Apr-14,"1,400.00",Revenue,DISCHROMATICS LTD,2018779
WANDSWORTH COUNCIL,ASC,ADMINISTRATION,SERVICES,PROJECT WORK,20279815,107034800,25-Apr-14,605.00,Revenue,DISCHROMATICS LTD,2018779
WANDSWORTH COUNCIL,ASC,ADMINISTRATION,HEALTH,MACMILLAN GP FACILITATOR,20279059,107141260,17-Apr-14,"1,000.00",Revenue,DR ANTHONY CUNLIFFE,2017228
WANDSWORTH COUNCIL,ASC,ADMINISTRATION,COMMUNICATIONS & COMP,I.T. EQUIPMENT & MAINTENANCE,20279516,107636210,25-Apr-14,"1,500.00",Revenue,WANDSWORTH SAFER AND ACCESSIBLE HOMES TEAM CIC LTD,2018817
WANDSWORTH COUNCIL,ASC,ADMINISTRATION,SERVICES,PROJECT WORK,20278739,108034800,15-Apr-14,"6,000.00",Revenue,HIGHTREES CONNUNITY DEVELOPMENT TRUST,2018756
WANDSWORTH COUNCIL,ASC,ADMINISTRATION,SERVICES,PROJECT WORK,20278740,108034800,15-Apr-14,"4,000.00",Revenue,HIGHTREES CONNUNITY DEVELOPMENT TRUST,2018756
WANDSWORTH COUNCIL,ASC,ADMINISTRATION,SERVICES,PROJECT WORK,20278732,108034800,15-Apr-14,"3,063.00",Revenue,PLUNKETT FOUNDATION,2018131
WANDSWORTH COUNCIL,NGF HS,ADMINISTRATION,DIRECT2,AGENCY STAFF,20278679,110000510,15-Apr-14,283.39,Revenue,MATRIX SCM LIMITED,2014926
WANDSWORTH COUNCIL,NGF HS,ADMINISTRATION,SERVICES,HIPS,20276851,110034460,04-Apr-14,420.00,Revenue,GORDON BROWN,2001802
WANDSWORTH COUNCIL,NGF HS,ADMINISTRATION,SERVICES,HIPS,20277858,110034460,08-Apr-14,540.00,Revenue,GORDON BROWN,2001802
WANDSWORTH COUNCIL,NGF HS,ENVIRONMENT & COMMUNITY,COMMUNICATIONS & COMP,I.T. - SAFFRON,390463,110036260,17-Apr-14,"2,520.15",Revenue,CIVICA UK LTD,SP0000394
WANDSWORTH COUNCIL,NGF CS,ADMINISTRATION,PRIVATE,GENERAL CONTRACT WORK,20279404,111045370,23-Apr-14,"1,125.43",Revenue,SITA UK LTD,2003271
WANDSWORTH COUNCIL,NGF CS,ADMINISTRATION,PRIVATE,GENERAL CONTRACT WORK,20279405,111045370,23-Apr-14,422.37,Revenue,SITA UK LTD,2003271
WANDSWORTH COUNCIL,NGF CS,ADMINISTRATION,GROUNDS MAINTENANCE,CONSULTANTS FEE-LA TREE SURVEY,20279400,111512160,23-Apr-14,583.52,Revenue,SITA UK LTD,2003271
WANDSWORTH COUNCIL,NGF CS,ADMINISTRATION,GROUNDS MAINTENANCE,CONSULTANTS FEE-LA TREE SURVEY,20279401,112012160,23-Apr-14,150.57,Revenue,SITA UK LTD,2003271
WANDSWORTH COUNCIL,NGF CS,ADMINISTRATION,GROUNDS MAINTENANCE,CONSULTANTS FEE-LA TREE SURVEY,20279401,112112160,23-Apr-14,150.57,Revenue,SITA UK LTD,2003271
WANDSWORTH COUNCIL,NGF CS,ADMINISTRATION,GROUNDS MAINTENANCE,CONSULTANTS FEE-LA TREE SURVEY,20279401,112212160,23-Apr-14,150.57,Revenue,SITA UK LTD,2003271
WANDSWORTH COUNCIL,NGF CS,ADMINISTRATION,GROUNDS MAINTENANCE,CONSULTANTS FEE-LA TREE SURVEY,20279401,112312160,23-Apr-14,150.56,Revenue,SITA UK LTD,2003271
WANDSWORTH COUNCIL,NGF CS,ADMINISTRATION,GROUNDS MAINTENANCE,CONSULTANTS FEE-LA TREE SURVEY,20279403,112912160,23-Apr-14,602.27,Revenue,SITA UK LTD,2003271
WANDSWORTH COUNCIL,NGF CS,ADMINISTRATION,CLEANING & DOMESTIC SUPPLIES,CLEANING CONTRACT,20277982,113813020,11-Apr-14,"46,134.85",Revenue,OCEAN INTEGRATED SERVICES LTD,2009026
WANDSWORTH COUNCIL,NGF CS,ADMINISTRATION,"EQUIPMENT, FURNITURE & MATS","EQUIPMENT, FURNITURE & MATS",20279344,114030000,23-Apr-14,904.76,Revenue,ELECTROLOK COMPANY (SECURITY) LTD,2008283
WANDSWORTH COUNCIL,NGF CDC,ADMINISTRATION,"REPAIRS, ALTERATIONS & MTCE",REMOVALS & REORGANISATIONS,20277979,114210140,11-Apr-14,"2,940.00",Revenue,PLASTOR LTD,2004267
WANDSWORTH COUNCIL,NGF CDC,ADMINISTRATION,"REPAIRS, ALTERATIONS & MTCE",REMOVALS & REORGANISATIONS,20279395,11421014K07187,23-Apr-14,"2,107.68",Revenue,OFFICE DEPOT UK LTD,2000101
WANDSWORTH COUNCIL,NGF CDC,ADMINISTRATION,"REPAIRS, ALTERATIONS & MTCE",REMOVALS & REORGANISATIONS,20277990,11421014K07277,11-Apr-14,"2,915.66",Revenue,WAGSTAFF INTERIORS GROUP,2004128
WANDSWORTH COUNCIL,NGF CDC,ADMINISTRATION,"REPAIRS, ALTERATIONS & MTCE",REMOVALS & REORGANISATIONS,20277981,11421014K07287,11-Apr-14,"1,317.30",Revenue,OFFICE DEPOT UK LTD,2000101
WANDSWORTH COUNCIL,NGF CDC,ADMINISTRATION,"REPAIRS, ALTERATIONS & MTCE",REMOVALS & REORGANISATIONS,20277984,11421014K07287,11-Apr-14,918.50,Revenue,OFFICE DEPOT UK LTD,2000101
WANDSWORTH COUNCIL,NGF CDC,ADMINISTRATION,"REPAIRS, ALTERATIONS & MTCE",REMOVALS & REORGANISATIONS,20277985,11421014K07287,11-Apr-14,538.41,Revenue,OFFICE DEPOT UK LTD,2000101
WANDSWORTH COUNCIL,NGF CDC,ENVIRONMENT & COMMUNITY,PRIVATE,GENERAL CONTRACT WORK,387270,11424537K07191,11-Apr-14,"97,962.55",Revenue,D H CROFTS LTD,SP0000076
WANDSWORTH COUNCIL,NGF CS,ADMINISTRATION,DIRECT2,AGENCY STAFF,20278679,120100510,15-Apr-14,739.30,Revenue,MATRIX SCM LIMITED,2014926
WANDSWORTH COUNCIL,NGF CS,ADMINISTRATION,DIRECT2,AGENCY STAFF,20279061,120100510,17-Apr-14,597.60,Revenue,MATRIX SCM LIMITED,2014926
WANDSWORTH COUNCIL,NGF CS,ADMINISTRATION,DIRECT2,AGENCY STAFF,20279061,120100510,17-Apr-14,980.99,Revenue,MATRIX SCM LIMITED,2014926
WANDSWORTH COUNCIL,NGF CS,ADMINISTRATION,DIRECT2,AGENCY STAFF,20279061,120100510,17-Apr-14,941.75,Revenue,MATRIX SCM LIMITED,2014926
WANDSWORTH COUNCIL,NGF CS,ADMINISTRATION,DIRECT2,AGENCY STAFF,20279271,120100510,23-Apr-14,"1,559.65",Revenue,MATRIX SCM LIMITED,2014926
WANDSWORTH COUNCIL,NGF CS,ADMINISTRATION,GRANTS & SUBSCRIPTIONS,SUBSCRIPTIONS,20277967,120137640,08-Apr-14,684.38,Revenue,LEXIS NEXIS BUTTERWORTHS,2003609
WANDSWORTH COUNCIL,NGF CS,ADMINISTRATION,GRANTS & SUBSCRIPTIONS,SUBSCRIPTIONS,20277967,120137640,08-Apr-14,"28,744.62",Revenue,LEXIS NEXIS BUTTERWORTHS,2003609
WANDSWORTH COUNCIL,NGF CS,ADMINISTRATION,DIRECT2,AGENCY STAFF,20278679,120400510,15-Apr-14,229.14,Revenue,MATRIX SCM LIMITED,2014926
WANDSWORTH COUNCIL,NGF CS,ADMINISTRATION,DIRECT2,AGENCY STAFF,20279061,120400510,17-Apr-14,215.87,Revenue,MATRIX SCM LIMITED,2014926
WANDSWORTH COUNCIL,NGF CS,ADMINISTRATION,DIRECT2,AGENCY STAFF,20279061,120400510,17-Apr-14,230.79,Revenue,MATRIX SCM LIMITED,2014926
WANDSWORTH COUNCIL,NGF CS,ADMINISTRATION,DIRECT2,AGENCY STAFF,20279061,120400510,17-Apr-14,414.21,Revenue,MATRIX SCM LIMITED,2014926
WANDSWORTH COUNCIL,NGF CS,ADMINISTRATION,DIRECT2,AGENCY STAFF,20279271,120400510,23-Apr-14,404.07,Revenue,MATRIX SCM LIMITED,2014926
WANDSWORTH COUNCIL,NGF CS,ENVIRONMENT & COMMUNITY,PRIVATE,GENERAL CONTRACT WORK,393830,120445370,25-Apr-14,761.00,Revenue,RIBA ENTERPRISES,SP0003005
WANDSWORTH COUNCIL,NGF CS,FINANCE,DIRECT2,AGENCY STAFF,20278156,120500510,16-Apr-14,539.75,Revenue,MATRIX SCM LIMITED,2014926
WANDSWORTH COUNCIL,NGF CS,ADMINISTRATION,DIRECT2,AGENCY STAFF,20278679,120500510,15-Apr-14,"2,546.36",Revenue,MATRIX SCM LIMITED,2014926
WANDSWORTH COUNCIL,NGF CS,ENVIRONMENT & COMMUNITY,OTHER AGENCIES,DISBURSEMENTS,393832,120643250,25-Apr-14,"2,104.50",Revenue,SHARPE PRITCHARD LLP,SP0003677
WANDSWORTH COUNCIL,NGF CS,ENVIRONMENT & COMMUNITY,OTHER AGENCIES,DISBURSEMENTS,393832,120643250,25-Apr-14,"10,961.70",Revenue,SHARPE PRITCHARD LLP,SP0003677
WANDSWORTH COUNCIL,NGF CS,ADMINISTRATION,OTHER AGENCIES,DISBURSEMENTS,20279597,120643250,23-Apr-14,"1,960.00",Revenue,SHARPE PRITCHARD LLP (CLIENT A/C),2014158
WANDSWORTH COUNCIL,NGF CS,ADMINISTRATION,PRIVATE,CONTRACT 7 - VNEB LEGAL,20280091,120645540,28-Apr-14,"4,224.65",Revenue,WINCKWORTH SHERWOOD LLP,2009504
WANDSWORTH COUNCIL,NGF CS,ADMINISTRATION,PRIVATE,CONTRACT 7 - VNEB LEGAL,20280091,120645540,28-Apr-14,"-4,224.65",Revenue,WINCKWORTH SHERWOOD LLP,2009504
WANDSWORTH COUNCIL,NGF CS,ENVIRONMENT & COMMUNITY,PRIVATE,CONTRACT 4- LITIGATION,393833,120646160,25-Apr-14,"29,818.29",Revenue,SHARPE PRITCHARD LLP,SP0003677
WANDSWORTH COUNCIL,NGF CS,ADMINISTRATION,PRIVATE,"CONTRACT 6- HWYS, PLAN ETC",20278722,120646170,17-Apr-14,560.00,Revenue,A S B LAW,2008363
WANDSWORTH COUNCIL,NGF CS,ENVIRONMENT & COMMUNITY,PRIVATE,"CONTRACT 6- HWYS, PLAN ETC",381860,120646170,04-Apr-14,"2,250.00",Revenue,SHARPE PRITCHARD LLP,SP0003677
WANDSWORTH COUNCIL,NGF CS,ENVIRONMENT & COMMUNITY,PRIVATE,"CONTRACT 6- HWYS, PLAN ETC",393834,120646170,25-Apr-14,"29,628.53",Revenue,SHARPE PRITCHARD LLP,SP0003677
WANDSWORTH COUNCIL,NGF CS,FINANCE,DIRECT2,AGENCY STAFF,20278156,120800510,16-Apr-14,231.71,Revenue,MATRIX SCM LIMITED,2014926
WANDSWORTH COUNCIL,NGF CS,ADMINISTRATION,DIRECT2,AGENCY STAFF,20278679,120800510,15-Apr-14,"1,022.26",Revenue,MATRIX SCM LIMITED,2014926
WANDSWORTH COUNCIL,NGF CS,ADMINISTRATION,PRINTING STAT & GEN OFFICE EXP,OUTWORK - LITHO,20278323,121333590,14-Apr-14,547.62,Revenue,DELTOR COMMUNICATIONS LTD,2017410
WANDSWORTH COUNCIL,NGF CS,ADMINISTRATION,PRINTING STAT & GEN OFFICE EXP,OUTWORK - LITHO,20278310,121333590,14-Apr-14,438.56,Revenue,FINANCIAL DATA MANAGEMENT LTD,2003241
WANDSWORTH COUNCIL,NGF CS,ADMINISTRATION,PRINTING STAT & GEN OFFICE EXP,OUTWORK - LITHO,20278306,121333590,14-Apr-14,589.00,Revenue,HALSTAN & CO LTD,2000084
WANDSWORTH COUNCIL,NGF CS,ADMINISTRATION,PRINTING STAT & GEN OFFICE EXP,OUTWORK - LITHO,20278296,121333590,14-Apr-14,506.00,Revenue,IMPRESS PRINT SERVICES LTD,2008443
WANDSWORTH COUNCIL,NGF CS,ADMINISTRATION,PRINTING STAT & GEN OFFICE EXP,OUTWORK - LITHO,20278298,121333590,14-Apr-14,680.00,Revenue,IMPRESS PRINT SERVICES LTD,2008443
WANDSWORTH COUNCIL,NGF CS,ADMINISTRATION,PRINTING STAT & GEN OFFICE EXP,OUTWORK - LITHO,20278299,121333590,14-Apr-14,559.00,Revenue,IMPRESS PRINT SERVICES LTD,2008443
WANDSWORTH COUNCIL,NGF CS,ADMINISTRATION,PRINTING STAT & GEN OFFICE EXP,OUTWORK - LITHO,20278301,121333590,14-Apr-14,908.00,Revenue,IMPRESS PRINT SERVICES LTD,2008443
WANDSWORTH COUNCIL,NGF CS,ADMINISTRATION,PRINTING STAT & GEN OFFICE EXP,OUTWORK - LITHO,20278303,121333590,14-Apr-14,534.00,Revenue,IMPRESS PRINT SERVICES LTD,2008443
WANDSWORTH COUNCIL,NGF CS,ADMINISTRATION,PRINTING STAT & GEN OFFICE EXP,OUTWORK - LITHO,20278311,121333590,14-Apr-14,"2,076.40",Revenue,KALL KWIK,2007566
WANDSWORTH COUNCIL,NGF CS,ADMINISTRATION,PRINTING STAT & GEN OFFICE EXP,OUTWORK - EXTERN NON FRAMEWORK,20278324,121333600,14-Apr-14,"1,307.00",Revenue,AMBERLEY ADHESIVE LABELS LTD,2006635
WANDSWORTH COUNCIL,NGF CS,ADMINISTRATION,PRINTING STAT & GEN OFFICE EXP,OUTWORK - EXTERN NON FRAMEWORK,20278312,121333600,14-Apr-14,"1,210.00",Revenue,JKN DIGITAL LTD,2007729
WANDSWORTH COUNCIL,NGF CS,ADMINISTRATION,PRINTING STAT & GEN OFFICE EXP,OUTWORK - EXTERN NON FRAMEWORK,20278313,121333600,14-Apr-14,535.00,Revenue,JKN DIGITAL LTD,2007729
WANDSWORTH COUNCIL,NGF CS,ADMINISTRATION,"EQUIPMENT, FURNITURE & MATS",OP COSTS -COLOUR COPIER RENTAL,20278916,121430240,16-Apr-14,732.28,Revenue,CANON (UK) LTD,2001450
WANDSWORTH COUNCIL,NGF CDC,ENVIRONMENT & COMMUNITY,PRINTING STAT & GEN OFFICE EXP,PUBLIC RELATIONS,382604,122033460,04-Apr-14,"6,106.00",Revenue,LONDON LETTERBOX MARKETING,SP0000546
WANDSWORTH COUNCIL,NGF CS,ADMINISTRATION,"EQUIPMENT, FURNITURE & MATS",EQUIP.FURN & MATS-REPS & MTCE,20279386,122130010,23-Apr-14,"2,832.00",Revenue,NEOPOST LTD,2007384
WANDSWORTH COUNCIL,NGF CS,ADMINISTRATION,COMMUNICATIONS & COMP,COMMUNICATIONS - POSTAGE,20277980,122136000,11-Apr-14,"2,015.87",Revenue,ROYAL MAIL,2009044
WANDSWORTH COUNCIL,NGF CS,ADMINISTRATION,COMMUNICATIONS & COMP,COMMUNICATIONS - POSTAGE,20279394,122136000,23-Apr-14,"1,634.05",Revenue,ROYAL MAIL,2009044
WANDSWORTH COUNCIL,NGF CS,ADMINISTRATION,COMMUNICATIONS & COMP,COMMUNICATIONS - POSTAGE,20278183,122136000,14-Apr-14,"2,654.18",Revenue,TNT POST LONDON LTD,2011033
WANDSWORTH COUNCIL,NGF CS,ADMINISTRATION,COMMUNICATIONS & COMP,COMMUNICATIONS - POSTAGE,20278192,122136000,15-Apr-14,"1,696.61",Revenue,TNT POST LONDON LTD,2011033
WANDSWORTH COUNCIL,NGF CS,ADMINISTRATION,COMMUNICATIONS & COMP,COMMUNICATIONS - POSTAGE,20278193,122136000,15-Apr-14,"2,723.61",Revenue,TNT POST LONDON LTD,2011033
WANDSWORTH COUNCIL,NGF CS,ADMINISTRATION,INDIRECT,IN-SERVICE TRAINING-SLA,20278968,123000740,16-Apr-14,930.00,Revenue,URBAN C AND A,2018805
WANDSWORTH COUNCIL,NGF CS,ADMINISTRATION,DIRECT2,AGENCY STAFF,20278679,123200510,15-Apr-14,"1,583.50",Revenue,MATRIX SCM LIMITED,2014926
WANDSWORTH COUNCIL,NGF CS,ADMINISTRATION,DIRECT2,AGENCY STAFF,20279061,123200510,17-Apr-14,796.92,Revenue,MATRIX SCM LIMITED,2014926
WANDSWORTH COUNCIL,NGF CS,ADMINISTRATION,DIRECT2,AGENCY STAFF,20279061,123200510,17-Apr-14,717.48,Revenue,MATRIX SCM LIMITED,2014926
WANDSWORTH COUNCIL,NGF CS,ADMINISTRATION,DIRECT2,AGENCY STAFF,20279271,123200510,23-Apr-14,"1,219.05",Revenue,MATRIX SCM LIMITED,2014926
WANDSWORTH COUNCIL,NGF CS,ADMINISTRATION,INDIRECT,HEALTH CARE,20279603,123200640,25-Apr-14,"7,220.92",Revenue,MEDICALS DIRECT SCREENING LTD,2014578
WANDSWORTH COUNCIL,NGF CS,ADMINISTRATION,INDIRECT,CHILDCARE VOUCHERS,20277832,123200650,07-Apr-14,619.19,Revenue,COMPUTERSHARE VOUCHER SERVICES,2007281
WANDSWORTH COUNCIL,NGF CS,ADMINISTRATION,INDIRECT,CHILDCARE VOUCHERS,20277833,123200650,07-Apr-14,100.30,Revenue,COMPUTERSHARE VOUCHER SERVICES,2007281
WANDSWORTH COUNCIL,NGF CS,ADMINISTRATION,INDIRECT,CHILDCARE VOUCHERS,20279865,123200650,25-Apr-14,"1,249.69",Revenue,COMPUTERSHARE VOUCHER SERVICES,2007281
WANDSWORTH COUNCIL,NGF CS,ADMINISTRATION,INDIRECT,CHILDCARE VOUCHERS,20279867,123200650,25-Apr-14,111.93,Revenue,COMPUTERSHARE VOUCHER SERVICES,2007281
WANDSWORTH COUNCIL,NGF CS,ADMINISTRATION,PRINTING STAT & GEN OFFICE EXP,PHOTOCOPYING,20279864,123233380,25-Apr-14,"1,332.70",Revenue,RICOH UK LTD,2002588
WANDSWORTH COUNCIL,NGF CS,ADMINISTRATION,SERVICES,OHS SESSIONAL DOCTOR,20278967,123234690,16-Apr-14,450.32,Revenue,EMPLOYEE ADVISORY RESOURCE LTD (WORKPLACE OPTIONS),2016788
WANDSWORTH COUNCIL,NGF CS,ADMINISTRATION,SERVICES,OHS SESSIONAL DOCTOR,20278963,123234690,16-Apr-14,"7,545.12",Revenue,HJM ASSOCIATES,2011293
WANDSWORTH COUNCIL,NGF CS,ADMINISTRATION,GRANTS & SUBSCRIPTIONS,SUBSCRIPTIONS,20277915,123237640,08-Apr-14,309.00,Revenue,THOMPSON REUTERS,2013886
WANDSWORTH COUNCIL,NGF CS,ADMINISTRATION,GRANTS & SUBSCRIPTIONS,SUBSCRIPTIONS,20277915,123237640,08-Apr-14,309.00,Revenue,THOMPSON REUTERS,2013886
WANDSWORTH COUNCIL,NGF CS,ADMINISTRATION,MISC,MISCELLANEOUS EXPENSES,20279868,123238500,25-Apr-14,"1,379.75",Revenue,EDENRED UK GROUP LTD,2001234
WANDSWORTH COUNCIL,NGF CDC,ADMINISTRATION,MISC,MISCELLANEOUS EXPENSES,20277744,124038500,03-Apr-14,"1,000.00",Revenue,Compass Group UK & Ireland Limited,2991000
WANDSWORTH COUNCIL,NGF CDC,ADMINISTRATION,MISC,MISCELLANEOUS EXPENSES,20279019,124038500,17-Apr-14,960.00,Revenue,Mayor`s Charity Appeal,2991000
WANDSWORTH COUNCIL,NGF CDC,ADMINISTRATION,PRINTING STAT & GEN OFFICE EXP,PRINTING AND STATIONERY,20279163,12413342K01852,17-Apr-14,311.26,Revenue,OFFICE DEPOT UK LTD,2000101
WANDSWORTH COUNCIL,NGF CDC,ADMINISTRATION,DIRECT2,AGENCY STAFF,20278679,124200510,15-Apr-14,703.25,Revenue,MATRIX SCM LIMITED,2014926
WANDSWORTH COUNCIL,NGF CDC,ADMINISTRATION,DIRECT2,AGENCY STAFF,20279061,124200510,17-Apr-14,703.25,Revenue,MATRIX SCM LIMITED,2014926
WANDSWORTH COUNCIL,NGF CDC,ADMINISTRATION,COMMUNICATIONS & COMP,WEBSITE,20277839,124236550,07-Apr-14,"6,870.00",Revenue,MORDERN MINDSET LTD,2016657
WANDSWORTH COUNCIL,NGF CDC,ADMINISTRATION,"EQUIPMENT, FURNITURE & MATS",FLOWERS,20279689,124430170,25-Apr-14,90.00,Revenue,PATRICIA WONG,2001370
WANDSWORTH COUNCIL,NGF CS,ADMINISTRATION,DIRECT2,AGENCY STAFF,20279061,124700510,17-Apr-14,687.23,Revenue,MATRIX SCM LIMITED,2014926
WANDSWORTH COUNCIL,NGF CS,ADMINISTRATION,DIRECT2,AGENCY STAFF,20279061,124700510,17-Apr-14,215.87,Revenue,MATRIX SCM LIMITED,2014926
WANDSWORTH COUNCIL,NGF CS,ADMINISTRATION,DIRECT2,AGENCY STAFF,20279271,124700510,23-Apr-14,687.23,Revenue,MATRIX SCM LIMITED,2014926
WANDSWORTH COUNCIL,NGF CS,ADMINISTRATION,INDIRECT,TRAINING - EXTERNAL COURSES,20279148,124700770,17-Apr-14,520.00,Revenue,SOLACE,2007875
WANDSWORTH COUNCIL,ASC,FINANCE,DIRECT2,AGENCY STAFF,20278156,125000510,16-Apr-14,"1,482.00",Revenue,MATRIX SCM LIMITED,2014926
WANDSWORTH COUNCIL,ASC,FINANCE,DIRECT2,AGENCY STAFF,20278156,125000510,16-Apr-14,"1,482.00",Revenue,MATRIX SCM LIMITED,2014926
WANDSWORTH COUNCIL,ASC,FINANCE,DIRECT2,AGENCY STAFF,20278156,125000510,16-Apr-14,"1,482.00",Revenue,MATRIX SCM LIMITED,2014926
WANDSWORTH COUNCIL,ASC,ADMINISTRATION,DIRECT2,AGENCY STAFF,20278679,125000510,15-Apr-14,"13,173.08",Revenue,MATRIX SCM LIMITED,2014926
WANDSWORTH COUNCIL,ASC,SOCIAL SERVICES,DIRECT2,AGENCY STAFF,20278844,125000510,15-Apr-14,"8,495.78",Revenue,MATRIX SCM LIMITED,2014926
WANDSWORTH COUNCIL,ASC,ADMINISTRATION,DIRECT2,AGENCY STAFF,20279061,125000510,17-Apr-14,548.30,Revenue,MATRIX SCM LIMITED,2014926
WANDSWORTH COUNCIL,ASC,ADMINISTRATION,DIRECT2,AGENCY STAFF,20279061,125000510,17-Apr-14,"7,120.08",Revenue,MATRIX SCM LIMITED,2014926
WANDSWORTH COUNCIL,ASC,ADMINISTRATION,DIRECT2,AGENCY STAFF,20279061,125000510,17-Apr-14,256.48,Revenue,MATRIX SCM LIMITED,2014926
WANDSWORTH COUNCIL,ASC,ADMINISTRATION,DIRECT2,AGENCY STAFF,20279271,125000510,23-Apr-14,"8,043.42",Revenue,MATRIX SCM LIMITED,2014926
WANDSWORTH COUNCIL,ASC,SOCIAL SERVICES,DIRECT2,AGENCY STAFF,20279371,125000510,22-Apr-14,668.96,Revenue,MATRIX SCM LIMITED,2014926
WANDSWORTH COUNCIL,ASC,SOCIAL SERVICES,DIRECT2,AGENCY STAFF,20279908,125000510,29-Apr-14,"2,185.36",Revenue,MATRIX SCM LIMITED,2014926
WANDSWORTH COUNCIL,ASC,ADMINISTRATION,SERVICES,CONSULTANTS FEES,20278742,125034200,15-Apr-14,"1,202.40",Revenue,ABSOLUTE ORGANISATION LTD,2016876
WANDSWORTH COUNCIL,ASC,ADMINISTRATION,SERVICES,PROJECT WORK,20278150,125134800,14-Apr-14,"1,238.00",Revenue,DELL CORPORATION LTD,2009246
WANDSWORTH COUNCIL,NGF CS,FINANCE,DIRECT2,AGENCY STAFF,20278156,126000510,16-Apr-14,"2,015.15",Revenue,MATRIX SCM LIMITED,2014926
WANDSWORTH COUNCIL,NGF CS,FINANCE,DIRECT2,AGENCY STAFF,20278156,126000510,16-Apr-14,"3,581.82",Revenue,MATRIX SCM LIMITED,2014926
WANDSWORTH COUNCIL,NGF CS,FINANCE,DIRECT2,AGENCY STAFF,20278156,126000510,16-Apr-14,"1,474.80",Revenue,MATRIX SCM LIMITED,2014926
WANDSWORTH COUNCIL,NGF CS,ADMINISTRATION,DIRECT2,AGENCY STAFF,20278679,126000510,15-Apr-14,"16,673.65",Revenue,MATRIX SCM LIMITED,2014926
WANDSWORTH COUNCIL,NGF CS,FINANCE,DIRECT2,AGENCY STAFF,20279145,126000510,17-Apr-14,933.11,Revenue,MATRIX SCM LIMITED,2014926
WANDSWORTH COUNCIL,NGF CS,FINANCE,DIRECT2,AGENCY STAFF,20279145,126000510,17-Apr-14,"3,207.60",Revenue,MATRIX SCM LIMITED,2014926
WANDSWORTH COUNCIL,NGF CS,FINANCE,DIRECT2,AGENCY STAFF,20279145,126000510,17-Apr-14,"1,474.80",Revenue,MATRIX SCM LIMITED,2014926
WANDSWORTH COUNCIL,NGF CS,FINANCE,DIRECT2,AGENCY STAFF,20279145,126000510,17-Apr-14,"1,911.19",Revenue,MATRIX SCM LIMITED,2014926
WANDSWORTH COUNCIL,NGF CS,FINANCE,DIRECT2,AGENCY STAFF,20279145,126000510,17-Apr-14,746.48,Revenue,MATRIX SCM LIMITED,2014926
WANDSWORTH COUNCIL,NGF CS,FINANCE,DIRECT2,AGENCY STAFF,20279145,126000510,17-Apr-14,"2,206.51",Revenue,MATRIX SCM LIMITED,2014926
WANDSWORTH COUNCIL,NGF CS,FINANCE,DIRECT2,AGENCY STAFF,20279145,126000510,17-Apr-14,"1,967.47",Revenue,MATRIX SCM LIMITED,2014926
WANDSWORTH COUNCIL,NGF CS,FINANCE,DIRECT2,AGENCY STAFF,20279637,126000510,28-Apr-14,"1,179.84",Revenue,MATRIX SCM LIMITED,2014926
WANDSWORTH COUNCIL,NGF CS,FINANCE,DIRECT2,AGENCY STAFF,20279637,126000510,28-Apr-14,66.99,Revenue,MATRIX SCM LIMITED,2014926
WANDSWORTH COUNCIL,NGF CS,FINANCE,DIRECT2,AGENCY STAFF,20279637,126000510,28-Apr-14,"1,687.98",Revenue,MATRIX SCM LIMITED,2014926
WANDSWORTH COUNCIL,NGF CS,FINANCE,DIRECT2,AGENCY STAFF,20279637,126000510,28-Apr-14,124.41,Revenue,MATRIX SCM LIMITED,2014926
WANDSWORTH COUNCIL,NGF CS,ADMINISTRATION,COMMUNICATIONS & COMP,CALLS USAGE,20279430,126236050,23-Apr-14,"2,204.98",Revenue,CABLE & WIRELESS COMMUNICATIONS,2009023
WANDSWORTH COUNCIL,NGF CS,ADMINISTRATION,COMMUNICATIONS & COMP,CALLS USAGE,20277924,126236050,08-Apr-14,"2,029.53",Revenue,VIRGIN MEDIA BUSINESS,2011718
WANDSWORTH COUNCIL,NGF CS,ADMINISTRATION,"EQUIPMENT, FURNITURE & MATS","EQUIPMENT, FURNITURE & MATS",20277922,126330000,08-Apr-14,"1,055.25",Revenue,CABLE & WIRELESS COMMUNICATIONS,2009023
WANDSWORTH COUNCIL,NGF CS,ADMINISTRATION,"EQUIPMENT, FURNITURE & MATS","EQUIPMENT, FURNITURE & MATS",20279430,126330000,23-Apr-14,387.19,Revenue,CABLE & WIRELESS COMMUNICATIONS,2009023
WANDSWORTH COUNCIL,NGF CS,ADMINISTRATION,"EQUIPMENT, FURNITURE & MATS","EQUIPMENT, FURNITURE & MATS",20277921,126330000,08-Apr-14,"5,356.75",Revenue,DAMOVO UK LTD,2007340
WANDSWORTH COUNCIL,NGF CS,ADMINISTRATION,"EQUIPMENT, FURNITURE & MATS","EQUIPMENT, FURNITURE & MATS",20277924,126330000,08-Apr-14,"1,650.00",Revenue,VIRGIN MEDIA BUSINESS,2011718
WANDSWORTH COUNCIL,NGF CS,ADMINISTRATION,"EQUIPMENT, FURNITURE & MATS","EQUIPMENT, FURNITURE & MATS",20278216,126330000,14-Apr-14,"56,963.10",Revenue,VODAFONE CORPORATE,2009219
WANDSWORTH COUNCIL,NGF CS,ADMINISTRATION,"EQUIPMENT, FURNITURE & MATS","EQUIPMENT, FURNITURE & MATS",20278217,126330000,14-Apr-14,-0.01,Revenue,VODAFONE CORPORATE,2009219
WANDSWORTH COUNCIL,NGF CS,ADMINISTRATION,"EQUIPMENT, FURNITURE & MATS","EQUIPMENT, FURNITURE & MATS",20278217,126330000,14-Apr-14,"58,767.18",Revenue,VODAFONE CORPORATE,2009219
WANDSWORTH COUNCIL,NGF CS,ADMINISTRATION,"EQUIPMENT, FURNITURE & MATS","EQUIPMENT, FURNITURE & MATS",20278720,126330000,15-Apr-14,"6,903.28",Revenue,VODAFONE CORPORATE,2009219
WANDSWORTH COUNCIL,NGF CS,ADMINISTRATION,COMMUNICATIONS & COMP,PRIVATE CIRCUITS EXCHANGE LINK,20279435,126336460,23-Apr-14,977.50,Revenue,BT PAYMENT SERVICES LTD,2009138
WANDSWORTH COUNCIL,NGF CS,ADMINISTRATION,COMMUNICATIONS & COMP,PRIVATE CIRCUITS EXCHANGE LINK,20279619,126336460,25-Apr-14,701.50,Revenue,BT PAYMENT SERVICES LTD,2009138
WANDSWORTH COUNCIL,NGF CS,ADMINISTRATION,COMMUNICATIONS & COMP,PRIVATE CIRCUITS EXCHANGE LINK,20279619,126336460,25-Apr-14,"1,223.35",Revenue,BT PAYMENT SERVICES LTD,2009138
WANDSWORTH COUNCIL,NGF CS,ADMINISTRATION,COMMUNICATIONS & COMP,PRIVATE CIRCUITS EXCHANGE LINK,20279619,126336460,25-Apr-14,"1,341.08",Revenue,BT PAYMENT SERVICES LTD,2009138
WANDSWORTH COUNCIL,NGF CS,ADMINISTRATION,COMMUNICATIONS & COMP,PRIVATE CIRCUITS EXCHANGE LINK,20279619,126336460,25-Apr-14,701.50,Revenue,BT PAYMENT SERVICES LTD,2009138
WANDSWORTH COUNCIL,NGF CS,ENVIRONMENT & COMMUNITY,"EQUIPMENT, FURNITURE & MATS","EQUIPMENT, FURNITURE & MATS",386112,126530000,15-Apr-14,"1,950.00",Revenue,DELL CORPORATION LTD,SP0003352
WANDSWORTH COUNCIL,NGF CS,ADMINISTRATION,"EQUIPMENT, FURNITURE & MATS","EQUIPMENT, FURNITURE & MATS",20279731,126530000,25-Apr-14,"1,620.00",Revenue,HARDWARE.COM,2017351
WANDSWORTH COUNCIL,NGF CS,ADMINISTRATION,"EQUIPMENT, FURNITURE & MATS","EQUIPMENT, FURNITURE & MATS",20279784,126530000,25-Apr-14,"8,262.00",Revenue,PROSPERON NETWORKS LTD,2018853
WANDSWORTH COUNCIL,NGF CS,ADMINISTRATION,"EQUIPMENT, FURNITURE & MATS","EQUIPMENT, FURNITURE & MATS",20277821,126530000,07-Apr-14,"2,917.00",Revenue,RETAIL ASSIST LTD,2017431
WANDSWORTH COUNCIL,NGF CS,ADMINISTRATION,"EQUIPMENT, FURNITURE & MATS","EQUIPMENT, FURNITURE & MATS",20279137,126530000,17-Apr-14,950.00,Revenue,RISUAL LIMITED,2017331
WANDSWORTH COUNCIL,NGF CS,ADMINISTRATION,"EQUIPMENT, FURNITURE & MATS","EQUIPMENT, FURNITURE & MATS",20278692,126630000,15-Apr-14,"4,008.00",Revenue,AMT DATA BUSINESS SERVICES LTD,2012940
WANDSWORTH COUNCIL,NGF CS,ENVIRONMENT & COMMUNITY,COMMUNICATIONS & COMP,I.T. - SAFFRON,394033,126836260,30-Apr-14,311.39,Revenue,BANNER MANAGED COMMUNICATION,SP0003555
WANDSWORTH COUNCIL,NGF CS,ADMINISTRATION,SERVICES,PROJECT WORK,20279599,127034800,25-Apr-14,"1,453.00",Revenue,STORM FAMILY CENTRE LTD,2004295
WANDSWORTH COUNCIL,NGF CS,ADMINISTRATION,COMMUNICATIONS & COMP,CORELOGIC MAINTENANCE & SUPPT,20278694,127236300,15-Apr-14,"4,080.00",Revenue,BACKUP TECHNOLOGY LTD,2011333
WANDSWORTH COUNCIL,NGF CS,ADMINISTRATION,COMMUNICATIONS & COMP,CORELOGIC MAINTENANCE & SUPPT,20278148,127236300,14-Apr-14,"3,031.27",Revenue,SAP (UK) LTD,2010228
WANDSWORTH COUNCIL,ASC,SOCIAL SERVICES,DIRECT2,AGENCY STAFF,20278843,130000510,23-Apr-14,"5,263.27",Revenue,MATRIX SCM LIMITED,2014926
WANDSWORTH COUNCIL,ASC,SOCIAL SERVICES,DIRECT2,AGENCY STAFF,20278844,130000510,15-Apr-14,"11,094.41",Revenue,MATRIX SCM LIMITED,2014926
WANDSWORTH COUNCIL,ASC,SOCIAL SERVICES,DIRECT2,AGENCY STAFF,20278845,130000510,15-Apr-14,"6,150.84",Revenue,MATRIX SCM LIMITED,2014926
WANDSWORTH COUNCIL,ASC,SOCIAL SERVICES,DIRECT2,AGENCY STAFF,20279371,130000510,22-Apr-14,"4,257.90",Revenue,MATRIX SCM LIMITED,2014926
WANDSWORTH COUNCIL,ASC,SOCIAL SERVICES,DIRECT2,AGENCY STAFF,20279908,130000510,29-Apr-14,"2,259.90",Revenue,MATRIX SCM LIMITED,2014926
WANDSWORTH COUNCIL,ASC,SOCIAL SERVICES,HIRE,HIRE - TRANSPORT,20280414,130220410,30-Apr-14,"1,654.62",Revenue,A STAR TRANSPORT LTD,2007011
WANDSWORTH COUNCIL,ASC,SOCIAL SERVICES,HIRE,HIRE - TRANSPORT,385007,130220410,08-Apr-14,900.00,Revenue,A STAR TRANSPORT LTD,SP0000866
WANDSWORTH COUNCIL,ASC,SOCIAL SERVICES,HIRE,HIRE - TRANSPORT,385009,130220410,08-Apr-14,444.00,Revenue,A STAR TRANSPORT LTD,SP0000866
WANDSWORTH COUNCIL,ASC,SOCIAL SERVICES,HIRE,HIRE - TRANSPORT,385012,130220410,08-Apr-14,708.00,Revenue,A STAR TRANSPORT LTD,SP0000866
WANDSWORTH COUNCIL,ASC,SOCIAL SERVICES,HIRE,HIRE - TRANSPORT,389729,130220410,15-Apr-14,"1,160.00",Revenue,A STAR TRANSPORT LTD,SP0000866
WANDSWORTH COUNCIL,ASC,SOCIAL SERVICES,HIRE,HIRE - TRANSPORT,390844,130220410,16-Apr-14,564.00,Revenue,A STAR TRANSPORT LTD,SP0000866
WANDSWORTH COUNCIL,ASC,SOCIAL SERVICES,HIRE,HIRE - TRANSPORT,390845,130220410,16-Apr-14,792.00,Revenue,A STAR TRANSPORT LTD,SP0000866
WANDSWORTH COUNCIL,ASC,SOCIAL SERVICES,HIRE,HIRE - TRANSPORT,390849,130220410,16-Apr-14,672.00,Revenue,A STAR TRANSPORT LTD,SP0000866
WANDSWORTH COUNCIL,ASC,SOCIAL SERVICES,HIRE,HIRE - TRANSPORT,390864,130220410,16-Apr-14,440.00,Revenue,A STAR TRANSPORT LTD,SP0000866
WANDSWORTH COUNCIL,ASC,SOCIAL SERVICES,HIRE,HIRE - TRANSPORT,390866,130220410,16-Apr-14,500.00,Revenue,A STAR TRANSPORT LTD,SP0000866
WANDSWORTH COUNCIL,ASC,SOCIAL SERVICES,HIRE,HIRE - TRANSPORT,390867,130220410,16-Apr-14,456.00,Revenue,A STAR TRANSPORT LTD,SP0000866
WANDSWORTH COUNCIL,ASC,SOCIAL SERVICES,HIRE,HIRE - TRANSPORT,390868,130220410,16-Apr-14,720.00,Revenue,A STAR TRANSPORT LTD,SP0000866
WANDSWORTH COUNCIL,ASC,SOCIAL SERVICES,HIRE,HIRE - TRANSPORT,390873,130220410,16-Apr-14,800.00,Revenue,A STAR TRANSPORT LTD,SP0000866
WANDSWORTH COUNCIL,ASC,SOCIAL SERVICES,HIRE,HIRE - TRANSPORT,390874,130220410,16-Apr-14,500.00,Revenue,A STAR TRANSPORT LTD,SP0000866
WANDSWORTH COUNCIL,ASC,SOCIAL SERVICES,HIRE,HIRE - TRANSPORT,390875,130220410,16-Apr-14,500.00,Revenue,A STAR TRANSPORT LTD,SP0000866
WANDSWORTH COUNCIL,ASC,SOCIAL SERVICES,HIRE,HIRE - TRANSPORT,390888,130220410,16-Apr-14,520.00,Revenue,A STAR TRANSPORT LTD,SP0000866
WANDSWORTH COUNCIL,ASC,SOCIAL SERVICES,HIRE,HIRE - TRANSPORT,390890,130220410,16-Apr-14,468.00,Revenue,A STAR TRANSPORT LTD,SP0000866
WANDSWORTH COUNCIL,ASC,SOCIAL SERVICES,HIRE,HIRE - TRANSPORT,390897,130220410,16-Apr-14,433.30,Revenue,A STAR TRANSPORT LTD,SP0000866
WANDSWORTH COUNCIL,ASC,SOCIAL SERVICES,HIRE,HIRE - TRANSPORT,390898,130220410,16-Apr-14,433.30,Revenue,A STAR TRANSPORT LTD,SP0000866
WANDSWORTH COUNCIL,ASC,SOCIAL SERVICES,HIRE,HIRE - TRANSPORT,390901,130220410,16-Apr-14,928.00,Revenue,A STAR TRANSPORT LTD,SP0000866
WANDSWORTH COUNCIL,ASC,SOCIAL SERVICES,HIRE,HIRE - TRANSPORT,390907,130220410,16-Apr-14,589.00,Revenue,A STAR TRANSPORT LTD,SP0000866
WANDSWORTH COUNCIL,ASC,SOCIAL SERVICES,HIRE,HIRE - TRANSPORT,390910,130220410,16-Apr-14,500.00,Revenue,A STAR TRANSPORT LTD,SP0000866
WANDSWORTH COUNCIL,ASC,SOCIAL SERVICES,HIRE,HIRE - TRANSPORT,395956,130220410,30-Apr-14,"1,160.00",Revenue,A STAR TRANSPORT LTD,SP0000866
WANDSWORTH COUNCIL,ASC,SOCIAL SERVICES,HIRE,HIRE - TRANSPORT,395957,130220410,30-Apr-14,"1,160.00",Revenue,A STAR TRANSPORT LTD,SP0000866
WANDSWORTH COUNCIL,ASC,SOCIAL SERVICES,HIRE,HIRE - TRANSPORT,395965,130220410,30-Apr-14,620.00,Revenue,A STAR TRANSPORT LTD,SP0000866
WANDSWORTH COUNCIL,ASC,SOCIAL SERVICES,HIRE,HIRE - TRANSPORT,395967,130220410,30-Apr-14,500.00,Revenue,A STAR TRANSPORT LTD,SP0000866
WANDSWORTH COUNCIL,ASC,SOCIAL SERVICES,HIRE,HIRE - TRANSPORT,395969,130220410,30-Apr-14,836.00,Revenue,A STAR TRANSPORT LTD,SP0000866
WANDSWORTH COUNCIL,ASC,SOCIAL SERVICES,HIRE,HIRE - TRANSPORT,395973,130220410,30-Apr-14,444.00,Revenue,A STAR TRANSPORT LTD,SP0000866
WANDSWORTH COUNCIL,ASC,SOCIAL SERVICES,HIRE,HIRE - TRANSPORT,395975,130220410,30-Apr-14,900.00,Revenue,A STAR TRANSPORT LTD,SP0000866
WANDSWORTH COUNCIL,ASC,SOCIAL SERVICES,HIRE,HIRE - TRANSPORT,395979,130220410,30-Apr-14,708.00,Revenue,A STAR TRANSPORT LTD,SP0000866
WANDSWORTH COUNCIL,ASC,SOCIAL SERVICES,HIRE,HIRE - TRANSPORT,395988,130220410,30-Apr-14,672.00,Revenue,A STAR TRANSPORT LTD,SP0000866
WANDSWORTH COUNCIL,ASC,SOCIAL SERVICES,HIRE,HIRE - TRANSPORT,395998,130220410,30-Apr-14,440.00,Revenue,A STAR TRANSPORT LTD,SP0000866
WANDSWORTH COUNCIL,ASC,SOCIAL SERVICES,HIRE,HIRE - TRANSPORT,396000,130220410,30-Apr-14,460.00,Revenue,A STAR TRANSPORT LTD,SP0000866
WANDSWORTH COUNCIL,ASC,SOCIAL SERVICES,HIRE,HIRE - TRANSPORT,396001,130220410,30-Apr-14,500.00,Revenue,A STAR TRANSPORT LTD,SP0000866
WANDSWORTH COUNCIL,ASC,SOCIAL SERVICES,HIRE,HIRE - TRANSPORT,396003,130220410,30-Apr-14,456.00,Revenue,A STAR TRANSPORT LTD,SP0000866
WANDSWORTH COUNCIL,ASC,SOCIAL SERVICES,HIRE,HIRE - TRANSPORT,396004,130220410,30-Apr-14,720.00,Revenue,A STAR TRANSPORT LTD,SP0000866
WANDSWORTH COUNCIL,ASC,SOCIAL SERVICES,HIRE,HIRE - TRANSPORT,396006,130220410,30-Apr-14,800.00,Revenue,A STAR TRANSPORT LTD,SP0000866
WANDSWORTH COUNCIL,ASC,SOCIAL SERVICES,HIRE,HIRE - TRANSPORT,396007,130220410,30-Apr-14,500.00,Revenue,A STAR TRANSPORT LTD,SP0000866
WANDSWORTH COUNCIL,ASC,SOCIAL SERVICES,HIRE,HIRE - TRANSPORT,396008,130220410,30-Apr-14,500.00,Revenue,A STAR TRANSPORT LTD,SP0000866
WANDSWORTH COUNCIL,ASC,SOCIAL SERVICES,HIRE,HIRE - TRANSPORT,396018,130220410,30-Apr-14,468.00,Revenue,A STAR TRANSPORT LTD,SP0000866
WANDSWORTH COUNCIL,ASC,SOCIAL SERVICES,HIRE,HIRE - TRANSPORT,396021,130220410,30-Apr-14,521.00,Revenue,A STAR TRANSPORT LTD,SP0000866
WANDSWORTH COUNCIL,ASC,SOCIAL SERVICES,HIRE,HIRE - TRANSPORT,385332,130220410,08-Apr-14,609.60,Revenue,BECKETT CORPORATION LTD T/A TINAS CARS,SP0000729
WANDSWORTH COUNCIL,ASC,SOCIAL SERVICES,HIRE,HIRE - TRANSPORT,385335,130220410,08-Apr-14,137.12,Revenue,BECKETT CORPORATION LTD T/A TINAS CARS,SP0000729
WANDSWORTH COUNCIL,ASC,SOCIAL SERVICES,HIRE,HIRE - TRANSPORT,385337,130220410,08-Apr-14,"1,010.60",Revenue,BECKETT CORPORATION LTD T/A TINAS CARS,SP0000729
WANDSWORTH COUNCIL,ASC,SOCIAL SERVICES,HIRE,HIRE - TRANSPORT,385338,130220410,08-Apr-14,517.76,Revenue,BECKETT CORPORATION LTD T/A TINAS CARS,SP0000729
WANDSWORTH COUNCIL,ASC,SOCIAL SERVICES,HIRE,HIRE - TRANSPORT,385689,130220410,09-Apr-14,474.08,Revenue,BECKETT CORPORATION LTD T/A TINAS CARS,SP0000729
WANDSWORTH COUNCIL,ASC,SOCIAL SERVICES,HIRE,HIRE - TRANSPORT,385690,130220410,09-Apr-14,"1,639.20",Revenue,BECKETT CORPORATION LTD T/A TINAS CARS,SP0000729
WANDSWORTH COUNCIL,ASC,SOCIAL SERVICES,HIRE,HIRE - TRANSPORT,396070,130220410,30-Apr-14,"1,740.00",Revenue,GALPINS SERVICES LTD,SP0001368
WANDSWORTH COUNCIL,ASC,SOCIAL SERVICES,HIRE,HIRE - TRANSPORT,384992,130220410,08-Apr-14,779.00,Revenue,GROUP TAXIBUS LTD T/A CHELMSFORD TAXIBUS,SP0006150
WANDSWORTH COUNCIL,ASC,SOCIAL SERVICES,HIRE,HIRE - TRANSPORT,394011,130220410,25-Apr-14,860.50,Revenue,GROUP TAXIBUS LTD T/A CHELMSFORD TAXIBUS,SP0006150
WANDSWORTH COUNCIL,ASC,SOCIAL SERVICES,HIRE,HIRE - TRANSPORT,393994,130220410,25-Apr-14,630.00,Revenue,HEALTHCARE & TRANSPORT SERVICES (HATS),SP0000012
WANDSWORTH COUNCIL,ASC,SOCIAL SERVICES,HIRE,HIRE - TRANSPORT,393998,130220410,25-Apr-14,630.00,Revenue,HEALTHCARE & TRANSPORT SERVICES (HATS),SP0000012
WANDSWORTH COUNCIL,ASC,SOCIAL SERVICES,HIRE,HIRE - TRANSPORT,387241,130220410,11-Apr-14,"1,063.66",Revenue,WEST ONE CARS,SP0005818
WANDSWORTH COUNCIL,ASC,SOCIAL SERVICES,HIRE,NEW TRANSPORT CONTRACT,385335,130220430,08-Apr-14,350.56,Revenue,BECKETT CORPORATION LTD T/A TINAS CARS,SP0000729
WANDSWORTH COUNCIL,ASC,SOCIAL SERVICES,"CLOTHING, UNIFORM & LAUNDRY",EXTERNAL LAUNDRY,386660,130231520,10-Apr-14,126.00,Revenue,G S LAUNDRIES LTD,SP0000995
WANDSWORTH COUNCIL,ASC,SOCIAL SERVICES,SERVICES,TRAVEL BUDDY SCHEME,384184,130234970,07-Apr-14,825.87,Revenue,SOUTHSIDE PARTNERSHIP,SP0000692
WANDSWORTH COUNCIL,ASC,SOCIAL SERVICES,SERVICES,TRAVEL BUDDY SCHEME,384865,130234970,08-Apr-14,"1,422.18",Revenue,SOUTHSIDE PARTNERSHIP,SP0000692
WANDSWORTH COUNCIL,ASC,SOCIAL SERVICES,SERVICES,TRAVEL BUDDY SCHEME,384866,130234970,08-Apr-14,"1,261.89",Revenue,SOUTHSIDE PARTNERSHIP,SP0000692
WANDSWORTH COUNCIL,ASC,SOCIAL SERVICES,SERVICES,TRAVEL BUDDY SCHEME,384870,130234970,08-Apr-14,949.48,Revenue,SOUTHSIDE PARTNERSHIP,SP0000692
WANDSWORTH COUNCIL,ASC,SOCIAL SERVICES,SERVICES,TRAVEL BUDDY SCHEME,384871,130234970,08-Apr-14,"1,502.32",Revenue,SOUTHSIDE PARTNERSHIP,SP0000692
WANDSWORTH COUNCIL,ASC,SOCIAL SERVICES,SERVICES,TRAVEL BUDDY SCHEME,384872,130234970,08-Apr-14,665.59,Revenue,SOUTHSIDE PARTNERSHIP,SP0000692
WANDSWORTH COUNCIL,ASC,SOCIAL SERVICES,SERVICES,TRAVEL BUDDY SCHEME,384873,130234970,08-Apr-14,882.92,Revenue,SOUTHSIDE PARTNERSHIP,SP0000692
WANDSWORTH COUNCIL,ASC,ADMINISTRATION,COMMUNICATIONS & COMP,TELECOMMUNICATIONS SLA,20279619,130236520,25-Apr-14,943.25,Revenue,BT PAYMENT SERVICES LTD,2009138
WANDSWORTH COUNCIL,ASC,SOCIAL SERVICES,HEALTH,EXT RES S28A 100% OLD LONGSTAY,384128,130241010,07-Apr-14,"6,266.83",Revenue,VOYAGE CARE LTD,SP0000366
WANDSWORTH COUNCIL,ASC,SOCIAL SERVICES,HEALTH,EXT RES S28A 100% OLD LONGSTAY,384129,130241010,07-Apr-14,"6,266.83",Revenue,VOYAGE CARE LTD,SP0000366
WANDSWORTH COUNCIL,ASC,SOCIAL SERVICES,HEALTH,EXT RES S28A 100% OLD LONGSTAY,384145,130241010,07-Apr-14,"9,174.85",Revenue,VOYAGE CARE LTD,SP0000366
WANDSWORTH COUNCIL,ASC,SOCIAL SERVICES,HEALTH,EXT RES S28A 100% OLD LONGSTAY,391932,130241010,22-Apr-14,"6,064.67",Revenue,VOYAGE CARE LTD,SP0000366
WANDSWORTH COUNCIL,ASC,SOCIAL SERVICES,HEALTH,EXT RES S28A 100% OLD LONGSTAY,391933,130241010,22-Apr-14,"6,064.67",Revenue,VOYAGE CARE LTD,SP0000366
WANDSWORTH COUNCIL,ASC,SOCIAL SERVICES,HEALTH,EXT RES S28A 100% OLD LONGSTAY,391936,130241010,22-Apr-14,"8,878.88",Revenue,VOYAGE CARE LTD,SP0000366
WANDSWORTH COUNCIL,ASC,SOCIAL SERVICES,HEALTH,EXT RES CARE S28A 100%,384130,130241090,07-Apr-14,"6,266.83",Revenue,VOYAGE CARE LTD,SP0000366
WANDSWORTH COUNCIL,ASC,SOCIAL SERVICES,HEALTH,EXT RES CARE S28A 100%,391934,130241090,22-Apr-14,"6,064.67",Revenue,VOYAGE CARE LTD,SP0000366
WANDSWORTH COUNCIL,ASC,SOCIAL SERVICES,HEALTH,EXT RES S28A OLD LONG STAY,386536,130241110,10-Apr-14,"4,351.72",Revenue,ANTHONY TOBY HOMES TRUST,SP0000755
WANDSWORTH COUNCIL,ASC,SOCIAL SERVICES,HEALTH,EXT RES S28A OLD LONG STAY,383406,130241110,07-Apr-14,"2,690.16",Revenue,ASHTON CARE,SP0000695
WANDSWORTH COUNCIL,ASC,SOCIAL SERVICES,HEALTH,EXT RES S28A OLD LONG STAY,393841,130241110,25-Apr-14,"2,975.96",Revenue,ELEANOR NURSING & SOCIAL CARE,SP0000110
WANDSWORTH COUNCIL,ASC,SOCIAL SERVICES,OTHER AGENCIES,ENABLERS/EDUCATION FEES,389490,130243280,15-Apr-14,"19,666.67",Revenue,THE MOUNT CAMPHILL COMMUNITY,SP0001422
WANDSWORTH COUNCIL,ASC,SOCIAL SERVICES,OTHER AGENCIES,EXTERNAL OUTREACH,385026,130243330,08-Apr-14,600.00,Revenue,ACT TOO LTD,SP0000855
WANDSWORTH COUNCIL,ASC,SOCIAL SERVICES,OTHER AGENCIES,EXTERNAL OUTREACH,385029,130243330,08-Apr-14,600.00,Revenue,ACT TOO LTD,SP0000855
WANDSWORTH COUNCIL,ASC,SOCIAL SERVICES,OTHER AGENCIES,EXTERNAL OUTREACH,390911,130243330,16-Apr-14,"2,185.32",Revenue,C M CARE LTD,SP0000455
WANDSWORTH COUNCIL,ASC,SOCIAL SERVICES,OTHER AGENCIES,EXTERNAL OUTREACH,390913,130243330,16-Apr-14,936.00,Revenue,C M CARE LTD,SP0000455
WANDSWORTH COUNCIL,ASC,SOCIAL SERVICES,OTHER AGENCIES,EXTERNAL OUTREACH,390914,130243330,16-Apr-14,"1,287.20",Revenue,C M CARE LTD,SP0000455
WANDSWORTH COUNCIL,ASC,SOCIAL SERVICES,OTHER AGENCIES,EXTERNAL OUTREACH,390916,130243330,16-Apr-14,576.00,Revenue,C M CARE LTD,SP0000455
WANDSWORTH COUNCIL,ASC,SOCIAL SERVICES,OTHER AGENCIES,EXTERNAL OUTREACH,390917,130243330,16-Apr-14,"1,540.00",Revenue,C M CARE LTD,SP0000455
WANDSWORTH COUNCIL,ASC,SOCIAL SERVICES,OTHER AGENCIES,EXTERNAL OUTREACH,391821,130243330,22-Apr-14,"1,906.00",Revenue,C M CARE LTD,SP0000455
WANDSWORTH COUNCIL,ASC,SOCIAL SERVICES,OTHER AGENCIES,EXTERNAL OUTREACH,385260,130243330,08-Apr-14,322.24,Revenue,GENERATE OPPORTUNITIES LTD,SP0000503
WANDSWORTH COUNCIL,ASC,SOCIAL SERVICES,OTHER AGENCIES,EXTERNAL OUTREACH,385266,130243330,08-Apr-14,717.84,Revenue,GENERATE OPPORTUNITIES LTD,SP0000503
WANDSWORTH COUNCIL,ASC,SOCIAL SERVICES,OTHER AGENCIES,EXTERNAL OUTREACH,385271,130243330,08-Apr-14,239.28,Revenue,GENERATE OPPORTUNITIES LTD,SP0000503
WANDSWORTH COUNCIL,ASC,SOCIAL SERVICES,OTHER AGENCIES,EXTERNAL OUTREACH,385272,130243330,08-Apr-14,797.60,Revenue,GENERATE OPPORTUNITIES LTD,SP0000503
WANDSWORTH COUNCIL,ASC,SOCIAL SERVICES,OTHER AGENCIES,EXTERNAL OUTREACH,385277,130243330,08-Apr-14,638.08,Revenue,GENERATE OPPORTUNITIES LTD,SP0000503
WANDSWORTH COUNCIL,ASC,SOCIAL SERVICES,OTHER AGENCIES,EXTERNAL OUTREACH,385278,130243330,08-Apr-14,797.60,Revenue,GENERATE OPPORTUNITIES LTD,SP0000503
WANDSWORTH COUNCIL,ASC,SOCIAL SERVICES,OTHER AGENCIES,EXTERNAL OUTREACH,385291,130243330,08-Apr-14,"2,233.28",Revenue,GENERATE OPPORTUNITIES LTD,SP0000503
WANDSWORTH COUNCIL,ASC,SOCIAL SERVICES,OTHER AGENCIES,EXTERNAL OUTREACH,385308,130243330,08-Apr-14,638.08,Revenue,GENERATE OPPORTUNITIES LTD,SP0000503
WANDSWORTH COUNCIL,ASC,SOCIAL SERVICES,OTHER AGENCIES,EXTERNAL OUTREACH,385310,130243330,08-Apr-14,735.52,Revenue,GENERATE OPPORTUNITIES LTD,SP0000503
WANDSWORTH COUNCIL,ASC,SOCIAL SERVICES,OTHER AGENCIES,EXTERNAL OUTREACH,385314,130243330,08-Apr-14,797.60,Revenue,GENERATE OPPORTUNITIES LTD,SP0000503
WANDSWORTH COUNCIL,ASC,SOCIAL SERVICES,OTHER AGENCIES,EXTERNAL OUTREACH,385324,130243330,08-Apr-14,322.24,Revenue,GENERATE OPPORTUNITIES LTD,SP0000503
WANDSWORTH COUNCIL,ASC,SOCIAL SERVICES,OTHER AGENCIES,EXTERNAL OUTREACH,385325,130243330,08-Apr-14,"2,500.52",Revenue,GENERATE OPPORTUNITIES LTD,SP0000503
WANDSWORTH COUNCIL,ASC,SOCIAL SERVICES,OTHER AGENCIES,EXTERNAL OUTREACH,384437,130243330,07-Apr-14,759.84,Revenue,HARINGEY ASSOCIATION FOR INDEPENDENT LIV,SP0000222
WANDSWORTH COUNCIL,ASC,SOCIAL SERVICES,OTHER AGENCIES,EXTERNAL OUTREACH,384438,130243330,07-Apr-14,"3,039.36",Revenue,HARINGEY ASSOCIATION FOR INDEPENDENT LIV,SP0000222
WANDSWORTH COUNCIL,ASC,SOCIAL SERVICES,OTHER AGENCIES,EXTERNAL OUTREACH,384441,130243330,07-Apr-14,"1,165.50",Revenue,HARINGEY ASSOCIATION FOR INDEPENDENT LIV,SP0000222
WANDSWORTH COUNCIL,ASC,SOCIAL SERVICES,OTHER AGENCIES,EXTERNAL OUTREACH,384442,130243330,07-Apr-14,628.00,Revenue,HARINGEY ASSOCIATION FOR INDEPENDENT LIV,SP0000222
WANDSWORTH COUNCIL,ASC,SOCIAL SERVICES,OTHER AGENCIES,EXTERNAL OUTREACH,384443,130243330,07-Apr-14,"1,184.70",Revenue,HARINGEY ASSOCIATION FOR INDEPENDENT LIV,SP0000222
WANDSWORTH COUNCIL,ASC,SOCIAL SERVICES,OTHER AGENCIES,EXTERNAL OUTREACH,384445,130243330,07-Apr-14,"1,980.00",Revenue,HARINGEY ASSOCIATION FOR INDEPENDENT LIV,SP0000222
WANDSWORTH COUNCIL,ASC,SOCIAL SERVICES,OTHER AGENCIES,EXTERNAL OUTREACH,384991,130243330,08-Apr-14,850.00,Revenue,PROTOCOL EDUCATION  LTD,SP0000171
WANDSWORTH COUNCIL,ASC,SOCIAL SERVICES,OTHER AGENCIES,EXTERNAL OUTREACH,391837,130243330,22-Apr-14,850.00,Revenue,PROTOCOL EDUCATION  LTD,SP0000171
WANDSWORTH COUNCIL,ASC,SOCIAL SERVICES,OTHER AGENCIES,EXTERNAL OUTREACH,392631,130243330,24-Apr-14,850.00,Revenue,PROTOCOL EDUCATION  LTD,SP0000171
WANDSWORTH COUNCIL,ASC,SOCIAL SERVICES,OTHER AGENCIES,EXTERNAL OUTREACH,396071,130243330,30-Apr-14,680.00,Revenue,PROTOCOL EDUCATION  LTD,SP0000171
WANDSWORTH COUNCIL,ASC,SOCIAL SERVICES,OTHER AGENCIES,EXTERNAL OUTREACH,386677,130243330,10-Apr-14,456.32,Revenue,RAINBOW MEDICAL SERVICES,SP0000037
WANDSWORTH COUNCIL,ASC,SOCIAL SERVICES,OTHER AGENCIES,EXTERNAL OUTREACH,386679,130243330,10-Apr-14,883.04,Revenue,RAINBOW MEDICAL SERVICES,SP0000037
WANDSWORTH COUNCIL,ASC,SOCIAL SERVICES,OTHER AGENCIES,EXTERNAL OUTREACH,391846,130243330,22-Apr-14,"4,200.00",Revenue,RELIABLE PERSONNEL LTD,SP0005657
WANDSWORTH COUNCIL,ASC,SOCIAL SERVICES,OTHER AGENCIES,EXTERNAL OUTREACH,391847,130243330,22-Apr-14,"4,200.00",Revenue,RELIABLE PERSONNEL LTD,SP0005657
WANDSWORTH COUNCIL,ASC,SOCIAL SERVICES,OTHER AGENCIES,EXTERNAL OUTREACH,391848,130243330,22-Apr-14,"4,200.00",Revenue,RELIABLE PERSONNEL LTD,SP0005657
WANDSWORTH COUNCIL,ASC,SOCIAL SERVICES,OTHER AGENCIES,EXTERNAL OUTREACH,391849,130243330,22-Apr-14,"3,360.00",Revenue,RELIABLE PERSONNEL LTD,SP0005657
WANDSWORTH COUNCIL,ASC,SOCIAL SERVICES,OTHER AGENCIES,EXTERNAL OUTREACH,391850,130243330,22-Apr-14,"3,360.00",Revenue,RELIABLE PERSONNEL LTD,SP0005657
WANDSWORTH COUNCIL,ASC,SOCIAL SERVICES,OTHER AGENCIES,EXTERNAL OUTREACH,383731,130243330,07-Apr-14,"1,440.00",Revenue,ROYAL ASSOCIATION FOR DEAF PEOPLE,SP0001251
WANDSWORTH COUNCIL,ASC,SOCIAL SERVICES,OTHER AGENCIES,EXTERNAL OUTREACH,386669,130243330,10-Apr-14,600.00,Revenue,ROYAL ASSOCIATION FOR DEAF PEOPLE,SP0001251
WANDSWORTH COUNCIL,ASC,SOCIAL SERVICES,OTHER AGENCIES,EXTERNAL OUTREACH,386670,130243330,10-Apr-14,"1,200.00",Revenue,ROYAL ASSOCIATION FOR DEAF PEOPLE,SP0001251
WANDSWORTH COUNCIL,ASC,SOCIAL SERVICES,OTHER AGENCIES,EXTERNAL OUTREACH,383732,130243330,07-Apr-14,604.80,Revenue,SHAFTESBURY HOMES AND ARETHUSA,SP0000836
WANDSWORTH COUNCIL,ASC,SOCIAL SERVICES,OTHER AGENCIES,EXTERNAL OUTREACH,383646,130243330,07-Apr-14,331.20,Revenue,THE BRANDON TRUST,SP0005337
WANDSWORTH COUNCIL,ASC,SOCIAL SERVICES,OTHER AGENCIES,EXTERNAL OUTREACH,383704,130243330,07-Apr-14,631.60,Revenue,THE BRANDON TRUST,SP0005337
WANDSWORTH COUNCIL,ASC,SOCIAL SERVICES,OTHER AGENCIES,EXTERNAL OUTREACH,383717,130243330,07-Apr-14,568.44,Revenue,THE BRANDON TRUST,SP0005337
WANDSWORTH COUNCIL,ASC,SOCIAL SERVICES,OTHER AGENCIES,EXTERNAL OUTREACH,383718,130243330,07-Apr-14,"1,010.56",Revenue,THE BRANDON TRUST,SP0005337
WANDSWORTH COUNCIL,ASC,SOCIAL SERVICES,OTHER AGENCIES,EXTERNAL OUTREACH,383719,130243330,07-Apr-14,757.92,Revenue,THE BRANDON TRUST,SP0005337
WANDSWORTH COUNCIL,ASC,SOCIAL SERVICES,OTHER AGENCIES,EXTERNAL OUTREACH,383720,130243330,07-Apr-14,252.64,Revenue,THE BRANDON TRUST,SP0005337
WANDSWORTH COUNCIL,ASC,SOCIAL SERVICES,OTHER AGENCIES,EXTERNAL OUTREACH,384402,130243330,07-Apr-14,947.40,Revenue,THE BRANDON TRUST,SP0005337
WANDSWORTH COUNCIL,ASC,SOCIAL SERVICES,OTHER AGENCIES,EXTERNAL OUTREACH,384404,130243330,07-Apr-14,"1,170.80",Revenue,THE BRANDON TRUST,SP0005337
WANDSWORTH COUNCIL,ASC,SOCIAL SERVICES,OTHER AGENCIES,EXTERNAL OUTREACH,384407,130243330,07-Apr-14,505.28,Revenue,THE BRANDON TRUST,SP0005337
WANDSWORTH COUNCIL,ASC,SOCIAL SERVICES,OTHER AGENCIES,EXTERNAL OUTREACH,390829,130243330,16-Apr-14,450.24,Revenue,THE BRANDON TRUST,SP0005337
WANDSWORTH COUNCIL,ASC,SOCIAL SERVICES,OTHER AGENCIES,INTERNAL FOSTERING,20277032,130243360,03-Apr-14,"1,807.15",Revenue,SOUTHSIDE PARTNERSHIP,2005209
WANDSWORTH COUNCIL,ASC,SOCIAL SERVICES,OTHER AGENCIES,INTERNAL FOSTERING,20277032,130243360,03-Apr-14,"-1,990.42",Revenue,SOUTHSIDE PARTNERSHIP,2005209
WANDSWORTH COUNCIL,ASC,SOCIAL SERVICES,OTHER AGENCIES,INTERNAL FOSTERING,20277032,130243360,03-Apr-14,"38,875.58",Revenue,SOUTHSIDE PARTNERSHIP,2005209
WANDSWORTH COUNCIL,ASC,SOCIAL SERVICES,OTHER AGENCIES,INTERNAL FOSTERING,20277033,130243360,03-Apr-14,"8,075.35",Revenue,SOUTHSIDE PARTNERSHIP,2005209
WANDSWORTH COUNCIL,ASC,SOCIAL SERVICES,PRIVATE,EXTERNAL DAYCARE,384969,130245290,08-Apr-14,554.04,Revenue,ACT TOO LTD,SP0000855
WANDSWORTH COUNCIL,ASC,SOCIAL SERVICES,PRIVATE,EXTERNAL DAYCARE,389680,130245290,15-Apr-14,738.72,Revenue,ACT TOO LTD,SP0000855
WANDSWORTH COUNCIL,ASC,SOCIAL SERVICES,PRIVATE,EXTERNAL DAYCARE,389684,130245290,15-Apr-14,738.72,Revenue,ACT TOO LTD,SP0000855
WANDSWORTH COUNCIL,ASC,SOCIAL SERVICES,PRIVATE,EXTERNAL DAYCARE,389690,130245290,15-Apr-14,923.40,Revenue,ACT TOO LTD,SP0000855
WANDSWORTH COUNCIL,ASC,SOCIAL SERVICES,PRIVATE,EXTERNAL DAYCARE,389693,130245290,15-Apr-14,738.72,Revenue,ACT TOO LTD,SP0000855
WANDSWORTH COUNCIL,ASC,SOCIAL SERVICES,PRIVATE,EXTERNAL DAYCARE,389697,130245290,15-Apr-14,554.04,Revenue,ACT TOO LTD,SP0000855
WANDSWORTH COUNCIL,ASC,SOCIAL SERVICES,PRIVATE,EXTERNAL DAYCARE,389698,130245290,15-Apr-14,554.04,Revenue,ACT TOO LTD,SP0000855
WANDSWORTH COUNCIL,ASC,SOCIAL SERVICES,PRIVATE,EXTERNAL DAYCARE,389699,130245290,15-Apr-14,554.04,Revenue,ACT TOO LTD,SP0000855
WANDSWORTH COUNCIL,ASC,SOCIAL SERVICES,PRIVATE,EXTERNAL DAYCARE,389700,130245290,15-Apr-14,554.04,Revenue,ACT TOO LTD,SP0000855
WANDSWORTH COUNCIL,ASC,SOCIAL SERVICES,PRIVATE,EXTERNAL DAYCARE,389701,130245290,15-Apr-14,"1,108.08",Revenue,ACT TOO LTD,SP0000855
WANDSWORTH COUNCIL,ASC,SOCIAL SERVICES,PRIVATE,EXTERNAL DAYCARE,389703,130245290,15-Apr-14,738.72,Revenue,ACT TOO LTD,SP0000855
WANDSWORTH COUNCIL,ASC,SOCIAL SERVICES,PRIVATE,EXTERNAL DAYCARE,389708,130245290,15-Apr-14,554.04,Revenue,ACT TOO LTD,SP0000855
WANDSWORTH COUNCIL,ASC,SOCIAL SERVICES,PRIVATE,EXTERNAL DAYCARE,390786,130245290,16-Apr-14,554.04,Revenue,ACT TOO LTD,SP0000855
WANDSWORTH COUNCIL,ASC,SOCIAL SERVICES,PRIVATE,EXTERNAL DAYCARE,390787,130245290,16-Apr-14,554.04,Revenue,ACT TOO LTD,SP0000855
WANDSWORTH COUNCIL,ASC,SOCIAL SERVICES,PRIVATE,EXTERNAL DAYCARE,390788,130245290,16-Apr-14,554.04,Revenue,ACT TOO LTD,SP0000855
WANDSWORTH COUNCIL,ASC,SOCIAL SERVICES,PRIVATE,EXTERNAL DAYCARE,390791,130245290,16-Apr-14,738.72,Revenue,ACT TOO LTD,SP0000855
WANDSWORTH COUNCIL,ASC,SOCIAL SERVICES,PRIVATE,EXTERNAL DAYCARE,390792,130245290,16-Apr-14,554.04,Revenue,ACT TOO LTD,SP0000855
WANDSWORTH COUNCIL,ASC,SOCIAL SERVICES,PRIVATE,EXTERNAL DAYCARE,390795,130245290,16-Apr-14,554.04,Revenue,ACT TOO LTD,SP0000855
WANDSWORTH COUNCIL,ASC,SOCIAL SERVICES,PRIVATE,EXTERNAL DAYCARE,390798,130245290,16-Apr-14,923.40,Revenue,ACT TOO LTD,SP0000855
WANDSWORTH COUNCIL,ASC,SOCIAL SERVICES,PRIVATE,EXTERNAL DAYCARE,390799,130245290,16-Apr-14,554.04,Revenue,ACT TOO LTD,SP0000855
WANDSWORTH COUNCIL,ASC,SOCIAL SERVICES,PRIVATE,EXTERNAL DAYCARE,390800,130245290,16-Apr-14,554.04,Revenue,ACT TOO LTD,SP0000855
WANDSWORTH COUNCIL,ASC,SOCIAL SERVICES,PRIVATE,EXTERNAL DAYCARE,390802,130245290,16-Apr-14,923.40,Revenue,ACT TOO LTD,SP0000855
WANDSWORTH COUNCIL,ASC,SOCIAL SERVICES,PRIVATE,EXTERNAL DAYCARE,390803,130245290,16-Apr-14,923.40,Revenue,ACT TOO LTD,SP0000855
WANDSWORTH COUNCIL,ASC,SOCIAL SERVICES,PRIVATE,EXTERNAL DAYCARE,390804,130245290,16-Apr-14,738.72,Revenue,ACT TOO LTD,SP0000855
WANDSWORTH COUNCIL,ASC,SOCIAL SERVICES,PRIVATE,EXTERNAL DAYCARE,390806,130245290,16-Apr-14,554.04,Revenue,ACT TOO LTD,SP0000855
WANDSWORTH COUNCIL,ASC,SOCIAL SERVICES,PRIVATE,EXTERNAL DAYCARE,390808,130245290,16-Apr-14,554.04,Revenue,ACT TOO LTD,SP0000855
WANDSWORTH COUNCIL,ASC,SOCIAL SERVICES,PRIVATE,EXTERNAL DAYCARE,390809,130245290,16-Apr-14,554.04,Revenue,ACT TOO LTD,SP0000855
WANDSWORTH COUNCIL,ASC,SOCIAL SERVICES,PRIVATE,EXTERNAL DAYCARE,390812,130245290,16-Apr-14,554.04,Revenue,ACT TOO LTD,SP0000855
WANDSWORTH COUNCIL,ASC,SOCIAL SERVICES,PRIVATE,EXTERNAL DAYCARE,390819,130245290,16-Apr-14,738.72,Revenue,ACT TOO LTD,SP0000855
WANDSWORTH COUNCIL,ASC,SOCIAL SERVICES,PRIVATE,EXTERNAL DAYCARE,390820,130245290,16-Apr-14,554.04,Revenue,ACT TOO LTD,SP0000855
WANDSWORTH COUNCIL,ASC,SOCIAL SERVICES,PRIVATE,EXTERNAL DAYCARE,386657,130245290,10-Apr-14,"1,149.33",Revenue,ANTHONY TOBY HOMES TRUST,SP0000755
WANDSWORTH COUNCIL,ASC,SOCIAL SERVICES,PRIVATE,EXTERNAL DAYCARE,391817,130245290,22-Apr-14,942.23,Revenue,CHATSWORTH CARE,SP0000831
WANDSWORTH COUNCIL,ASC,SOCIAL SERVICES,PRIVATE,EXTERNAL DAYCARE,389710,130245290,15-Apr-14,726.07,Revenue,CHOICES,SP0000486
WANDSWORTH COUNCIL,ASC,SOCIAL SERVICES,PRIVATE,EXTERNAL DAYCARE,383734,130245290,07-Apr-14,"1,107.68",Revenue,COUNTRY CARE,SP0000090
WANDSWORTH COUNCIL,ASC,SOCIAL SERVICES,PRIVATE,EXTERNAL DAYCARE,383735,130245290,07-Apr-14,963.20,Revenue,COUNTRY CARE,SP0000090
WANDSWORTH COUNCIL,ASC,SOCIAL SERVICES,PRIVATE,EXTERNAL DAYCARE,383736,130245290,07-Apr-14,963.20,Revenue,COUNTRY CARE,SP0000090
WANDSWORTH COUNCIL,ASC,SOCIAL SERVICES,PRIVATE,EXTERNAL DAYCARE,391810,130245290,22-Apr-14,806.04,Revenue,CRAEGMOOR FACILITIES CO LTD,SP0000306
WANDSWORTH COUNCIL,ASC,SOCIAL SERVICES,PRIVATE,EXTERNAL DAYCARE,390821,130245290,16-Apr-14,626.56,Revenue,CREST COOPERATIVE LTD,SP0000683
WANDSWORTH COUNCIL,ASC,SOCIAL SERVICES,PRIVATE,EXTERNAL DAYCARE,393984,130245290,25-Apr-14,892.50,Revenue,DORSET SCOPE,SP0000591
WANDSWORTH COUNCIL,ASC,SOCIAL SERVICES,PRIVATE,EXTERNAL DAYCARE,393986,130245290,25-Apr-14,611.00,Revenue,EAST SUSSEX COUNTY COUNCIL,SP0000427
WANDSWORTH COUNCIL,ASC,SOCIAL SERVICES,PRIVATE,EXTERNAL DAYCARE,393987,130245290,25-Apr-14,"1,554.12",Revenue,EAST SUSSEX COUNTY COUNCIL,SP0000427
WANDSWORTH COUNCIL,ASC,SOCIAL SERVICES,PRIVATE,EXTERNAL DAYCARE,385260,130245290,08-Apr-14,276.80,Revenue,GENERATE OPPORTUNITIES LTD,SP0000503
WANDSWORTH COUNCIL,ASC,SOCIAL SERVICES,PRIVATE,EXTERNAL DAYCARE,385262,130245290,08-Apr-14,576.00,Revenue,GENERATE OPPORTUNITIES LTD,SP0000503
WANDSWORTH COUNCIL,ASC,SOCIAL SERVICES,PRIVATE,EXTERNAL DAYCARE,385264,130245290,08-Apr-14,640.00,Revenue,GENERATE OPPORTUNITIES LTD,SP0000503
WANDSWORTH COUNCIL,ASC,SOCIAL SERVICES,PRIVATE,EXTERNAL DAYCARE,385271,130245290,08-Apr-14,560.00,Revenue,GENERATE OPPORTUNITIES LTD,SP0000503
WANDSWORTH COUNCIL,ASC,SOCIAL SERVICES,PRIVATE,EXTERNAL DAYCARE,385272,130245290,08-Apr-14,320.00,Revenue,GENERATE OPPORTUNITIES LTD,SP0000503
WANDSWORTH COUNCIL,ASC,SOCIAL SERVICES,PRIVATE,EXTERNAL DAYCARE,385273,130245290,08-Apr-14,576.00,Revenue,GENERATE OPPORTUNITIES LTD,SP0000503
WANDSWORTH COUNCIL,ASC,SOCIAL SERVICES,PRIVATE,EXTERNAL DAYCARE,385275,130245290,08-Apr-14,800.00,Revenue,GENERATE OPPORTUNITIES LTD,SP0000503
WANDSWORTH COUNCIL,ASC,SOCIAL SERVICES,PRIVATE,EXTERNAL DAYCARE,385283,130245290,08-Apr-14,576.00,Revenue,GENERATE OPPORTUNITIES LTD,SP0000503
WANDSWORTH COUNCIL,ASC,SOCIAL SERVICES,PRIVATE,EXTERNAL DAYCARE,385297,130245290,08-Apr-14,576.00,Revenue,GENERATE OPPORTUNITIES LTD,SP0000503
WANDSWORTH COUNCIL,ASC,SOCIAL SERVICES,PRIVATE,EXTERNAL DAYCARE,385306,130245290,08-Apr-14,560.00,Revenue,GENERATE OPPORTUNITIES LTD,SP0000503
WANDSWORTH COUNCIL,ASC,SOCIAL SERVICES,PRIVATE,EXTERNAL DAYCARE,385307,130245290,08-Apr-14,576.00,Revenue,GENERATE OPPORTUNITIES LTD,SP0000503
WANDSWORTH COUNCIL,ASC,SOCIAL SERVICES,PRIVATE,EXTERNAL DAYCARE,385311,130245290,08-Apr-14,"1,100.00",Revenue,GENERATE OPPORTUNITIES LTD,SP0000503
WANDSWORTH COUNCIL,ASC,SOCIAL SERVICES,PRIVATE,EXTERNAL DAYCARE,385324,130245290,08-Apr-14,280.00,Revenue,GENERATE OPPORTUNITIES LTD,SP0000503
WANDSWORTH COUNCIL,ASC,SOCIAL SERVICES,PRIVATE,EXTERNAL DAYCARE,389669,130245290,15-Apr-14,621.00,Revenue,HARROW MENCAP,SP0001347
WANDSWORTH COUNCIL,ASC,SOCIAL SERVICES,PRIVATE,EXTERNAL DAYCARE,20277018,130245290,03-Apr-14,"4,611.70",Revenue,LEONARD CHESHIRE,2008417
WANDSWORTH COUNCIL,ASC,SOCIAL SERVICES,PRIVATE,EXTERNAL DAYCARE,20277019,130245290,03-Apr-14,"4,611.70",Revenue,LEONARD CHESHIRE,2008417
WANDSWORTH COUNCIL,ASC,SOCIAL SERVICES,PRIVATE,EXTERNAL DAYCARE,383578,130245290,07-Apr-14,505.44,Revenue,MENCAP OPEN DOOR,SP0000832
WANDSWORTH COUNCIL,ASC,SOCIAL SERVICES,PRIVATE,EXTERNAL DAYCARE,383664,130245290,07-Apr-14,519.60,Revenue,MENCAP OPEN DOOR,SP0000832
WANDSWORTH COUNCIL,ASC,SOCIAL SERVICES,PRIVATE,EXTERNAL DAYCARE,385657,130245290,09-Apr-14,"3,700.40",Revenue,NAS SERVICES LIMITED,SP0000217
WANDSWORTH COUNCIL,ASC,SOCIAL SERVICES,PRIVATE,EXTERNAL DAYCARE,385658,130245290,09-Apr-14,"3,017.00",Revenue,NAS SERVICES LIMITED,SP0000217
WANDSWORTH COUNCIL,ASC,SOCIAL SERVICES,PRIVATE,EXTERNAL DAYCARE,385659,130245290,09-Apr-14,"3,017.00",Revenue,NAS SERVICES LIMITED,SP0000217
WANDSWORTH COUNCIL,ASC,SOCIAL SERVICES,PRIVATE,EXTERNAL DAYCARE,385663,130245290,09-Apr-14,"2,022.04",Revenue,NAS SERVICES LIMITED,SP0000217
WANDSWORTH COUNCIL,ASC,SOCIAL SERVICES,PRIVATE,EXTERNAL DAYCARE,385664,130245290,09-Apr-14,"2,194.40",Revenue,NAS SERVICES LIMITED,SP0000217
WANDSWORTH COUNCIL,ASC,SOCIAL SERVICES,PRIVATE,EXTERNAL DAYCARE,385688,130245290,09-Apr-14,864.80,Revenue,NAS SERVICES LIMITED,SP0000217
WANDSWORTH COUNCIL,ASC,SOCIAL SERVICES,PRIVATE,EXTERNAL DAYCARE,389719,130245290,15-Apr-14,"1,575.80",Revenue,NAS SERVICES LIMITED,SP0000217
WANDSWORTH COUNCIL,ASC,SOCIAL SERVICES,PRIVATE,EXTERNAL DAYCARE,389720,130245290,15-Apr-14,"3,700.40",Revenue,NAS SERVICES LIMITED,SP0000217
WANDSWORTH COUNCIL,ASC,SOCIAL SERVICES,PRIVATE,EXTERNAL DAYCARE,389721,130245290,15-Apr-14,"3,017.00",Revenue,NAS SERVICES LIMITED,SP0000217
WANDSWORTH COUNCIL,ASC,SOCIAL SERVICES,PRIVATE,EXTERNAL DAYCARE,389722,130245290,15-Apr-14,"2,303.20",Revenue,NAS SERVICES LIMITED,SP0000217
WANDSWORTH COUNCIL,ASC,SOCIAL SERVICES,PRIVATE,EXTERNAL DAYCARE,391812,130245290,22-Apr-14,"2,194.40",Revenue,NAS SERVICES LIMITED,SP0000217
WANDSWORTH COUNCIL,ASC,SOCIAL SERVICES,PRIVATE,EXTERNAL DAYCARE,391820,130245290,22-Apr-14,864.80,Revenue,NAS SERVICES LIMITED,SP0000217
WANDSWORTH COUNCIL,ASC,SOCIAL SERVICES,PRIVATE,EXTERNAL DAYCARE,389723,130245290,15-Apr-14,"2,035.28",Revenue,NORWOOD SCHOOLS LTD,SP0000332
WANDSWORTH COUNCIL,ASC,SOCIAL SERVICES,PRIVATE,EXTERNAL DAYCARE,389724,130245290,15-Apr-14,"1,980.36",Revenue,NORWOOD SCHOOLS LTD,SP0000332
WANDSWORTH COUNCIL,ASC,SOCIAL SERVICES,PRIVATE,EXTERNAL DAYCARE,385656,130245290,09-Apr-14,878.48,Revenue,ORCHARD VALE TRUST,SP0000214
WANDSWORTH COUNCIL,ASC,SOCIAL SERVICES,PRIVATE,EXTERNAL DAYCARE,389736,130245290,15-Apr-14,546.00,Revenue,PARCHMENT TRUST LTD,SP0000255
WANDSWORTH COUNCIL,ASC,SOCIAL SERVICES,PRIVATE,EXTERNAL DAYCARE,389671,130245290,15-Apr-14,"1,268.93",Revenue,RESIDENTIAL CARE SERVICES T/A FRANKLYN L,SP0000147
WANDSWORTH COUNCIL,ASC,SOCIAL SERVICES,PRIVATE,EXTERNAL DAYCARE,390756,130245290,16-Apr-14,"1,158.59",Revenue,RESIDENTIAL CARE SERVICES T/A FRANKLYN L,SP0000147
WANDSWORTH COUNCIL,ASC,SOCIAL SERVICES,PRIVATE,EXTERNAL DAYCARE,389676,130245290,15-Apr-14,"1,138.40",Revenue,RIDGEWOOD CARE SERVICES LTD,SP0000969
WANDSWORTH COUNCIL,ASC,SOCIAL SERVICES,PRIVATE,EXTERNAL DAYCARE,385660,130245290,09-Apr-14,522.20,Revenue,SCOPE,SP0000991
WANDSWORTH COUNCIL,ASC,SOCIAL SERVICES,PRIVATE,EXTERNAL DAYCARE,385661,130245290,09-Apr-14,671.40,Revenue,SCOPE,SP0000991
WANDSWORTH COUNCIL,ASC,SOCIAL SERVICES,PRIVATE,EXTERNAL DAYCARE,385662,130245290,09-Apr-14,596.80,Revenue,SCOPE,SP0000991
WANDSWORTH COUNCIL,ASC,SOCIAL SERVICES,PRIVATE,EXTERNAL DAYCARE,391840,130245290,22-Apr-14,833.52,Revenue,SCOPE,SP0000852
WANDSWORTH COUNCIL,ASC,SOCIAL SERVICES,PRIVATE,EXTERNAL DAYCARE,383608,130245290,07-Apr-14,706.08,Revenue,SHARE COMMUNITY,SP0000329
WANDSWORTH COUNCIL,ASC,SOCIAL SERVICES,PRIVATE,EXTERNAL DAYCARE,383610,130245290,07-Apr-14,941.44,Revenue,SHARE COMMUNITY,SP0000329
WANDSWORTH COUNCIL,ASC,SOCIAL SERVICES,PRIVATE,EXTERNAL DAYCARE,383612,130245290,07-Apr-14,706.08,Revenue,SHARE COMMUNITY,SP0000329
WANDSWORTH COUNCIL,ASC,SOCIAL SERVICES,PRIVATE,EXTERNAL DAYCARE,383613,130245290,07-Apr-14,677.84,Revenue,SHARE COMMUNITY,SP0000329
WANDSWORTH COUNCIL,ASC,SOCIAL SERVICES,PRIVATE,EXTERNAL DAYCARE,383614,130245290,07-Apr-14,677.84,Revenue,SHARE COMMUNITY,SP0000329
WANDSWORTH COUNCIL,ASC,SOCIAL SERVICES,PRIVATE,EXTERNAL DAYCARE,383615,130245290,07-Apr-14,"1,176.80",Revenue,SHARE COMMUNITY,SP0000329
WANDSWORTH COUNCIL,ASC,SOCIAL SERVICES,PRIVATE,EXTERNAL DAYCARE,383621,130245290,07-Apr-14,677.84,Revenue,SHARE COMMUNITY,SP0000329
WANDSWORTH COUNCIL,ASC,SOCIAL SERVICES,PRIVATE,EXTERNAL DAYCARE,383622,130245290,07-Apr-14,677.84,Revenue,SHARE COMMUNITY,SP0000329
WANDSWORTH COUNCIL,ASC,SOCIAL SERVICES,PRIVATE,EXTERNAL DAYCARE,383626,130245290,07-Apr-14,706.08,Revenue,SHARE COMMUNITY,SP0000329
WANDSWORTH COUNCIL,ASC,SOCIAL SERVICES,PRIVATE,EXTERNAL DAYCARE,383628,130245290,07-Apr-14,706.08,Revenue,SHARE COMMUNITY,SP0000329
WANDSWORTH COUNCIL,ASC,SOCIAL SERVICES,PRIVATE,EXTERNAL DAYCARE,383630,130245290,07-Apr-14,941.44,Revenue,SHARE COMMUNITY,SP0000329
WANDSWORTH COUNCIL,ASC,SOCIAL SERVICES,PRIVATE,EXTERNAL DAYCARE,383631,130245290,07-Apr-14,706.08,Revenue,SHARE COMMUNITY,SP0000329
WANDSWORTH COUNCIL,ASC,SOCIAL SERVICES,PRIVATE,EXTERNAL DAYCARE,383633,130245290,07-Apr-14,706.08,Revenue,SHARE COMMUNITY,SP0000329
WANDSWORTH COUNCIL,ASC,SOCIAL SERVICES,PRIVATE,EXTERNAL DAYCARE,383635,130245290,07-Apr-14,706.08,Revenue,SHARE COMMUNITY,SP0000329
WANDSWORTH COUNCIL,ASC,SOCIAL SERVICES,PRIVATE,EXTERNAL DAYCARE,384355,130245290,07-Apr-14,706.08,Revenue,SHARE COMMUNITY,SP0000329
WANDSWORTH COUNCIL,ASC,SOCIAL SERVICES,PRIVATE,EXTERNAL DAYCARE,384356,130245290,07-Apr-14,677.84,Revenue,SHARE COMMUNITY,SP0000329
WANDSWORTH COUNCIL,ASC,SOCIAL SERVICES,PRIVATE,EXTERNAL DAYCARE,384358,130245290,07-Apr-14,706.08,Revenue,SHARE COMMUNITY,SP0000329
WANDSWORTH COUNCIL,ASC,SOCIAL SERVICES,PRIVATE,EXTERNAL DAYCARE,384359,130245290,07-Apr-14,941.44,Revenue,SHARE COMMUNITY,SP0000329
WANDSWORTH COUNCIL,ASC,SOCIAL SERVICES,PRIVATE,EXTERNAL DAYCARE,384360,130245290,07-Apr-14,"1,129.60",Revenue,SHARE COMMUNITY,SP0000329
WANDSWORTH COUNCIL,ASC,SOCIAL SERVICES,PRIVATE,EXTERNAL DAYCARE,384361,130245290,07-Apr-14,"1,129.60",Revenue,SHARE COMMUNITY,SP0000329
WANDSWORTH COUNCIL,ASC,SOCIAL SERVICES,PRIVATE,EXTERNAL DAYCARE,384362,130245290,07-Apr-14,677.84,Revenue,SHARE COMMUNITY,SP0000329
WANDSWORTH COUNCIL,ASC,SOCIAL SERVICES,PRIVATE,EXTERNAL DAYCARE,384363,130245290,07-Apr-14,588.40,Revenue,SHARE COMMUNITY,SP0000329
WANDSWORTH COUNCIL,ASC,SOCIAL SERVICES,PRIVATE,EXTERNAL DAYCARE,384364,130245290,07-Apr-14,706.08,Revenue,SHARE COMMUNITY,SP0000329
WANDSWORTH COUNCIL,ASC,SOCIAL SERVICES,PRIVATE,EXTERNAL DAYCARE,384365,130245290,07-Apr-14,941.44,Revenue,SHARE COMMUNITY,SP0000329
WANDSWORTH COUNCIL,ASC,SOCIAL SERVICES,PRIVATE,EXTERNAL DAYCARE,384368,130245290,07-Apr-14,706.08,Revenue,SHARE COMMUNITY,SP0000329
WANDSWORTH COUNCIL,ASC,SOCIAL SERVICES,PRIVATE,EXTERNAL DAYCARE,384370,130245290,07-Apr-14,706.08,Revenue,SHARE COMMUNITY,SP0000329
WANDSWORTH COUNCIL,ASC,SOCIAL SERVICES,PRIVATE,EXTERNAL DAYCARE,384371,130245290,07-Apr-14,677.84,Revenue,SHARE COMMUNITY,SP0000329
WANDSWORTH COUNCIL,ASC,SOCIAL SERVICES,PRIVATE,EXTERNAL DAYCARE,384376,130245290,07-Apr-14,564.80,Revenue,SHARE COMMUNITY,SP0000329
WANDSWORTH COUNCIL,ASC,SOCIAL SERVICES,PRIVATE,EXTERNAL DAYCARE,384377,130245290,07-Apr-14,588.40,Revenue,SHARE COMMUNITY,SP0000329
WANDSWORTH COUNCIL,ASC,SOCIAL SERVICES,PRIVATE,EXTERNAL DAYCARE,389672,130245290,15-Apr-14,"1,057.00",Revenue,ST DAVIDS CARE IN THE COMMUNITY,SP0000379
WANDSWORTH COUNCIL,ASC,SOCIAL SERVICES,PRIVATE,EXTERNAL DAYCARE,389673,130245290,15-Apr-14,"1,057.00",Revenue,ST DAVIDS CARE IN THE COMMUNITY,SP0000379
WANDSWORTH COUNCIL,ASC,SOCIAL SERVICES,PRIVATE,EXTERNAL DAYCARE,389674,130245290,15-Apr-14,"1,057.00",Revenue,ST DAVIDS CARE IN THE COMMUNITY,SP0000379
WANDSWORTH COUNCIL,ASC,SOCIAL SERVICES,PRIVATE,EXTERNAL DAYCARE,386656,130245290,10-Apr-14,"1,586.84",Revenue,STALLCOMBE HOUSE,SP0000843
WANDSWORTH COUNCIL,ASC,SOCIAL SERVICES,PRIVATE,EXTERNAL DAYCARE,389564,130245290,15-Apr-14,125.80,Revenue,THE CHESTNUTS,SP0000182
WANDSWORTH COUNCIL,ASC,SOCIAL SERVICES,PRIVATE,EXTERNAL DAYCARE,391811,130245290,22-Apr-14,980.00,Revenue,THE MANOR,SP0000340
WANDSWORTH COUNCIL,ASC,SOCIAL SERVICES,PRIVATE,EXTERNAL DAYCARE,391815,130245290,22-Apr-14,"1,889.17",Revenue,THE REGARD PARTNERSHIP,SP0000588
WANDSWORTH COUNCIL,ASC,SOCIAL SERVICES,PRIVATE,EXTERNAL DAYCARE,391819,130245290,22-Apr-14,"1,324.31",Revenue,THE REGARD PARTNERSHIP,SP0000588
WANDSWORTH COUNCIL,ASC,SOCIAL SERVICES,PRIVATE,EXTERNAL DAYCARE,383599,130245290,07-Apr-14,528.00,Revenue,THRIVE,SP0000601
WANDSWORTH COUNCIL,ASC,SOCIAL SERVICES,PRIVATE,EXTERNAL DAYCARE,393847,130245290,25-Apr-14,527.36,Revenue,UNITED RESPONSE,SP0000797
WANDSWORTH COUNCIL,ASC,SOCIAL SERVICES,PRIVATE,EXTERNAL DAYCARE,384144,130245290,07-Apr-14,986.58,Revenue,VOYAGE CARE LTD,SP0000366
WANDSWORTH COUNCIL,ASC,SOCIAL SERVICES,PRIVATE,EXTERNAL DAYCARE,391816,130245290,22-Apr-14,578.08,Revenue,VOYAGE CARE LTD,SP0000366
WANDSWORTH COUNCIL,ASC,SOCIAL SERVICES,PRIVATE,EXTERNAL DAYCARE,391818,130245290,22-Apr-14,"1,654.08",Revenue,VOYAGE CARE LTD,SP0000366
WANDSWORTH COUNCIL,ASC,SOCIAL SERVICES,PRIVATE,EXTERNAL DAYCARE,383581,130245290,07-Apr-14,760.00,Revenue,WANDSWORTH BENGALI WELFARE ASSOCIATION,SP0000479
WANDSWORTH COUNCIL,ASC,SOCIAL SERVICES,PRIVATE,EXTERNAL DAYCARE,386654,130245290,10-Apr-14,"1,416.24",Revenue,WINSLOW COURT,SP0000886
WANDSWORTH COUNCIL,ASC,SOCIAL SERVICES,PRIVATE,EXTERNAL DAYCARE,386655,130245290,10-Apr-14,"1,416.24",Revenue,WINSLOW COURT,SP0000886
WANDSWORTH COUNCIL,ASC,SOCIAL SERVICES,PRIVATE,EXTERNAL DAYCARE,386653,130245290,10-Apr-14,"3,965.00",Revenue,WORCESTERSHIRE COUNTY COUNCIL,SP0000700
WANDSWORTH COUNCIL,ASC,SOCIAL SERVICES,PRIVATE,EXTERNAL DAYCARE,385665,130245290,09-Apr-14,632.00,Revenue,WORKSHOP 305,SP0001403
WANDSWORTH COUNCIL,ASC,SOCIAL SERVICES,PRIVATE,EXTERNAL DAYCARE,385668,130245290,09-Apr-14,552.00,Revenue,WORKSHOP 305,SP0001403
WANDSWORTH COUNCIL,ASC,SOCIAL SERVICES,PRIVATE,EXTERNAL DAYCARE,385669,130245290,09-Apr-14,828.00,Revenue,WORKSHOP 305,SP0001403
WANDSWORTH COUNCIL,ASC,SOCIAL SERVICES,PRIVATE,EXTERNAL DAYCARE,385677,130245290,09-Apr-14,944.00,Revenue,WORKSHOP 305,SP0001403
WANDSWORTH COUNCIL,ASC,SOCIAL SERVICES,PRIVATE,EXTERNAL DAYCARE,385680,130245290,09-Apr-14,708.00,Revenue,WORKSHOP 305,SP0001403
WANDSWORTH COUNCIL,ASC,SOCIAL SERVICES,PRIVATE,EXTERNAL HOMECARE,384889,130245300,08-Apr-14,"2,693.33",Revenue,CHRISTIES CARE LTD,SP0005440
WANDSWORTH COUNCIL,ASC,SOCIAL SERVICES,PRIVATE,EXTERNAL HOMECARE,395891,130245300,30-Apr-14,"2,693.33",Revenue,CHRISTIES CARE LTD,SP0005440
WANDSWORTH COUNCIL,ASC,SOCIAL SERVICES,PRIVATE,EXTERNAL HOMECARE,385037,130245300,08-Apr-14,"4,480.00",Revenue,HFH HEALTHCARE,SP0005937
WANDSWORTH COUNCIL,ASC,SOCIAL SERVICES,PRIVATE,EXTERNAL HOMECARE,395870,130245300,30-Apr-14,"1,485.60",Revenue,HFH HOMECARE,SP0001058
WANDSWORTH COUNCIL,ASC,SOCIAL SERVICES,PRIVATE,EXTERNAL HOMECARE,383571,130245300,07-Apr-14,"3,997.40",Revenue,INDEPENDENCE HOMES LTD,SP0004378
WANDSWORTH COUNCIL,ASC,SOCIAL SERVICES,PRIVATE,EXTERNAL HOMECARE,383572,130245300,07-Apr-14,"5,087.60",Revenue,INDEPENDENCE HOMES LTD,SP0004378
WANDSWORTH COUNCIL,ASC,SOCIAL SERVICES,PRIVATE,EXTERNAL HOMECARE,383573,130245300,07-Apr-14,"5,632.70",Revenue,INDEPENDENCE HOMES LTD,SP0004378
WANDSWORTH COUNCIL,ASC,SOCIAL SERVICES,PRIVATE,EXTERNAL HOMECARE,383493,130245300,07-Apr-14,604.59,Revenue,LONDON CARE PLC,SP0001035
WANDSWORTH COUNCIL,ASC,SOCIAL SERVICES,PRIVATE,EXTERNAL HOMECARE,385153,130245300,08-Apr-14,639.35,Revenue,LONDON CARE PLC,SP0001035
WANDSWORTH COUNCIL,ASC,SOCIAL SERVICES,PRIVATE,EXTERNAL HOMECARE,386572,130245300,10-Apr-14,619.60,Revenue,LONDON CARE PLC,SP0001035
WANDSWORTH COUNCIL,ASC,SOCIAL SERVICES,PRIVATE,EXTERNAL HOMECARE,384927,130245300,08-Apr-14,593.34,Revenue,MUSHKIL AASAAN LTD,SP0000978
WANDSWORTH COUNCIL,ASC,SOCIAL SERVICES,PRIVATE,EXTERNAL HOMECARE,392587,130245300,24-Apr-14,780.00,Revenue,MUSHKIL AASAAN LTD,SP0000978
WANDSWORTH COUNCIL,ASC,SOCIAL SERVICES,PRIVATE,EXTERNAL HOMECARE,20280413,130245300,30-Apr-14,"1,423.50",Revenue,PAUL EYLES,2018124
WANDSWORTH COUNCIL,ASC,SOCIAL SERVICES,PRIVATE,EXTERNAL HOMECARE,385230,130245300,08-Apr-14,504.21,Revenue,PLAN PERSONNEL,SP0000359
WANDSWORTH COUNCIL,ASC,SOCIAL SERVICES,PRIVATE,EXTERNAL HOMECARE,386625,130245300,10-Apr-14,944.00,Revenue,RAINBOW MEDICAL SERVICES,SP0000037
WANDSWORTH COUNCIL,ASC,SOCIAL SERVICES,PRIVATE,EXTERNAL HOMECARE,389660,130245300,15-Apr-14,620.43,Revenue,SOMA HEALTHCARE LTD,SP0001116
WANDSWORTH COUNCIL,ASC,SOCIAL SERVICES,PRIVATE,EXTERNAL HOMECARE,392551,130245300,24-Apr-14,708.53,Revenue,SOMA HEALTHCARE LTD,SP0001116
WANDSWORTH COUNCIL,ASC,SOCIAL SERVICES,PRIVATE,EXTERNAL HOMECARE,393915,130245300,25-Apr-14,"3,502.08",Revenue,SOMA HEALTHCARE LTD,SP0001116
WANDSWORTH COUNCIL,ASC,SOCIAL SERVICES,PRIVATE,EXTERNAL HOMECARE,393941,130245300,25-Apr-14,"3,502.08",Revenue,SOMA HEALTHCARE LTD,SP0001116
WANDSWORTH COUNCIL,ASC,SOCIAL SERVICES,PRIVATE,EXTERNAL HOMECARE,395875,130245300,30-Apr-14,"3,502.08",Revenue,SOMA HEALTHCARE LTD,SP0001116
WANDSWORTH COUNCIL,ASC,SOCIAL SERVICES,PRIVATE,EXTERNAL HOMECARE,395878,130245300,30-Apr-14,"3,502.08",Revenue,SOMA HEALTHCARE LTD,SP0001116
WANDSWORTH COUNCIL,ASC,SOCIAL SERVICES,PRIVATE,EXTERNAL NURSING CARE,386919,130245310,10-Apr-14,"2,675.12",Revenue,FOUR SEASONS HEALTH CARE LTD,SP0000422
WANDSWORTH COUNCIL,ASC,SOCIAL SERVICES,PRIVATE,EXTERNAL NURSING CARE,386739,130245310,10-Apr-14,"2,747.20",Revenue,GEORGE POTTER CARE HOME LTD,SP0000276
WANDSWORTH COUNCIL,ASC,SOCIAL SERVICES,PRIVATE,EXTERNAL NURSING CARE,389505,130245310,15-Apr-14,"6,599.63",Revenue,ROYAL HOSPITAL FOR NEURO-DISABILITY,SP0000375
WANDSWORTH COUNCIL,ASC,SOCIAL SERVICES,PRIVATE,EXTERNAL NURSING CARE,384138,130245310,07-Apr-14,"8,454.89",Revenue,SUSSEX HEALTH CARE,SP0001115
WANDSWORTH COUNCIL,ASC,SOCIAL SERVICES,PRIVATE,EXTERNAL NURSING CARE,386980,130245310,10-Apr-14,"2,787.60",Revenue,TRINITY COURT NURSING HOME,SP0001001
WANDSWORTH COUNCIL,ASC,SOCIAL SERVICES,PRIVATE,EXTERNAL NURSING CARE,384131,130245310,07-Apr-14,"7,948.40",Revenue,VOYAGE CARE LTD,SP0000366
WANDSWORTH COUNCIL,ASC,SOCIAL SERVICES,PRIVATE,EXTERNAL NURSING CARE,391726,130245310,22-Apr-14,"5,320.72",Revenue,VOYAGE CARE LTD,SP0000366
WANDSWORTH COUNCIL,ASC,SOCIAL SERVICES,PRIVATE,EXTERNAL NURSING CARE,389516,130245310,15-Apr-14,"3,065.88",Revenue,YEW TREE NURSING HOME,SP0000454
WANDSWORTH COUNCIL,ASC,SOCIAL SERVICES,PRIVATE,EXTERNAL RESIDENTIAL CARE,384139,130245330,07-Apr-14,"8,370.84",Revenue,AIMS CARE PARTNERSHIP,SP0000561
WANDSWORTH COUNCIL,ASC,SOCIAL SERVICES,PRIVATE,EXTERNAL RESIDENTIAL CARE,384170,130245330,07-Apr-14,"3,970.39",Revenue,BEECH LODGE,SP0000807
WANDSWORTH COUNCIL,ASC,SOCIAL SERVICES,PRIVATE,EXTERNAL RESIDENTIAL CARE,384171,130245330,07-Apr-14,"3,970.39",Revenue,BEECH LODGE,SP0000807
WANDSWORTH COUNCIL,ASC,SOCIAL SERVICES,PRIVATE,EXTERNAL RESIDENTIAL CARE,384172,130245330,07-Apr-14,"3,970.39",Revenue,BEECH LODGE,SP0000807
WANDSWORTH COUNCIL,ASC,SOCIAL SERVICES,PRIVATE,EXTERNAL RESIDENTIAL CARE,395821,130245330,30-Apr-14,"1,557.44",Revenue,BROOKDALE CARE,SP0000282
WANDSWORTH COUNCIL,ASC,SOCIAL SERVICES,PRIVATE,EXTERNAL RESIDENTIAL CARE,395822,130245330,30-Apr-14,"6,229.61",Revenue,BROOKDALE CARE,SP0000282
WANDSWORTH COUNCIL,ASC,SOCIAL SERVICES,PRIVATE,EXTERNAL RESIDENTIAL CARE,384179,130245330,07-Apr-14,"6,609.64",Revenue,CARE UK LEARNING DISABILITIES SERVICES L,SP0001039
WANDSWORTH COUNCIL,ASC,SOCIAL SERVICES,PRIVATE,EXTERNAL RESIDENTIAL CARE,391729,130245330,22-Apr-14,"7,702.50",Revenue,CHATSWORTH CARE,SP0000831
WANDSWORTH COUNCIL,ASC,SOCIAL SERVICES,PRIVATE,EXTERNAL RESIDENTIAL CARE,384181,130245330,07-Apr-14,"3,990.54",Revenue,CHERRY LODGE,SP0000965
WANDSWORTH COUNCIL,ASC,SOCIAL SERVICES,PRIVATE,EXTERNAL RESIDENTIAL CARE,393844,130245330,25-Apr-14,"7,271.56",Revenue,CORICH COMMUNITY CARE LTD,SP0000915
WANDSWORTH COUNCIL,ASC,SOCIAL SERVICES,PRIVATE,EXTERNAL RESIDENTIAL CARE,383410,130245330,07-Apr-14,"3,115.48",Revenue,COUNTRY CARE,SP0000090
WANDSWORTH COUNCIL,ASC,SOCIAL SERVICES,PRIVATE,EXTERNAL RESIDENTIAL CARE,391686,130245330,22-Apr-14,"3,030.47",Revenue,CRAEGMOOR FACILITIES CO LTD,SP0000306
WANDSWORTH COUNCIL,ASC,SOCIAL SERVICES,PRIVATE,EXTERNAL RESIDENTIAL CARE,383423,130245330,07-Apr-14,"3,927.63",Revenue,CRAEGMOOR OLD RECTORY BREDE PRIORY,SP0001621
WANDSWORTH COUNCIL,ASC,SOCIAL SERVICES,PRIVATE,EXTERNAL RESIDENTIAL CARE,391696,130245330,22-Apr-14,"3,900.78",Revenue,CRAEGMOOR OLD RECTORY BREDE PRIORY,SP0001621
WANDSWORTH COUNCIL,ASC,SOCIAL SERVICES,PRIVATE,EXTERNAL RESIDENTIAL CARE,383408,130245330,07-Apr-14,"3,469.00",Revenue,CSS LTD T/A  THF CARE ESTATES LTD,SP0005682
WANDSWORTH COUNCIL,ASC,SOCIAL SERVICES,PRIVATE,EXTERNAL RESIDENTIAL CARE,393842,130245330,25-Apr-14,"3,469.00",Revenue,CSS LTD T/A  THF CARE ESTATES LTD,SP0005682
WANDSWORTH COUNCIL,ASC,SOCIAL SERVICES,PRIVATE,EXTERNAL RESIDENTIAL CARE,393846,130245330,25-Apr-14,"5,856.80",Revenue,ENHAM,SP0005845
WANDSWORTH COUNCIL,ASC,SOCIAL SERVICES,PRIVATE,EXTERNAL RESIDENTIAL CARE,390693,130245330,16-Apr-14,"10,119.98",Revenue,EVERGREEN PARTNERSHIP,SP0000597
WANDSWORTH COUNCIL,ASC,SOCIAL SERVICES,PRIVATE,EXTERNAL RESIDENTIAL CARE,389551,130245330,15-Apr-14,"10,645.71",Revenue,FIRCROFT SERVICES LTD,SP0001542
WANDSWORTH COUNCIL,ASC,SOCIAL SERVICES,PRIVATE,EXTERNAL RESIDENTIAL CARE,389549,130245330,15-Apr-14,"2,267.32",Revenue,FREEWAYS TRUST LTD,SP0000793
WANDSWORTH COUNCIL,ASC,SOCIAL SERVICES,PRIVATE,EXTERNAL RESIDENTIAL CARE,389488,130245330,15-Apr-14,"2,755.56",Revenue,HASTINGS & BEXHILL MENCAP SOCIETY,SP0005380
WANDSWORTH COUNCIL,ASC,SOCIAL SERVICES,PRIVATE,EXTERNAL RESIDENTIAL CARE,383413,130245330,07-Apr-14,"2,322.52",Revenue,HEYWOODS GRANGE LTD,SP0000361
WANDSWORTH COUNCIL,ASC,SOCIAL SERVICES,PRIVATE,EXTERNAL RESIDENTIAL CARE,389554,130245330,15-Apr-14,"3,210.71",Revenue,HEYWOODS GRANGE LTD,SP0000361
WANDSWORTH COUNCIL,ASC,SOCIAL SERVICES,PRIVATE,EXTERNAL RESIDENTIAL CARE,395824,130245330,30-Apr-14,"2,328.06",Revenue,HILL PARK AUTISTIC TRUST,SP0000926
WANDSWORTH COUNCIL,ASC,SOCIAL SERVICES,PRIVATE,EXTERNAL RESIDENTIAL CARE,384133,130245330,07-Apr-14,"12,485.03",Revenue,ILG LTD,SP0001103
WANDSWORTH COUNCIL,ASC,SOCIAL SERVICES,PRIVATE,EXTERNAL RESIDENTIAL CARE,391720,130245330,22-Apr-14,"12,082.28",Revenue,ILG LTD,SP0001103
WANDSWORTH COUNCIL,ASC,SOCIAL SERVICES,PRIVATE,EXTERNAL RESIDENTIAL CARE,389521,130245330,15-Apr-14,"3,976.74",Revenue,KENILWORTH RESIDENTIAL HOME,SP0000432
WANDSWORTH COUNCIL,ASC,SOCIAL SERVICES,PRIVATE,EXTERNAL RESIDENTIAL CARE,389522,130245330,15-Apr-14,"4,147.59",Revenue,KENILWORTH RESIDENTIAL HOME,SP0000432
WANDSWORTH COUNCIL,ASC,SOCIAL SERVICES,PRIVATE,EXTERNAL RESIDENTIAL CARE,389524,130245330,15-Apr-14,"6,096.48",Revenue,LAETUS LODGE,SP0000600
WANDSWORTH COUNCIL,ASC,SOCIAL SERVICES,PRIVATE,EXTERNAL RESIDENTIAL CARE,389525,130245330,15-Apr-14,"3,759.76",Revenue,LAETUS LODGE,SP0000600
WANDSWORTH COUNCIL,ASC,SOCIAL SERVICES,PRIVATE,EXTERNAL RESIDENTIAL CARE,389526,130245330,15-Apr-14,"6,193.48",Revenue,LAETUS LODGE,SP0000600
WANDSWORTH COUNCIL,ASC,SOCIAL SERVICES,PRIVATE,EXTERNAL RESIDENTIAL CARE,389527,130245330,15-Apr-14,"3,759.76",Revenue,LAETUS LODGE,SP0000600
WANDSWORTH COUNCIL,ASC,SOCIAL SERVICES,PRIVATE,EXTERNAL RESIDENTIAL CARE,389528,130245330,15-Apr-14,"3,669.12",Revenue,LAETUS LODGE,SP0000600
WANDSWORTH COUNCIL,ASC,SOCIAL SERVICES,PRIVATE,EXTERNAL RESIDENTIAL CARE,389529,130245330,15-Apr-14,"3,759.76",Revenue,LAETUS LODGE,SP0000600
WANDSWORTH COUNCIL,ASC,SOCIAL SERVICES,PRIVATE,EXTERNAL RESIDENTIAL CARE,389530,130245330,15-Apr-14,"5,240.56",Revenue,LAETUS LODGE,SP0000600
WANDSWORTH COUNCIL,ASC,SOCIAL SERVICES,PRIVATE,EXTERNAL RESIDENTIAL CARE,392533,130245330,24-Apr-14,"4,792.20",Revenue,LAETUS LODGE,SP0000600
WANDSWORTH COUNCIL,ASC,SOCIAL SERVICES,PRIVATE,EXTERNAL RESIDENTIAL CARE,393851,130245330,25-Apr-14,"6,096.48",Revenue,LAETUS LODGE,SP0000600
WANDSWORTH COUNCIL,ASC,SOCIAL SERVICES,PRIVATE,EXTERNAL RESIDENTIAL CARE,389555,130245330,15-Apr-14,"8,051.14",Revenue,LD CARE,SP0005447
WANDSWORTH COUNCIL,ASC,SOCIAL SERVICES,PRIVATE,EXTERNAL RESIDENTIAL CARE,389556,130245330,15-Apr-14,"7,528.57",Revenue,LD CARE,SP0005447
WANDSWORTH COUNCIL,ASC,SOCIAL SERVICES,PRIVATE,EXTERNAL RESIDENTIAL CARE,389557,130245330,15-Apr-14,"7,528.57",Revenue,LD CARE,SP0005447
WANDSWORTH COUNCIL,ASC,SOCIAL SERVICES,PRIVATE,EXTERNAL RESIDENTIAL CARE,389558,130245330,15-Apr-14,"7,272.00",Revenue,LD CARE,SP0005447
WANDSWORTH COUNCIL,ASC,SOCIAL SERVICES,PRIVATE,EXTERNAL RESIDENTIAL CARE,389559,130245330,15-Apr-14,"6,800.00",Revenue,LD CARE,SP0005447
WANDSWORTH COUNCIL,ASC,SOCIAL SERVICES,PRIVATE,EXTERNAL RESIDENTIAL CARE,389560,130245330,15-Apr-14,"8,051.14",Revenue,LD CARE,SP0005447
WANDSWORTH COUNCIL,ASC,SOCIAL SERVICES,PRIVATE,EXTERNAL RESIDENTIAL CARE,389561,130245330,15-Apr-14,"7,528.57",Revenue,LD CARE,SP0005447
WANDSWORTH COUNCIL,ASC,SOCIAL SERVICES,PRIVATE,EXTERNAL RESIDENTIAL CARE,389562,130245330,15-Apr-14,"7,285.71",Revenue,LD CARE,SP0005447
WANDSWORTH COUNCIL,ASC,SOCIAL SERVICES,PRIVATE,EXTERNAL RESIDENTIAL CARE,384178,130245330,07-Apr-14,"4,242.39",Revenue,LEONARD CHESHIRE,SP0000976
WANDSWORTH COUNCIL,ASC,SOCIAL SERVICES,PRIVATE,EXTERNAL RESIDENTIAL CARE,384182,130245330,07-Apr-14,"6,323.91",Revenue,LEONARD CHESHIRE,SP0000976
WANDSWORTH COUNCIL,ASC,SOCIAL SERVICES,PRIVATE,EXTERNAL RESIDENTIAL CARE,386540,130245330,10-Apr-14,"4,644.55",Revenue,LEONARD CHESHIRE,SP0000976
WANDSWORTH COUNCIL,ASC,SOCIAL SERVICES,PRIVATE,EXTERNAL RESIDENTIAL CARE,384848,130245330,08-Apr-14,"3,899.90",Revenue,LIFESINE LTD,SP0000414
WANDSWORTH COUNCIL,ASC,SOCIAL SERVICES,PRIVATE,EXTERNAL RESIDENTIAL CARE,385583,130245330,09-Apr-14,"7,717.76",Revenue,LORING HALL LIMITED,SP0000511
WANDSWORTH COUNCIL,ASC,SOCIAL SERVICES,PRIVATE,EXTERNAL RESIDENTIAL CARE,389531,130245330,15-Apr-14,"4,613.60",Revenue,LOTUS CARE HOME LTD,SP0001006
WANDSWORTH COUNCIL,ASC,SOCIAL SERVICES,PRIVATE,EXTERNAL RESIDENTIAL CARE,383375,130245330,07-Apr-14,"11,322.96",Revenue,LOVING CARE LTD,SP0000670
WANDSWORTH COUNCIL,ASC,SOCIAL SERVICES,PRIVATE,EXTERNAL RESIDENTIAL CARE,383376,130245330,07-Apr-14,"11,282.12",Revenue,LOVING CARE LTD,SP0000670
WANDSWORTH COUNCIL,ASC,SOCIAL SERVICES,PRIVATE,EXTERNAL RESIDENTIAL CARE,383377,130245330,07-Apr-14,"11,475.84",Revenue,LOVING CARE LTD,SP0000670
WANDSWORTH COUNCIL,ASC,SOCIAL SERVICES,PRIVATE,EXTERNAL RESIDENTIAL CARE,383378,130245330,07-Apr-14,"11,017.24",Revenue,LOVING CARE LTD,SP0000670
WANDSWORTH COUNCIL,ASC,SOCIAL SERVICES,PRIVATE,EXTERNAL RESIDENTIAL CARE,383379,130245330,07-Apr-14,"11,475.88",Revenue,LOVING CARE LTD,SP0000670
WANDSWORTH COUNCIL,ASC,SOCIAL SERVICES,PRIVATE,EXTERNAL RESIDENTIAL CARE,383380,130245330,07-Apr-14,"11,170.12",Revenue,LOVING CARE LTD,SP0000670
WANDSWORTH COUNCIL,ASC,SOCIAL SERVICES,PRIVATE,EXTERNAL RESIDENTIAL CARE,383381,130245330,07-Apr-14,"11,475.88",Revenue,LOVING CARE LTD,SP0000670
WANDSWORTH COUNCIL,ASC,SOCIAL SERVICES,PRIVATE,EXTERNAL RESIDENTIAL CARE,386537,130245330,10-Apr-14,"5,239.70",Revenue,M JINGREE T/A SUNLIGHT HOUSE,SP0001024
WANDSWORTH COUNCIL,ASC,SOCIAL SERVICES,PRIVATE,EXTERNAL RESIDENTIAL CARE,391698,130245330,22-Apr-14,"7,824.77",Revenue,MACINTYRE CARE,SP0000473
WANDSWORTH COUNCIL,ASC,SOCIAL SERVICES,PRIVATE,EXTERNAL RESIDENTIAL CARE,391699,130245330,22-Apr-14,"7,824.78",Revenue,MACINTYRE CARE,SP0000473
WANDSWORTH COUNCIL,ASC,SOCIAL SERVICES,PRIVATE,EXTERNAL RESIDENTIAL CARE,391700,130245330,22-Apr-14,"7,821.77",Revenue,MACINTYRE CARE,SP0000473
WANDSWORTH COUNCIL,ASC,SOCIAL SERVICES,PRIVATE,EXTERNAL RESIDENTIAL CARE,393853,130245330,25-Apr-14,"5,207.48",Revenue,MACINTYRE CARE,SP0000473
WANDSWORTH COUNCIL,ASC,SOCIAL SERVICES,PRIVATE,EXTERNAL RESIDENTIAL CARE,393854,130245330,25-Apr-14,"3,759.64",Revenue,MACINTYRE CARE,SP0000473
WANDSWORTH COUNCIL,ASC,SOCIAL SERVICES,PRIVATE,EXTERNAL RESIDENTIAL CARE,393855,130245330,25-Apr-14,"5,429.64",Revenue,MACINTYRE CARE,SP0000473
WANDSWORTH COUNCIL,ASC,SOCIAL SERVICES,PRIVATE,EXTERNAL RESIDENTIAL CARE,393857,130245330,25-Apr-14,"3,759.64",Revenue,MACINTYRE CARE,SP0000473
WANDSWORTH COUNCIL,ASC,SOCIAL SERVICES,PRIVATE,EXTERNAL RESIDENTIAL CARE,393858,130245330,25-Apr-14,"5,192.48",Revenue,MACINTYRE CARE,SP0000473
WANDSWORTH COUNCIL,ASC,SOCIAL SERVICES,PRIVATE,EXTERNAL RESIDENTIAL CARE,393859,130245330,25-Apr-14,"3,750.72",Revenue,MACINTYRE CARE,SP0000473
WANDSWORTH COUNCIL,ASC,SOCIAL SERVICES,PRIVATE,EXTERNAL RESIDENTIAL CARE,393860,130245330,25-Apr-14,"3,813.84",Revenue,MACINTYRE CARE,SP0000473
WANDSWORTH COUNCIL,ASC,SOCIAL SERVICES,PRIVATE,EXTERNAL RESIDENTIAL CARE,393861,130245330,25-Apr-14,"4,998.84",Revenue,MACINTYRE CARE,SP0000473
WANDSWORTH COUNCIL,ASC,SOCIAL SERVICES,PRIVATE,EXTERNAL RESIDENTIAL CARE,393862,130245330,25-Apr-14,"5,097.20",Revenue,MACINTYRE CARE,SP0000473
WANDSWORTH COUNCIL,ASC,SOCIAL SERVICES,PRIVATE,EXTERNAL RESIDENTIAL CARE,393863,130245330,25-Apr-14,"2,301.48",Revenue,MACINTYRE CARE,SP0000473
WANDSWORTH COUNCIL,ASC,SOCIAL SERVICES,PRIVATE,EXTERNAL RESIDENTIAL CARE,393864,130245330,25-Apr-14,"5,027.56",Revenue,MACINTYRE CARE,SP0000473
WANDSWORTH COUNCIL,ASC,SOCIAL SERVICES,PRIVATE,EXTERNAL RESIDENTIAL CARE,393865,130245330,25-Apr-14,"5,429.76",Revenue,MACINTYRE CARE,SP0000473
WANDSWORTH COUNCIL,ASC,SOCIAL SERVICES,PRIVATE,EXTERNAL RESIDENTIAL CARE,393866,130245330,25-Apr-14,"4,909.16",Revenue,MACINTYRE CARE,SP0000473
WANDSWORTH COUNCIL,ASC,SOCIAL SERVICES,PRIVATE,EXTERNAL RESIDENTIAL CARE,393868,130245330,25-Apr-14,"4,907.76",Revenue,MACINTYRE CARE,SP0000473
WANDSWORTH COUNCIL,ASC,SOCIAL SERVICES,PRIVATE,EXTERNAL RESIDENTIAL CARE,393869,130245330,25-Apr-14,"4,907.76",Revenue,MACINTYRE CARE,SP0000473
WANDSWORTH COUNCIL,ASC,SOCIAL SERVICES,PRIVATE,EXTERNAL RESIDENTIAL CARE,393870,130245330,25-Apr-14,"4,907.76",Revenue,MACINTYRE CARE,SP0000473
WANDSWORTH COUNCIL,ASC,SOCIAL SERVICES,PRIVATE,EXTERNAL RESIDENTIAL CARE,393871,130245330,25-Apr-14,"4,907.76",Revenue,MACINTYRE CARE,SP0000473
WANDSWORTH COUNCIL,ASC,SOCIAL SERVICES,PRIVATE,EXTERNAL RESIDENTIAL CARE,389544,130245330,15-Apr-14,"2,674.35",Revenue,MENCAP,SP0000604
WANDSWORTH COUNCIL,ASC,SOCIAL SERVICES,PRIVATE,EXTERNAL RESIDENTIAL CARE,389545,130245330,15-Apr-14,668.59,Revenue,MENCAP,SP0000604
WANDSWORTH COUNCIL,ASC,SOCIAL SERVICES,PRIVATE,EXTERNAL RESIDENTIAL CARE,389546,130245330,15-Apr-14,"2,674.35",Revenue,MENCAP,SP0000604
WANDSWORTH COUNCIL,ASC,SOCIAL SERVICES,PRIVATE,EXTERNAL RESIDENTIAL CARE,389547,130245330,15-Apr-14,668.59,Revenue,MENCAP,SP0000604
WANDSWORTH COUNCIL,ASC,SOCIAL SERVICES,PRIVATE,EXTERNAL RESIDENTIAL CARE,390692,130245330,16-Apr-14,"2,931.95",Revenue,MISSION CARE,SP0000958
WANDSWORTH COUNCIL,ASC,SOCIAL SERVICES,PRIVATE,EXTERNAL RESIDENTIAL CARE,385592,130245330,09-Apr-14,"3,370.92",Revenue,NAS SERVICES LIMITED,SP0000217
WANDSWORTH COUNCIL,ASC,SOCIAL SERVICES,PRIVATE,EXTERNAL RESIDENTIAL CARE,390695,130245330,16-Apr-14,"5,487.72",Revenue,NAS SERVICES LIMITED,SP0000217
WANDSWORTH COUNCIL,ASC,SOCIAL SERVICES,PRIVATE,EXTERNAL RESIDENTIAL CARE,390951,130245330,16-Apr-14,"8,644.23",Revenue,NAS SERVICES LIMITED,SP0000217
WANDSWORTH COUNCIL,ASC,SOCIAL SERVICES,PRIVATE,EXTERNAL RESIDENTIAL CARE,390696,130245330,16-Apr-14,"6,343.96",Revenue,NORWOOD SCHOOLS LTD,SP0000332
WANDSWORTH COUNCIL,ASC,SOCIAL SERVICES,PRIVATE,EXTERNAL RESIDENTIAL CARE,390697,130245330,16-Apr-14,"6,091.12",Revenue,NORWOOD SCHOOLS LTD,SP0000332
WANDSWORTH COUNCIL,ASC,SOCIAL SERVICES,PRIVATE,EXTERNAL RESIDENTIAL CARE,385578,130245330,09-Apr-14,"1,647.40",Revenue,ORCHARD VALE TRUST,SP0000214
WANDSWORTH COUNCIL,ASC,SOCIAL SERVICES,PRIVATE,EXTERNAL RESIDENTIAL CARE,391685,130245330,22-Apr-14,"4,035.96",Revenue,PARK LODGE SOLUTIONS LTD,SP0006663
WANDSWORTH COUNCIL,ASC,SOCIAL SERVICES,PRIVATE,EXTERNAL RESIDENTIAL CARE,395828,130245330,30-Apr-14,"14,067.00",Revenue,PARTNERSHIPS IN CARE LTD,SP0000211
WANDSWORTH COUNCIL,ASC,SOCIAL SERVICES,PRIVATE,EXTERNAL RESIDENTIAL CARE,383382,130245330,07-Apr-14,"7,581.49",Revenue,PATHWAY HEALTHCARE,SP0001779
WANDSWORTH COUNCIL,ASC,SOCIAL SERVICES,PRIVATE,EXTERNAL RESIDENTIAL CARE,383424,130245330,07-Apr-14,"7,637.92",Revenue,PROGRESS HOUSING MARLOW,SP0000952
WANDSWORTH COUNCIL,ASC,SOCIAL SERVICES,PRIVATE,EXTERNAL RESIDENTIAL CARE,385587,130245330,09-Apr-14,"3,488.83",Revenue,PROSPECTS,SP0000800
WANDSWORTH COUNCIL,ASC,SOCIAL SERVICES,PRIVATE,EXTERNAL RESIDENTIAL CARE,383383,130245330,07-Apr-14,"8,576.72",Revenue,RALEIGH HOUSE LTD,SP0000760
WANDSWORTH COUNCIL,ASC,SOCIAL SERVICES,PRIVATE,EXTERNAL RESIDENTIAL CARE,383384,130245330,07-Apr-14,"7,763.28",Revenue,RALEIGH HOUSE LTD,SP0000760
WANDSWORTH COUNCIL,ASC,SOCIAL SERVICES,PRIVATE,EXTERNAL RESIDENTIAL CARE,389489,130245330,15-Apr-14,"1,417.20",Revenue,REDACTED PERSONAL DATA,SP0000931
WANDSWORTH COUNCIL,ASC,SOCIAL SERVICES,PRIVATE,EXTERNAL RESIDENTIAL CARE,384147,130245330,07-Apr-14,"4,453.15",Revenue,RESIDENTIAL CARE SERVICES T/A FRANKLYN L,SP0000147
WANDSWORTH COUNCIL,ASC,SOCIAL SERVICES,PRIVATE,EXTERNAL RESIDENTIAL CARE,391727,130245330,22-Apr-14,"6,006.64",Revenue,RESIDENTIAL COMMUNITY CARE,SP0000315
WANDSWORTH COUNCIL,ASC,SOCIAL SERVICES,PRIVATE,EXTERNAL RESIDENTIAL CARE,389513,130245330,15-Apr-14,"6,493.56",Revenue,RIDGEWOOD CARE SERVICES LTD,SP0000969
WANDSWORTH COUNCIL,ASC,SOCIAL SERVICES,PRIVATE,EXTERNAL RESIDENTIAL CARE,385584,130245330,09-Apr-14,"5,839.18",Revenue,ROYAL MENCAP SOCIETY,SP0000842
WANDSWORTH COUNCIL,ASC,SOCIAL SERVICES,PRIVATE,EXTERNAL RESIDENTIAL CARE,385585,130245330,09-Apr-14,"4,196.18",Revenue,ROYAL MENCAP SOCIETY,SP0000842
WANDSWORTH COUNCIL,ASC,SOCIAL SERVICES,PRIVATE,EXTERNAL RESIDENTIAL CARE,390694,130245330,16-Apr-14,"7,363.12",Revenue,ROYAL MENCAP SOCIETY,SP0000842
WANDSWORTH COUNCIL,ASC,SOCIAL SERVICES,PRIVATE,EXTERNAL RESIDENTIAL CARE,386691,130245330,10-Apr-14,"2,162.32",Revenue,SANCTUARY CARE LTD,SP0000121
WANDSWORTH COUNCIL,ASC,SOCIAL SERVICES,PRIVATE,EXTERNAL RESIDENTIAL CARE,383391,130245330,07-Apr-14,"7,529.94",Revenue,SEEABILITY,SP0000572
WANDSWORTH COUNCIL,ASC,SOCIAL SERVICES,PRIVATE,EXTERNAL RESIDENTIAL CARE,383402,130245330,07-Apr-14,"8,720.00",Revenue,SPRING LAKE,SP0000223
WANDSWORTH COUNCIL,ASC,SOCIAL SERVICES,PRIVATE,EXTERNAL RESIDENTIAL CARE,383403,130245330,07-Apr-14,"7,600.00",Revenue,SPRING LAKE,SP0000223
WANDSWORTH COUNCIL,ASC,SOCIAL SERVICES,PRIVATE,EXTERNAL RESIDENTIAL CARE,383404,130245330,07-Apr-14,"8,720.00",Revenue,SPRING LAKE,SP0000223
WANDSWORTH COUNCIL,ASC,SOCIAL SERVICES,PRIVATE,EXTERNAL RESIDENTIAL CARE,383405,130245330,07-Apr-14,"7,600.00",Revenue,SPRING LAKE,SP0000223
WANDSWORTH COUNCIL,ASC,SOCIAL SERVICES,PRIVATE,EXTERNAL RESIDENTIAL CARE,389480,130245330,15-Apr-14,"2,107.86",Revenue,ST DAVIDS CARE IN THE COMMUNITY,SP0000379
WANDSWORTH COUNCIL,ASC,SOCIAL SERVICES,PRIVATE,EXTERNAL RESIDENTIAL CARE,389481,130245330,15-Apr-14,"2,540.45",Revenue,ST DAVIDS CARE IN THE COMMUNITY,SP0000379
WANDSWORTH COUNCIL,ASC,SOCIAL SERVICES,PRIVATE,EXTERNAL RESIDENTIAL CARE,389482,130245330,15-Apr-14,"2,107.86",Revenue,ST DAVIDS CARE IN THE COMMUNITY,SP0000379
WANDSWORTH COUNCIL,ASC,SOCIAL SERVICES,PRIVATE,EXTERNAL RESIDENTIAL CARE,389509,130245330,15-Apr-14,"2,625.13",Revenue,ST DAVIDS CARE IN THE COMMUNITY,SP0000379
WANDSWORTH COUNCIL,ASC,SOCIAL SERVICES,PRIVATE,EXTERNAL RESIDENTIAL CARE,384152,130245330,07-Apr-14,"3,269.48",Revenue,ST MARYS RESIDENTIAL HOME,SP0000215
WANDSWORTH COUNCIL,ASC,SOCIAL SERVICES,PRIVATE,EXTERNAL RESIDENTIAL CARE,384153,130245330,07-Apr-14,"3,723.12",Revenue,ST MARYS RESIDENTIAL HOME,SP0000215
WANDSWORTH COUNCIL,ASC,SOCIAL SERVICES,PRIVATE,EXTERNAL RESIDENTIAL CARE,384154,130245330,07-Apr-14,"3,898.73",Revenue,ST MARYS RESIDENTIAL HOME,SP0000215
WANDSWORTH COUNCIL,ASC,SOCIAL SERVICES,PRIVATE,EXTERNAL RESIDENTIAL CARE,384155,130245330,07-Apr-14,"5,127.48",Revenue,ST MARYS RESIDENTIAL HOME,SP0000215
WANDSWORTH COUNCIL,ASC,SOCIAL SERVICES,PRIVATE,EXTERNAL RESIDENTIAL CARE,384156,130245330,07-Apr-14,"3,569.82",Revenue,ST MARYS RESIDENTIAL HOME,SP0000215
WANDSWORTH COUNCIL,ASC,SOCIAL SERVICES,PRIVATE,EXTERNAL RESIDENTIAL CARE,384157,130245330,07-Apr-14,"3,711.63",Revenue,ST MARYS RESIDENTIAL HOME,SP0000215
WANDSWORTH COUNCIL,ASC,SOCIAL SERVICES,PRIVATE,EXTERNAL RESIDENTIAL CARE,384158,130245330,07-Apr-14,"3,130.64",Revenue,ST MARYS RESIDENTIAL HOME,SP0000215
WANDSWORTH COUNCIL,ASC,SOCIAL SERVICES,PRIVATE,EXTERNAL RESIDENTIAL CARE,384159,130245330,07-Apr-14,"5,127.48",Revenue,ST MARYS RESIDENTIAL HOME,SP0000215
WANDSWORTH COUNCIL,ASC,SOCIAL SERVICES,PRIVATE,EXTERNAL RESIDENTIAL CARE,384160,130245330,07-Apr-14,"3,619.78",Revenue,ST MARYS RESIDENTIAL HOME,SP0000215
WANDSWORTH COUNCIL,ASC,SOCIAL SERVICES,PRIVATE,EXTERNAL RESIDENTIAL CARE,384161,130245330,07-Apr-14,"2,313.48",Revenue,ST MARYS RESIDENTIAL HOME,SP0000215
WANDSWORTH COUNCIL,ASC,SOCIAL SERVICES,PRIVATE,EXTERNAL RESIDENTIAL CARE,384162,130245330,07-Apr-14,"3,801.92",Revenue,ST MARYS RESIDENTIAL HOME,SP0000215
WANDSWORTH COUNCIL,ASC,SOCIAL SERVICES,PRIVATE,EXTERNAL RESIDENTIAL CARE,384163,130245330,07-Apr-14,"2,313.48",Revenue,ST MARYS RESIDENTIAL HOME,SP0000215
WANDSWORTH COUNCIL,ASC,SOCIAL SERVICES,PRIVATE,EXTERNAL RESIDENTIAL CARE,384164,130245330,07-Apr-14,"3,961.80",Revenue,ST MARYS RESIDENTIAL HOME,SP0000215
WANDSWORTH COUNCIL,ASC,SOCIAL SERVICES,PRIVATE,EXTERNAL RESIDENTIAL CARE,384165,130245330,07-Apr-14,"3,582.71",Revenue,ST MARYS RESIDENTIAL HOME,SP0000215
WANDSWORTH COUNCIL,ASC,SOCIAL SERVICES,PRIVATE,EXTERNAL RESIDENTIAL CARE,384166,130245330,07-Apr-14,"3,582.71",Revenue,ST MARYS RESIDENTIAL HOME,SP0000215
WANDSWORTH COUNCIL,ASC,SOCIAL SERVICES,PRIVATE,EXTERNAL RESIDENTIAL CARE,389532,130245330,15-Apr-14,"3,723.12",Revenue,ST MARYS RESIDENTIAL HOME,SP0000215
WANDSWORTH COUNCIL,ASC,SOCIAL SERVICES,PRIVATE,EXTERNAL RESIDENTIAL CARE,391701,130245330,22-Apr-14,"3,269.48",Revenue,ST MARYS RESIDENTIAL HOME,SP0000215
WANDSWORTH COUNCIL,ASC,SOCIAL SERVICES,PRIVATE,EXTERNAL RESIDENTIAL CARE,391702,130245330,22-Apr-14,"3,723.12",Revenue,ST MARYS RESIDENTIAL HOME,SP0000215
WANDSWORTH COUNCIL,ASC,SOCIAL SERVICES,PRIVATE,EXTERNAL RESIDENTIAL CARE,391703,130245330,22-Apr-14,"3,898.74",Revenue,ST MARYS RESIDENTIAL HOME,SP0000215
WANDSWORTH COUNCIL,ASC,SOCIAL SERVICES,PRIVATE,EXTERNAL RESIDENTIAL CARE,391704,130245330,22-Apr-14,"5,127.49",Revenue,ST MARYS RESIDENTIAL HOME,SP0000215
WANDSWORTH COUNCIL,ASC,SOCIAL SERVICES,PRIVATE,EXTERNAL RESIDENTIAL CARE,391705,130245330,22-Apr-14,"3,569.83",Revenue,ST MARYS RESIDENTIAL HOME,SP0000215
WANDSWORTH COUNCIL,ASC,SOCIAL SERVICES,PRIVATE,EXTERNAL RESIDENTIAL CARE,391706,130245330,22-Apr-14,"3,711.64",Revenue,ST MARYS RESIDENTIAL HOME,SP0000215
WANDSWORTH COUNCIL,ASC,SOCIAL SERVICES,PRIVATE,EXTERNAL RESIDENTIAL CARE,391707,130245330,22-Apr-14,"3,130.63",Revenue,ST MARYS RESIDENTIAL HOME,SP0000215
WANDSWORTH COUNCIL,ASC,SOCIAL SERVICES,PRIVATE,EXTERNAL RESIDENTIAL CARE,391708,130245330,22-Apr-14,"5,127.49",Revenue,ST MARYS RESIDENTIAL HOME,SP0000215
WANDSWORTH COUNCIL,ASC,SOCIAL SERVICES,PRIVATE,EXTERNAL RESIDENTIAL CARE,391709,130245330,22-Apr-14,"3,627.34",Revenue,ST MARYS RESIDENTIAL HOME,SP0000215
WANDSWORTH COUNCIL,ASC,SOCIAL SERVICES,PRIVATE,EXTERNAL RESIDENTIAL CARE,391710,130245330,22-Apr-14,"2,313.49",Revenue,ST MARYS RESIDENTIAL HOME,SP0000215
WANDSWORTH COUNCIL,ASC,SOCIAL SERVICES,PRIVATE,EXTERNAL RESIDENTIAL CARE,391711,130245330,22-Apr-14,"3,801.93",Revenue,ST MARYS RESIDENTIAL HOME,SP0000215
WANDSWORTH COUNCIL,ASC,SOCIAL SERVICES,PRIVATE,EXTERNAL RESIDENTIAL CARE,391712,130245330,22-Apr-14,"3,961.79",Revenue,ST MARYS RESIDENTIAL HOME,SP0000215
WANDSWORTH COUNCIL,ASC,SOCIAL SERVICES,PRIVATE,EXTERNAL RESIDENTIAL CARE,391713,130245330,22-Apr-14,"3,582.72",Revenue,ST MARYS RESIDENTIAL HOME,SP0000215
WANDSWORTH COUNCIL,ASC,SOCIAL SERVICES,PRIVATE,EXTERNAL RESIDENTIAL CARE,386535,130245330,10-Apr-14,"3,259.91",Revenue,STALLCOMBE HOUSE,SP0000843
WANDSWORTH COUNCIL,ASC,SOCIAL SERVICES,PRIVATE,EXTERNAL RESIDENTIAL CARE,383412,130245330,07-Apr-14,"6,409.68",Revenue,THE BRANDON TRUST,SP0005337
WANDSWORTH COUNCIL,ASC,SOCIAL SERVICES,PRIVATE,EXTERNAL RESIDENTIAL CARE,389564,130245330,15-Apr-14,"4,593.96",Revenue,THE CHESTNUTS,SP0000182
WANDSWORTH COUNCIL,ASC,SOCIAL SERVICES,PRIVATE,EXTERNAL RESIDENTIAL CARE,389565,130245330,15-Apr-14,"1,388.80",Revenue,THE CHESTNUTS,SP0000182
WANDSWORTH COUNCIL,ASC,SOCIAL SERVICES,PRIVATE,EXTERNAL RESIDENTIAL CARE,389566,130245330,15-Apr-14,"1,073.14",Revenue,THE CHESTNUTS,SP0000182
WANDSWORTH COUNCIL,ASC,SOCIAL SERVICES,PRIVATE,EXTERNAL RESIDENTIAL CARE,386828,130245330,10-Apr-14,"2,598.84",Revenue,THE LYLE PARK TRUST,SP0000070
WANDSWORTH COUNCIL,ASC,SOCIAL SERVICES,PRIVATE,EXTERNAL RESIDENTIAL CARE,385577,130245330,09-Apr-14,"10,060.78",Revenue,THE MAPLES,SP0000154
WANDSWORTH COUNCIL,ASC,SOCIAL SERVICES,PRIVATE,EXTERNAL RESIDENTIAL CARE,393850,130245330,25-Apr-14,"10,060.78",Revenue,THE MAPLES,SP0000154
WANDSWORTH COUNCIL,ASC,SOCIAL SERVICES,PRIVATE,EXTERNAL RESIDENTIAL CARE,391715,130245330,22-Apr-14,"7,156.57",Revenue,THE REGARD PARTNERSHIP,SP0000588
WANDSWORTH COUNCIL,ASC,SOCIAL SERVICES,PRIVATE,EXTERNAL RESIDENTIAL CARE,391716,130245330,22-Apr-14,"7,040.11",Revenue,THE REGARD PARTNERSHIP,SP0000588
WANDSWORTH COUNCIL,ASC,SOCIAL SERVICES,PRIVATE,EXTERNAL RESIDENTIAL CARE,391717,130245330,22-Apr-14,"6,460.96",Revenue,THE REGARD PARTNERSHIP,SP0000588
WANDSWORTH COUNCIL,ASC,SOCIAL SERVICES,PRIVATE,EXTERNAL RESIDENTIAL CARE,391718,130245330,22-Apr-14,"6,736.46",Revenue,THE REGARD PARTNERSHIP,SP0000588
WANDSWORTH COUNCIL,ASC,SOCIAL SERVICES,PRIVATE,EXTERNAL RESIDENTIAL CARE,391719,130245330,22-Apr-14,"6,725.69",Revenue,THE REGARD PARTNERSHIP,SP0000588
WANDSWORTH COUNCIL,ASC,SOCIAL SERVICES,PRIVATE,EXTERNAL RESIDENTIAL CARE,391732,130245330,22-Apr-14,"7,527.92",Revenue,THE REGARD PARTNERSHIP,SP0000588
WANDSWORTH COUNCIL,ASC,SOCIAL SERVICES,PRIVATE,EXTERNAL RESIDENTIAL CARE,389514,130245330,15-Apr-14,"2,493.34",Revenue,THE WELL HOUSE,SP0000448
WANDSWORTH COUNCIL,ASC,SOCIAL SERVICES,PRIVATE,EXTERNAL RESIDENTIAL CARE,389515,130245330,15-Apr-14,"2,359.01",Revenue,THE WELL HOUSE,SP0000448
WANDSWORTH COUNCIL,ASC,SOCIAL SERVICES,PRIVATE,EXTERNAL RESIDENTIAL CARE,393903,130245330,25-Apr-14,"2,160.82",Revenue,THE WELL HOUSE,SP0000448
WANDSWORTH COUNCIL,ASC,SOCIAL SERVICES,PRIVATE,EXTERNAL RESIDENTIAL CARE,389533,130245330,15-Apr-14,"7,395.80",Revenue,TOTTERDOWN,SP0001113
WANDSWORTH COUNCIL,ASC,SOCIAL SERVICES,PRIVATE,EXTERNAL RESIDENTIAL CARE,389534,130245330,15-Apr-14,"3,671.24",Revenue,TOTTERDOWN,SP0001113
WANDSWORTH COUNCIL,ASC,SOCIAL SERVICES,PRIVATE,EXTERNAL RESIDENTIAL CARE,384140,130245330,07-Apr-14,"5,204.37",Revenue,TRACS,SP0000914
WANDSWORTH COUNCIL,ASC,SOCIAL SERVICES,PRIVATE,EXTERNAL RESIDENTIAL CARE,384142,130245330,07-Apr-14,"6,091.76",Revenue,VOYAGE CARE LTD,SP0000366
WANDSWORTH COUNCIL,ASC,SOCIAL SERVICES,PRIVATE,EXTERNAL RESIDENTIAL CARE,384143,130245330,07-Apr-14,"6,127.81",Revenue,VOYAGE CARE LTD,SP0000366
WANDSWORTH COUNCIL,ASC,SOCIAL SERVICES,PRIVATE,EXTERNAL RESIDENTIAL CARE,384144,130245330,07-Apr-14,"6,414.72",Revenue,VOYAGE CARE LTD,SP0000366
WANDSWORTH COUNCIL,ASC,SOCIAL SERVICES,PRIVATE,EXTERNAL RESIDENTIAL CARE,391721,130245330,22-Apr-14,"7,444.37",Revenue,VOYAGE CARE LTD,SP0000366
WANDSWORTH COUNCIL,ASC,SOCIAL SERVICES,PRIVATE,EXTERNAL RESIDENTIAL CARE,391730,130245330,22-Apr-14,"5,930.14",Revenue,VOYAGE CARE LTD,SP0000366
WANDSWORTH COUNCIL,ASC,SOCIAL SERVICES,PRIVATE,EXTERNAL RESIDENTIAL CARE,391731,130245330,22-Apr-14,"7,766.72",Revenue,VOYAGE CARE LTD,SP0000366
WANDSWORTH COUNCIL,ASC,SOCIAL SERVICES,PRIVATE,EXTERNAL RESIDENTIAL CARE,391935,130245330,22-Apr-14,"5,895.25",Revenue,VOYAGE CARE LTD,SP0000366
WANDSWORTH COUNCIL,ASC,SOCIAL SERVICES,PRIVATE,EXTERNAL RESIDENTIAL CARE,385586,130245330,09-Apr-14,"4,831.44",Revenue,WHITE ROSE CARE,SP0000780
WANDSWORTH COUNCIL,ASC,SOCIAL SERVICES,PRIVATE,EXTERNAL RESIDENTIAL CARE,386541,130245330,10-Apr-14,"5,543.92",Revenue,WINSLOW COURT,SP0000886
WANDSWORTH COUNCIL,ASC,SOCIAL SERVICES,PRIVATE,EXTERNAL RESIDENTIAL CARE,386542,130245330,10-Apr-14,"5,761.68",Revenue,WINSLOW COURT,SP0000886
WANDSWORTH COUNCIL,ASC,SOCIAL SERVICES,PRIVATE,EXTERNAL RESI RESPITE CARE,391728,130245340,22-Apr-14,"2,529.47",Revenue,TRINITY COURT NURSING HOME,SP0001001
WANDSWORTH COUNCIL,ASC,SOCIAL SERVICES,PRIVATE,RESPITE CARE AT HOME -VOUCHERS,386626,130245510,10-Apr-14,"1,018.02",Revenue,RAINBOW MEDICAL SERVICES,SP0000037
WANDSWORTH COUNCIL,ASC,SOCIAL SERVICES,PRIVATE,ONE TO ONE CARE,393845,130246220,25-Apr-14,"1,600.44",Revenue,CORICH COMMUNITY CARE LTD,SP0000915
WANDSWORTH COUNCIL,ASC,SOCIAL SERVICES,PRIVATE,ONE TO ONE CARE,391842,130246220,22-Apr-14,"3,321.43",Revenue,CRAEGMOOR OLD RECTORY BREDE PRIORY,SP0001621
WANDSWORTH COUNCIL,ASC,SOCIAL SERVICES,PRIVATE,ONE TO ONE CARE,391822,130246220,22-Apr-14,620.93,Revenue,FRONTIER SUPPORT SERVICES LTD,SP0001132
WANDSWORTH COUNCIL,ASC,SOCIAL SERVICES,PRIVATE,ONE TO ONE CARE,391825,130246220,22-Apr-14,716.24,Revenue,FRONTIER SUPPORT SERVICES LTD,SP0001132
WANDSWORTH COUNCIL,ASC,SOCIAL SERVICES,PRIVATE,ONE TO ONE CARE,396024,130246220,30-Apr-14,900.00,Revenue,HILL PARK AUTISTIC TRUST,SP0000926
WANDSWORTH COUNCIL,ASC,SOCIAL SERVICES,PRIVATE,ONE TO ONE CARE,385686,130246220,09-Apr-14,629.64,Revenue,LARKFIELD HALL LTD T/A PEPENBURY,SP0001378
WANDSWORTH COUNCIL,ASC,SOCIAL SERVICES,PRIVATE,ONE TO ONE CARE,385687,130246220,09-Apr-14,802.08,Revenue,LARKFIELD HALL LTD T/A PEPENBURY,SP0001378
WANDSWORTH COUNCIL,ASC,SOCIAL SERVICES,PRIVATE,ONE TO ONE CARE,385024,130246220,08-Apr-14,"1,350.52",Revenue,MACINTYRE CARE,SP0000473
WANDSWORTH COUNCIL,ASC,SOCIAL SERVICES,PRIVATE,ONE TO ONE CARE,385025,130246220,08-Apr-14,"1,350.52",Revenue,MACINTYRE CARE,SP0000473
WANDSWORTH COUNCIL,ASC,SOCIAL SERVICES,PRIVATE,ONE TO ONE CARE,394005,130246220,25-Apr-14,"1,350.52",Revenue,MACINTYRE CARE,SP0000473
WANDSWORTH COUNCIL,ASC,SOCIAL SERVICES,PRIVATE,ONE TO ONE CARE,394006,130246220,25-Apr-14,"1,910.04",Revenue,MACINTYRE CARE,SP0000473
WANDSWORTH COUNCIL,ASC,SOCIAL SERVICES,PRIVATE,ONE TO ONE CARE,394007,130246220,25-Apr-14,"1,350.52",Revenue,MACINTYRE CARE,SP0000473
WANDSWORTH COUNCIL,ASC,SOCIAL SERVICES,PRIVATE,ONE TO ONE CARE,394008,130246220,25-Apr-14,"1,350.52",Revenue,MACINTYRE CARE,SP0000473
WANDSWORTH COUNCIL,ASC,SOCIAL SERVICES,PRIVATE,ONE TO ONE CARE,394009,130246220,25-Apr-14,694.56,Revenue,MACINTYRE CARE,SP0000473
WANDSWORTH COUNCIL,ASC,SOCIAL SERVICES,PRIVATE,ONE TO ONE CARE,386673,130246220,10-Apr-14,"2,056.08",Revenue,RAINBOW MEDICAL SERVICES,SP0000037
WANDSWORTH COUNCIL,ASC,SOCIAL SERVICES,PRIVATE,ONE TO ONE CARE,386675,130246220,10-Apr-14,914.40,Revenue,RAINBOW MEDICAL SERVICES,SP0000037
WANDSWORTH COUNCIL,ASC,SOCIAL SERVICES,PRIVATE,ONE TO ONE CARE,386676,130246220,10-Apr-14,"2,133.60",Revenue,RAINBOW MEDICAL SERVICES,SP0000037
WANDSWORTH COUNCIL,ASC,SOCIAL SERVICES,PRIVATE,ONE TO ONE CARE,386678,130246220,10-Apr-14,"1,553.60",Revenue,RAINBOW MEDICAL SERVICES,SP0000037
WANDSWORTH COUNCIL,ASC,SOCIAL SERVICES,PRIVATE,ONE TO ONE CARE,391727,130246220,22-Apr-14,"1,900.50",Revenue,RESIDENTIAL COMMUNITY CARE,SP0000315
WANDSWORTH COUNCIL,ASC,SOCIAL SERVICES,PRIVATE,ONE TO ONE CARE,391843,130246220,22-Apr-14,648.83,Revenue,ST MARYS RESIDENTIAL HOME,SP0000215
WANDSWORTH COUNCIL,ASC,SOCIAL SERVICES,PRIVATE,ONE TO ONE CARE,391844,130246220,22-Apr-14,693.78,Revenue,ST MARYS RESIDENTIAL HOME,SP0000215
WANDSWORTH COUNCIL,ASC,SOCIAL SERVICES,PRIVATE,ONE TO ONE CARE,383644,130246220,07-Apr-14,324.00,Revenue,THE BRANDON TRUST,SP0005337
WANDSWORTH COUNCIL,ASC,SOCIAL SERVICES,PRIVATE,ONE TO ONE CARE,383681,130246220,07-Apr-14,"1,987.20",Revenue,THE BRANDON TRUST,SP0005337
WANDSWORTH COUNCIL,ASC,SOCIAL SERVICES,PRIVATE,ONE TO ONE CARE,383682,130246220,07-Apr-14,"1,312.00",Revenue,THE BRANDON TRUST,SP0005337
WANDSWORTH COUNCIL,ASC,SOCIAL SERVICES,PRIVATE,ONE TO ONE CARE,383685,130246220,07-Apr-14,"2,450.88",Revenue,THE BRANDON TRUST,SP0005337
WANDSWORTH COUNCIL,ASC,SOCIAL SERVICES,PRIVATE,ONE TO ONE CARE,384418,130246220,07-Apr-14,600.04,Revenue,THE BRANDON TRUST,SP0005337
WANDSWORTH COUNCIL,ASC,SOCIAL SERVICES,PRIVATE,ONE TO ONE CARE,384432,130246220,07-Apr-14,331.20,Revenue,THE BRANDON TRUST,SP0005337
WANDSWORTH COUNCIL,ASC,SOCIAL SERVICES,PRIVATE,ONE TO ONE CARE,384434,130246220,07-Apr-14,331.20,Revenue,THE BRANDON TRUST,SP0005337
WANDSWORTH COUNCIL,ASC,SOCIAL SERVICES,PRIVATE,ONE TO ONE CARE,385034,130246220,08-Apr-14,114.80,Revenue,THE BRANDON TRUST,SP0005337
WANDSWORTH COUNCIL,ASC,SOCIAL SERVICES,PRIVATE,ONE TO ONE CARE,389740,130246220,15-Apr-14,720.00,Revenue,THE CHESTNUTS,SP0000182
WANDSWORTH COUNCIL,ASC,SOCIAL SERVICES,PRIVATE,ONE TO ONE CARE,389734,130246220,15-Apr-14,"1,597.44",Revenue,TOTTERDOWN,SP0001113
WANDSWORTH COUNCIL,ASC,SOCIAL SERVICES,PRIVATE,ONE TO ONE CARE,383793,130246220,07-Apr-14,"1,062.86",Revenue,VOYAGE CARE LTD,SP0000366
WANDSWORTH COUNCIL,ASC,SOCIAL SERVICES,PRIVATE,ONE TO ONE CARE,391851,130246220,22-Apr-14,"1,028.57",Revenue,VOYAGE CARE LTD,SP0000366
WANDSWORTH COUNCIL,ASC,SOCIAL SERVICES,VOL ASS,SUPPORTED HOUSING PROGRAMME,392628,130248030,24-Apr-14,"1,140.00",Revenue,ACT TOO LTD,SP0000855
WANDSWORTH COUNCIL,ASC,SOCIAL SERVICES,VOL ASS,SUPPORTED HOUSING PROGRAMME,392629,130248030,24-Apr-14,"1,140.00",Revenue,ACT TOO LTD,SP0000855
WANDSWORTH COUNCIL,ASC,SOCIAL SERVICES,VOL ASS,SUPPORTED HOUSING PROGRAMME,392630,130248030,24-Apr-14,"1,140.00",Revenue,ACT TOO LTD,SP0000855
WANDSWORTH COUNCIL,ASC,SOCIAL SERVICES,VOL ASS,SUPPORTED HOUSING PROGRAMME,390915,130248030,16-Apr-14,"1,964.20",Revenue,C M CARE LTD,SP0000455
WANDSWORTH COUNCIL,ASC,SOCIAL SERVICES,VOL ASS,SUPPORTED HOUSING PROGRAMME,396066,130248030,30-Apr-14,"4,772.00",Revenue,CARE UNLIMITED DOMCARE LIMITED,SP0005359
WANDSWORTH COUNCIL,ASC,SOCIAL SERVICES,VOL ASS,SUPPORTED HOUSING PROGRAMME,391823,130248030,22-Apr-14,"1,535.48",Revenue,FRONTIER SUPPORT SERVICES LTD,SP0001132
WANDSWORTH COUNCIL,ASC,SOCIAL SERVICES,VOL ASS,SUPPORTED HOUSING PROGRAMME,391824,130248030,22-Apr-14,"1,251.12",Revenue,FRONTIER SUPPORT SERVICES LTD,SP0001132
WANDSWORTH COUNCIL,ASC,SOCIAL SERVICES,VOL ASS,SUPPORTED HOUSING PROGRAMME,391825,130248030,22-Apr-14,"1,097.64",Revenue,FRONTIER SUPPORT SERVICES LTD,SP0001132
WANDSWORTH COUNCIL,ASC,SOCIAL SERVICES,VOL ASS,SUPPORTED HOUSING PROGRAMME,391826,130248030,22-Apr-14,"1,533.00",Revenue,FRONTIER SUPPORT SERVICES LTD,SP0001132
WANDSWORTH COUNCIL,ASC,SOCIAL SERVICES,VOL ASS,SUPPORTED HOUSING PROGRAMME,391827,130248030,22-Apr-14,"1,864.88",Revenue,FRONTIER SUPPORT SERVICES LTD,SP0001132
WANDSWORTH COUNCIL,ASC,SOCIAL SERVICES,VOL ASS,SUPPORTED HOUSING PROGRAMME,391828,130248030,22-Apr-14,"1,353.32",Revenue,FRONTIER SUPPORT SERVICES LTD,SP0001132
WANDSWORTH COUNCIL,ASC,SOCIAL SERVICES,VOL ASS,SUPPORTED HOUSING PROGRAMME,391829,130248030,22-Apr-14,"1,353.32",Revenue,FRONTIER SUPPORT SERVICES LTD,SP0001132
WANDSWORTH COUNCIL,ASC,SOCIAL SERVICES,VOL ASS,SUPPORTED HOUSING PROGRAMME,391830,130248030,22-Apr-14,"1,097.52",Revenue,FRONTIER SUPPORT SERVICES LTD,SP0001132
WANDSWORTH COUNCIL,ASC,SOCIAL SERVICES,VOL ASS,SUPPORTED HOUSING PROGRAMME,391831,130248030,22-Apr-14,"1,097.56",Revenue,FRONTIER SUPPORT SERVICES LTD,SP0001132
WANDSWORTH COUNCIL,ASC,SOCIAL SERVICES,VOL ASS,SUPPORTED HOUSING PROGRAMME,391832,130248030,22-Apr-14,"2,509.20",Revenue,FRONTIER SUPPORT SERVICES LTD,SP0001132
WANDSWORTH COUNCIL,ASC,SOCIAL SERVICES,VOL ASS,SUPPORTED HOUSING PROGRAMME,391833,130248030,22-Apr-14,657.80,Revenue,FRONTIER SUPPORT SERVICES LTD,SP0001132
WANDSWORTH COUNCIL,ASC,SOCIAL SERVICES,VOL ASS,SUPPORTED HOUSING PROGRAMME,391835,130248030,22-Apr-14,"1,685.92",Revenue,FRONTIER SUPPORT SERVICES LTD,SP0001132
WANDSWORTH COUNCIL,ASC,SOCIAL SERVICES,VOL ASS,SUPPORTED HOUSING PROGRAMME,384299,130248030,07-Apr-14,833.06,Revenue,HARINGEY ASSOCIATION FOR INDEPENDENT LIV,SP0000222
WANDSWORTH COUNCIL,ASC,SOCIAL SERVICES,VOL ASS,SUPPORTED HOUSING PROGRAMME,384300,130248030,07-Apr-14,724.40,Revenue,HARINGEY ASSOCIATION FOR INDEPENDENT LIV,SP0000222
WANDSWORTH COUNCIL,ASC,SOCIAL SERVICES,VOL ASS,SUPPORTED HOUSING PROGRAMME,384301,130248030,07-Apr-14,"6,247.92",Revenue,HARINGEY ASSOCIATION FOR INDEPENDENT LIV,SP0000222
WANDSWORTH COUNCIL,ASC,SOCIAL SERVICES,VOL ASS,SUPPORTED HOUSING PROGRAMME,384302,130248030,07-Apr-14,"3,247.28",Revenue,HARINGEY ASSOCIATION FOR INDEPENDENT LIV,SP0000222
WANDSWORTH COUNCIL,ASC,SOCIAL SERVICES,VOL ASS,SUPPORTED HOUSING PROGRAMME,384303,130248030,07-Apr-14,"1,521.52",Revenue,HARINGEY ASSOCIATION FOR INDEPENDENT LIV,SP0000222
WANDSWORTH COUNCIL,ASC,SOCIAL SERVICES,VOL ASS,SUPPORTED HOUSING PROGRAMME,383663,130248030,07-Apr-14,"1,982.75",Revenue,HIGHER GREEN FARM LTD,SP0005842
WANDSWORTH COUNCIL,ASC,SOCIAL SERVICES,VOL ASS,SUPPORTED HOUSING PROGRAMME,391841,130248030,22-Apr-14,"1,982.75",Revenue,HIGHER GREEN FARM LTD,SP0005842
WANDSWORTH COUNCIL,ASC,SOCIAL SERVICES,VOL ASS,SUPPORTED HOUSING PROGRAMME,20277114,130248030,03-Apr-14,"1,087.80",Revenue,LIFEWAYS COMMUNITY CARE LTD,2002127
WANDSWORTH COUNCIL,ASC,SOCIAL SERVICES,VOL ASS,SUPPORTED HOUSING PROGRAMME,20277115,130248030,03-Apr-14,"4,364.15",Revenue,LIFEWAYS COMMUNITY CARE LTD,2002127
WANDSWORTH COUNCIL,ASC,SOCIAL SERVICES,VOL ASS,SUPPORTED HOUSING PROGRAMME,20277116,130248030,03-Apr-14,"3,315.20",Revenue,LIFEWAYS COMMUNITY CARE LTD,2002127
WANDSWORTH COUNCIL,ASC,SOCIAL SERVICES,VOL ASS,SUPPORTED HOUSING PROGRAMME,20277119,130248030,03-Apr-14,520.00,Revenue,LIFEWAYS COMMUNITY CARE LTD,2002127
WANDSWORTH COUNCIL,ASC,SOCIAL SERVICES,VOL ASS,SUPPORTED HOUSING PROGRAMME,20277124,130248030,03-Apr-14,"1,479.00",Revenue,LIFEWAYS COMMUNITY CARE LTD,2002127
WANDSWORTH COUNCIL,ASC,SOCIAL SERVICES,VOL ASS,SUPPORTED HOUSING PROGRAMME,20278013,130248030,11-Apr-14,"2,525.96",Revenue,LIFEWAYS COMMUNITY CARE LTD,2002127
WANDSWORTH COUNCIL,ASC,SOCIAL SERVICES,VOL ASS,SUPPORTED HOUSING PROGRAMME,20278018,130248030,11-Apr-14,"2,188.84",Revenue,LIFEWAYS COMMUNITY CARE LTD,2002127
WANDSWORTH COUNCIL,ASC,SOCIAL SERVICES,VOL ASS,SUPPORTED HOUSING PROGRAMME,20278019,130248030,11-Apr-14,"2,902.84",Revenue,LIFEWAYS COMMUNITY CARE LTD,2002127
WANDSWORTH COUNCIL,ASC,SOCIAL SERVICES,VOL ASS,SUPPORTED HOUSING PROGRAMME,383737,130248030,07-Apr-14,615.60,Revenue,LIFEWAYS COMMUNITY CARE LTD,SP0000364
WANDSWORTH COUNCIL,ASC,SOCIAL SERVICES,VOL ASS,SUPPORTED HOUSING PROGRAMME,383738,130248030,07-Apr-14,"3,259.84",Revenue,LIFEWAYS COMMUNITY CARE LTD,SP0000364
WANDSWORTH COUNCIL,ASC,SOCIAL SERVICES,VOL ASS,SUPPORTED HOUSING PROGRAMME,383739,130248030,07-Apr-14,"2,188.84",Revenue,LIFEWAYS COMMUNITY CARE LTD,SP0000364
WANDSWORTH COUNCIL,ASC,SOCIAL SERVICES,VOL ASS,SUPPORTED HOUSING PROGRAMME,383740,130248030,07-Apr-14,"1,831.84",Revenue,LIFEWAYS COMMUNITY CARE LTD,SP0000364
WANDSWORTH COUNCIL,ASC,SOCIAL SERVICES,VOL ASS,SUPPORTED HOUSING PROGRAMME,383741,130248030,07-Apr-14,"1,882.84",Revenue,LIFEWAYS COMMUNITY CARE LTD,SP0000364
WANDSWORTH COUNCIL,ASC,SOCIAL SERVICES,VOL ASS,SUPPORTED HOUSING PROGRAMME,383742,130248030,07-Apr-14,"1,678.84",Revenue,LIFEWAYS COMMUNITY CARE LTD,SP0000364
WANDSWORTH COUNCIL,ASC,SOCIAL SERVICES,VOL ASS,SUPPORTED HOUSING PROGRAMME,383743,130248030,07-Apr-14,"2,902.84",Revenue,LIFEWAYS COMMUNITY CARE LTD,SP0000364
WANDSWORTH COUNCIL,ASC,SOCIAL SERVICES,VOL ASS,SUPPORTED HOUSING PROGRAMME,383744,130248030,07-Apr-14,"1,933.84",Revenue,LIFEWAYS COMMUNITY CARE LTD,SP0000364
WANDSWORTH COUNCIL,ASC,SOCIAL SERVICES,VOL ASS,SUPPORTED HOUSING PROGRAMME,383745,130248030,07-Apr-14,"1,678.84",Revenue,LIFEWAYS COMMUNITY CARE LTD,SP0000364
WANDSWORTH COUNCIL,ASC,SOCIAL SERVICES,VOL ASS,SUPPORTED HOUSING PROGRAMME,383746,130248030,07-Apr-14,"2,698.84",Revenue,LIFEWAYS COMMUNITY CARE LTD,SP0000364
WANDSWORTH COUNCIL,ASC,SOCIAL SERVICES,VOL ASS,SUPPORTED HOUSING PROGRAMME,383747,130248030,07-Apr-14,"1,882.84",Revenue,LIFEWAYS COMMUNITY CARE LTD,SP0000364
WANDSWORTH COUNCIL,ASC,SOCIAL SERVICES,VOL ASS,SUPPORTED HOUSING PROGRAMME,383748,130248030,07-Apr-14,"2,035.84",Revenue,LIFEWAYS COMMUNITY CARE LTD,SP0000364
WANDSWORTH COUNCIL,ASC,SOCIAL SERVICES,VOL ASS,SUPPORTED HOUSING PROGRAMME,383749,130248030,07-Apr-14,"1,474.84",Revenue,LIFEWAYS COMMUNITY CARE LTD,SP0000364
WANDSWORTH COUNCIL,ASC,SOCIAL SERVICES,VOL ASS,SUPPORTED HOUSING PROGRAMME,383750,130248030,07-Apr-14,"1,474.84",Revenue,LIFEWAYS COMMUNITY CARE LTD,SP0000364
WANDSWORTH COUNCIL,ASC,SOCIAL SERVICES,VOL ASS,SUPPORTED HOUSING PROGRAMME,383751,130248030,07-Apr-14,"1,005.20",Revenue,LIFEWAYS COMMUNITY CARE LTD,SP0000364
WANDSWORTH COUNCIL,ASC,SOCIAL SERVICES,VOL ASS,SUPPORTED HOUSING PROGRAMME,383753,130248030,07-Apr-14,725.20,Revenue,LIFEWAYS COMMUNITY CARE LTD,SP0000364
WANDSWORTH COUNCIL,ASC,SOCIAL SERVICES,VOL ASS,SUPPORTED HOUSING PROGRAMME,383756,130248030,07-Apr-14,"1,280.00",Revenue,LIFEWAYS COMMUNITY CARE LTD,SP0000364
WANDSWORTH COUNCIL,ASC,SOCIAL SERVICES,VOL ASS,SUPPORTED HOUSING PROGRAMME,383757,130248030,07-Apr-14,"1,956.00",Revenue,LIFEWAYS COMMUNITY CARE LTD,SP0000364
WANDSWORTH COUNCIL,ASC,SOCIAL SERVICES,VOL ASS,SUPPORTED HOUSING PROGRAMME,383758,130248030,07-Apr-14,"2,557.76",Revenue,LIFEWAYS COMMUNITY CARE LTD,SP0000364
WANDSWORTH COUNCIL,ASC,SOCIAL SERVICES,VOL ASS,SUPPORTED HOUSING PROGRAMME,383759,130248030,07-Apr-14,"3,302.96",Revenue,LIFEWAYS COMMUNITY CARE LTD,SP0000364
WANDSWORTH COUNCIL,ASC,SOCIAL SERVICES,VOL ASS,SUPPORTED HOUSING PROGRAMME,383760,130248030,07-Apr-14,"3,302.96",Revenue,LIFEWAYS COMMUNITY CARE LTD,SP0000364
WANDSWORTH COUNCIL,ASC,SOCIAL SERVICES,VOL ASS,SUPPORTED HOUSING PROGRAMME,383761,130248030,07-Apr-14,"2,577.76",Revenue,LIFEWAYS COMMUNITY CARE LTD,SP0000364
WANDSWORTH COUNCIL,ASC,SOCIAL SERVICES,VOL ASS,SUPPORTED HOUSING PROGRAMME,383762,130248030,07-Apr-14,"2,525.96",Revenue,LIFEWAYS COMMUNITY CARE LTD,SP0000364
WANDSWORTH COUNCIL,ASC,SOCIAL SERVICES,VOL ASS,SUPPORTED HOUSING PROGRAMME,383763,130248030,07-Apr-14,"2,940.36",Revenue,LIFEWAYS COMMUNITY CARE LTD,SP0000364
WANDSWORTH COUNCIL,ASC,SOCIAL SERVICES,VOL ASS,SUPPORTED HOUSING PROGRAMME,383764,130248030,07-Apr-14,"1,696.00",Revenue,LIFEWAYS COMMUNITY CARE LTD,SP0000364
WANDSWORTH COUNCIL,ASC,SOCIAL SERVICES,VOL ASS,SUPPORTED HOUSING PROGRAMME,383765,130248030,07-Apr-14,"2,318.76",Revenue,LIFEWAYS COMMUNITY CARE LTD,SP0000364
WANDSWORTH COUNCIL,ASC,SOCIAL SERVICES,VOL ASS,SUPPORTED HOUSING PROGRAMME,383766,130248030,07-Apr-14,"2,005.04",Revenue,LIFEWAYS COMMUNITY CARE LTD,SP0000364
WANDSWORTH COUNCIL,ASC,SOCIAL SERVICES,VOL ASS,SUPPORTED HOUSING PROGRAMME,383767,130248030,07-Apr-14,"2,005.04",Revenue,LIFEWAYS COMMUNITY CARE LTD,SP0000364
WANDSWORTH COUNCIL,ASC,SOCIAL SERVICES,VOL ASS,SUPPORTED HOUSING PROGRAMME,383768,130248030,07-Apr-14,"2,438.64",Revenue,LIFEWAYS COMMUNITY CARE LTD,SP0000364
WANDSWORTH COUNCIL,ASC,SOCIAL SERVICES,VOL ASS,SUPPORTED HOUSING PROGRAMME,383769,130248030,07-Apr-14,"2,005.04",Revenue,LIFEWAYS COMMUNITY CARE LTD,SP0000364
WANDSWORTH COUNCIL,ASC,SOCIAL SERVICES,VOL ASS,SUPPORTED HOUSING PROGRAMME,383770,130248030,07-Apr-14,"2,221.84",Revenue,LIFEWAYS COMMUNITY CARE LTD,SP0000364
WANDSWORTH COUNCIL,ASC,SOCIAL SERVICES,VOL ASS,SUPPORTED HOUSING PROGRAMME,383771,130248030,07-Apr-14,"2,492.84",Revenue,LIFEWAYS COMMUNITY CARE LTD,SP0000364
WANDSWORTH COUNCIL,ASC,SOCIAL SERVICES,VOL ASS,SUPPORTED HOUSING PROGRAMME,383772,130248030,07-Apr-14,"2,005.04",Revenue,LIFEWAYS COMMUNITY CARE LTD,SP0000364
WANDSWORTH COUNCIL,ASC,SOCIAL SERVICES,VOL ASS,SUPPORTED HOUSING PROGRAMME,383773,130248030,07-Apr-14,"2,221.84",Revenue,LIFEWAYS COMMUNITY CARE LTD,SP0000364
WANDSWORTH COUNCIL,ASC,SOCIAL SERVICES,VOL ASS,SUPPORTED HOUSING PROGRAMME,383774,130248030,07-Apr-14,"2,036.34",Revenue,LIFEWAYS COMMUNITY CARE LTD,SP0000364
WANDSWORTH COUNCIL,ASC,SOCIAL SERVICES,VOL ASS,SUPPORTED HOUSING PROGRAMME,383775,130248030,07-Apr-14,"2,165.84",Revenue,LIFEWAYS COMMUNITY CARE LTD,SP0000364
WANDSWORTH COUNCIL,ASC,SOCIAL SERVICES,VOL ASS,SUPPORTED HOUSING PROGRAMME,383776,130248030,07-Apr-14,"2,476.64",Revenue,LIFEWAYS COMMUNITY CARE LTD,SP0000364
WANDSWORTH COUNCIL,ASC,SOCIAL SERVICES,VOL ASS,SUPPORTED HOUSING PROGRAMME,383777,130248030,07-Apr-14,"2,525.96",Revenue,LIFEWAYS COMMUNITY CARE LTD,SP0000364
WANDSWORTH COUNCIL,ASC,SOCIAL SERVICES,VOL ASS,SUPPORTED HOUSING PROGRAMME,383789,130248030,07-Apr-14,"1,831.84",Revenue,LIFEWAYS COMMUNITY CARE LTD,SP0000364
WANDSWORTH COUNCIL,ASC,SOCIAL SERVICES,VOL ASS,SUPPORTED HOUSING PROGRAMME,384972,130248030,08-Apr-14,"1,662.00",Revenue,LIFEWAYS COMMUNITY CARE LTD,SP0000364
WANDSWORTH COUNCIL,ASC,SOCIAL SERVICES,VOL ASS,SUPPORTED HOUSING PROGRAMME,384973,130248030,08-Apr-14,"1,488.00",Revenue,LIFEWAYS COMMUNITY CARE LTD,SP0000364
WANDSWORTH COUNCIL,ASC,SOCIAL SERVICES,VOL ASS,SUPPORTED HOUSING PROGRAMME,384974,130248030,08-Apr-14,"2,216.00",Revenue,LIFEWAYS COMMUNITY CARE LTD,SP0000364
WANDSWORTH COUNCIL,ASC,SOCIAL SERVICES,VOL ASS,SUPPORTED HOUSING PROGRAMME,384975,130248030,08-Apr-14,"1,005.20",Revenue,LIFEWAYS COMMUNITY CARE LTD,SP0000364
WANDSWORTH COUNCIL,ASC,SOCIAL SERVICES,VOL ASS,SUPPORTED HOUSING PROGRAMME,390836,130248030,16-Apr-14,"5,543.72",Revenue,NORWOOD SCHOOLS LTD,SP0000332
WANDSWORTH COUNCIL,ASC,SOCIAL SERVICES,VOL ASS,SUPPORTED HOUSING PROGRAMME,389726,130248030,15-Apr-14,"6,120.00",Revenue,RELIABLE PERSONNEL LTD,SP0005657
WANDSWORTH COUNCIL,ASC,SOCIAL SERVICES,VOL ASS,SUPPORTED HOUSING PROGRAMME,390830,130248030,16-Apr-14,"2,251.52",Revenue,ROYAL MENCAP SOCIETY,SP0000842
WANDSWORTH COUNCIL,ASC,SOCIAL SERVICES,VOL ASS,SUPPORTED HOUSING PROGRAMME,390832,130248030,16-Apr-14,"2,491.28",Revenue,ROYAL MENCAP SOCIETY,SP0000842
WANDSWORTH COUNCIL,ASC,SOCIAL SERVICES,VOL ASS,SUPPORTED HOUSING PROGRAMME,390833,130248030,16-Apr-14,"5,204.28",Revenue,ROYAL MENCAP SOCIETY,SP0000842
WANDSWORTH COUNCIL,ASC,SOCIAL SERVICES,VOL ASS,SUPPORTED HOUSING PROGRAMME,390834,130248030,16-Apr-14,"2,441.20",Revenue,ROYAL MENCAP SOCIETY,SP0000842
WANDSWORTH COUNCIL,ASC,SOCIAL SERVICES,VOL ASS,SUPPORTED HOUSING PROGRAMME,390835,130248030,16-Apr-14,"5,105.32",Revenue,ROYAL MENCAP SOCIETY,SP0000842
WANDSWORTH COUNCIL,ASC,SOCIAL SERVICES,VOL ASS,SUPPORTED HOUSING PROGRAMME,390837,130248030,16-Apr-14,"3,246.40",Revenue,ROYAL MENCAP SOCIETY,SP0000842
WANDSWORTH COUNCIL,ASC,SOCIAL SERVICES,VOL ASS,SUPPORTED HOUSING PROGRAMME,390838,130248030,16-Apr-14,897.32,Revenue,ROYAL MENCAP SOCIETY,SP0000842
WANDSWORTH COUNCIL,ASC,SOCIAL SERVICES,VOL ASS,SUPPORTED HOUSING PROGRAMME,390839,130248030,16-Apr-14,"1,748.04",Revenue,ROYAL MENCAP SOCIETY,SP0000842
WANDSWORTH COUNCIL,ASC,SOCIAL SERVICES,VOL ASS,SUPPORTED HOUSING PROGRAMME,383637,130248030,07-Apr-14,"4,687.20",Revenue,THE BRANDON TRUST,SP0005337
WANDSWORTH COUNCIL,ASC,SOCIAL SERVICES,VOL ASS,SUPPORTED HOUSING PROGRAMME,383639,130248030,07-Apr-14,535.37,Revenue,THE BRANDON TRUST,SP0005337
WANDSWORTH COUNCIL,ASC,SOCIAL SERVICES,VOL ASS,SUPPORTED HOUSING PROGRAMME,383640,130248030,07-Apr-14,"1,551.32",Revenue,THE BRANDON TRUST,SP0005337
WANDSWORTH COUNCIL,ASC,SOCIAL SERVICES,VOL ASS,SUPPORTED HOUSING PROGRAMME,383641,130248030,07-Apr-14,"1,504.84",Revenue,THE BRANDON TRUST,SP0005337
WANDSWORTH COUNCIL,ASC,SOCIAL SERVICES,VOL ASS,SUPPORTED HOUSING PROGRAMME,383642,130248030,07-Apr-14,"1,504.84",Revenue,THE BRANDON TRUST,SP0005337
WANDSWORTH COUNCIL,ASC,SOCIAL SERVICES,VOL ASS,SUPPORTED HOUSING PROGRAMME,383643,130248030,07-Apr-14,"7,764.16",Revenue,THE BRANDON TRUST,SP0005337
WANDSWORTH COUNCIL,ASC,SOCIAL SERVICES,VOL ASS,SUPPORTED HOUSING PROGRAMME,383644,130248030,07-Apr-14,"2,327.04",Revenue,THE BRANDON TRUST,SP0005337
WANDSWORTH COUNCIL,ASC,SOCIAL SERVICES,VOL ASS,SUPPORTED HOUSING PROGRAMME,383645,130248030,07-Apr-14,"2,980.32",Revenue,THE BRANDON TRUST,SP0005337
WANDSWORTH COUNCIL,ASC,SOCIAL SERVICES,VOL ASS,SUPPORTED HOUSING PROGRAMME,383646,130248030,07-Apr-14,"2,969.16",Revenue,THE BRANDON TRUST,SP0005337
WANDSWORTH COUNCIL,ASC,SOCIAL SERVICES,VOL ASS,SUPPORTED HOUSING PROGRAMME,383647,130248030,07-Apr-14,"2,979.92",Revenue,THE BRANDON TRUST,SP0005337
WANDSWORTH COUNCIL,ASC,SOCIAL SERVICES,VOL ASS,SUPPORTED HOUSING PROGRAMME,383648,130248030,07-Apr-14,"2,186.04",Revenue,THE BRANDON TRUST,SP0005337
WANDSWORTH COUNCIL,ASC,SOCIAL SERVICES,VOL ASS,SUPPORTED HOUSING PROGRAMME,383649,130248030,07-Apr-14,"2,893.04",Revenue,THE BRANDON TRUST,SP0005337
WANDSWORTH COUNCIL,ASC,SOCIAL SERVICES,VOL ASS,SUPPORTED HOUSING PROGRAMME,383650,130248030,07-Apr-14,"1,125.08",Revenue,THE BRANDON TRUST,SP0005337
WANDSWORTH COUNCIL,ASC,SOCIAL SERVICES,VOL ASS,SUPPORTED HOUSING PROGRAMME,383651,130248030,07-Apr-14,"1,155.88",Revenue,THE BRANDON TRUST,SP0005337
WANDSWORTH COUNCIL,ASC,SOCIAL SERVICES,VOL ASS,SUPPORTED HOUSING PROGRAMME,383652,130248030,07-Apr-14,"1,854.72",Revenue,THE BRANDON TRUST,SP0005337
WANDSWORTH COUNCIL,ASC,SOCIAL SERVICES,VOL ASS,SUPPORTED HOUSING PROGRAMME,383653,130248030,07-Apr-14,"1,380.64",Revenue,THE BRANDON TRUST,SP0005337
WANDSWORTH COUNCIL,ASC,SOCIAL SERVICES,VOL ASS,SUPPORTED HOUSING PROGRAMME,383654,130248030,07-Apr-14,"1,466.16",Revenue,THE BRANDON TRUST,SP0005337
WANDSWORTH COUNCIL,ASC,SOCIAL SERVICES,VOL ASS,SUPPORTED HOUSING PROGRAMME,383655,130248030,07-Apr-14,"2,298.88",Revenue,THE BRANDON TRUST,SP0005337
WANDSWORTH COUNCIL,ASC,SOCIAL SERVICES,VOL ASS,SUPPORTED HOUSING PROGRAMME,383656,130248030,07-Apr-14,"1,513.68",Revenue,THE BRANDON TRUST,SP0005337
WANDSWORTH COUNCIL,ASC,SOCIAL SERVICES,VOL ASS,SUPPORTED HOUSING PROGRAMME,383657,130248030,07-Apr-14,"1,513.68",Revenue,THE BRANDON TRUST,SP0005337
WANDSWORTH COUNCIL,ASC,SOCIAL SERVICES,VOL ASS,SUPPORTED HOUSING PROGRAMME,383658,130248030,07-Apr-14,"2,856.96",Revenue,THE BRANDON TRUST,SP0005337
WANDSWORTH COUNCIL,ASC,SOCIAL SERVICES,VOL ASS,SUPPORTED HOUSING PROGRAMME,383659,130248030,07-Apr-14,"2,260.80",Revenue,THE BRANDON TRUST,SP0005337
WANDSWORTH COUNCIL,ASC,SOCIAL SERVICES,VOL ASS,SUPPORTED HOUSING PROGRAMME,383660,130248030,07-Apr-14,"3,453.12",Revenue,THE BRANDON TRUST,SP0005337
WANDSWORTH COUNCIL,ASC,SOCIAL SERVICES,VOL ASS,SUPPORTED HOUSING PROGRAMME,383661,130248030,07-Apr-14,"2,790.72",Revenue,THE BRANDON TRUST,SP0005337
WANDSWORTH COUNCIL,ASC,SOCIAL SERVICES,VOL ASS,SUPPORTED HOUSING PROGRAMME,383662,130248030,07-Apr-14,"1,258.56",Revenue,THE BRANDON TRUST,SP0005337
WANDSWORTH COUNCIL,ASC,SOCIAL SERVICES,VOL ASS,SUPPORTED HOUSING PROGRAMME,383667,130248030,07-Apr-14,"1,886.40",Revenue,THE BRANDON TRUST,SP0005337
WANDSWORTH COUNCIL,ASC,SOCIAL SERVICES,VOL ASS,SUPPORTED HOUSING PROGRAMME,383668,130248030,07-Apr-14,"1,797.12",Revenue,THE BRANDON TRUST,SP0005337
WANDSWORTH COUNCIL,ASC,SOCIAL SERVICES,VOL ASS,SUPPORTED HOUSING PROGRAMME,383669,130248030,07-Apr-14,"2,062.08",Revenue,THE BRANDON TRUST,SP0005337
WANDSWORTH COUNCIL,ASC,SOCIAL SERVICES,VOL ASS,SUPPORTED HOUSING PROGRAMME,383670,130248030,07-Apr-14,"3,520.16",Revenue,THE BRANDON TRUST,SP0005337
WANDSWORTH COUNCIL,ASC,SOCIAL SERVICES,VOL ASS,SUPPORTED HOUSING PROGRAMME,383671,130248030,07-Apr-14,"2,525.76",Revenue,THE BRANDON TRUST,SP0005337
WANDSWORTH COUNCIL,ASC,SOCIAL SERVICES,VOL ASS,SUPPORTED HOUSING PROGRAMME,383672,130248030,07-Apr-14,"3,453.92",Revenue,THE BRANDON TRUST,SP0005337
WANDSWORTH COUNCIL,ASC,SOCIAL SERVICES,VOL ASS,SUPPORTED HOUSING PROGRAMME,383673,130248030,07-Apr-14,"1,929.60",Revenue,THE BRANDON TRUST,SP0005337
WANDSWORTH COUNCIL,ASC,SOCIAL SERVICES,VOL ASS,SUPPORTED HOUSING PROGRAMME,383674,130248030,07-Apr-14,"2,923.88",Revenue,THE BRANDON TRUST,SP0005337
WANDSWORTH COUNCIL,ASC,SOCIAL SERVICES,VOL ASS,SUPPORTED HOUSING PROGRAMME,383675,130248030,07-Apr-14,"4,688.56",Revenue,THE BRANDON TRUST,SP0005337
WANDSWORTH COUNCIL,ASC,SOCIAL SERVICES,VOL ASS,SUPPORTED HOUSING PROGRAMME,383676,130248030,07-Apr-14,"3,320.64",Revenue,THE BRANDON TRUST,SP0005337
WANDSWORTH COUNCIL,ASC,SOCIAL SERVICES,VOL ASS,SUPPORTED HOUSING PROGRAMME,383677,130248030,07-Apr-14,"3,702.20",Revenue,THE BRANDON TRUST,SP0005337
WANDSWORTH COUNCIL,ASC,SOCIAL SERVICES,VOL ASS,SUPPORTED HOUSING PROGRAMME,383678,130248030,07-Apr-14,"1,465.92",Revenue,THE BRANDON TRUST,SP0005337
WANDSWORTH COUNCIL,ASC,SOCIAL SERVICES,VOL ASS,SUPPORTED HOUSING PROGRAMME,383679,130248030,07-Apr-14,"3,718.08",Revenue,THE BRANDON TRUST,SP0005337
WANDSWORTH COUNCIL,ASC,SOCIAL SERVICES,VOL ASS,SUPPORTED HOUSING PROGRAMME,383680,130248030,07-Apr-14,"3,121.92",Revenue,THE BRANDON TRUST,SP0005337
WANDSWORTH COUNCIL,ASC,SOCIAL SERVICES,VOL ASS,SUPPORTED HOUSING PROGRAMME,383681,130248030,07-Apr-14,"5,688.08",Revenue,THE BRANDON TRUST,SP0005337
WANDSWORTH COUNCIL,ASC,SOCIAL SERVICES,VOL ASS,SUPPORTED HOUSING PROGRAMME,383682,130248030,07-Apr-14,"5,983.44",Revenue,THE BRANDON TRUST,SP0005337
WANDSWORTH COUNCIL,ASC,SOCIAL SERVICES,VOL ASS,SUPPORTED HOUSING PROGRAMME,383683,130248030,07-Apr-14,"4,827.60",Revenue,THE BRANDON TRUST,SP0005337
WANDSWORTH COUNCIL,ASC,SOCIAL SERVICES,VOL ASS,SUPPORTED HOUSING PROGRAMME,383684,130248030,07-Apr-14,"6,346.04",Revenue,THE BRANDON TRUST,SP0005337
WANDSWORTH COUNCIL,ASC,SOCIAL SERVICES,VOL ASS,SUPPORTED HOUSING PROGRAMME,383685,130248030,07-Apr-14,"3,324.96",Revenue,THE BRANDON TRUST,SP0005337
WANDSWORTH COUNCIL,ASC,SOCIAL SERVICES,VOL ASS,SUPPORTED HOUSING PROGRAMME,383686,130248030,07-Apr-14,"2,886.04",Revenue,THE BRANDON TRUST,SP0005337
WANDSWORTH COUNCIL,ASC,SOCIAL SERVICES,VOL ASS,SUPPORTED HOUSING PROGRAMME,383687,130248030,07-Apr-14,"2,327.04",Revenue,THE BRANDON TRUST,SP0005337
WANDSWORTH COUNCIL,ASC,SOCIAL SERVICES,VOL ASS,SUPPORTED HOUSING PROGRAMME,383688,130248030,07-Apr-14,"2,856.96",Revenue,THE BRANDON TRUST,SP0005337
WANDSWORTH COUNCIL,ASC,SOCIAL SERVICES,VOL ASS,SUPPORTED HOUSING PROGRAMME,383689,130248030,07-Apr-14,"3,088.80",Revenue,THE BRANDON TRUST,SP0005337
WANDSWORTH COUNCIL,ASC,SOCIAL SERVICES,VOL ASS,SUPPORTED HOUSING PROGRAMME,383690,130248030,07-Apr-14,"2,758.28",Revenue,THE BRANDON TRUST,SP0005337
WANDSWORTH COUNCIL,ASC,SOCIAL SERVICES,VOL ASS,SUPPORTED HOUSING PROGRAMME,383691,130248030,07-Apr-14,"2,128.32",Revenue,THE BRANDON TRUST,SP0005337
WANDSWORTH COUNCIL,ASC,SOCIAL SERVICES,VOL ASS,SUPPORTED HOUSING PROGRAMME,383692,130248030,07-Apr-14,"6,198.76",Revenue,THE BRANDON TRUST,SP0005337
WANDSWORTH COUNCIL,ASC,SOCIAL SERVICES,VOL ASS,SUPPORTED HOUSING PROGRAMME,383693,130248030,07-Apr-14,"1,465.92",Revenue,THE BRANDON TRUST,SP0005337
WANDSWORTH COUNCIL,ASC,SOCIAL SERVICES,VOL ASS,SUPPORTED HOUSING PROGRAMME,383694,130248030,07-Apr-14,"1,548.72",Revenue,THE BRANDON TRUST,SP0005337
WANDSWORTH COUNCIL,ASC,SOCIAL SERVICES,VOL ASS,SUPPORTED HOUSING PROGRAMME,383695,130248030,07-Apr-14,"2,658.24",Revenue,THE BRANDON TRUST,SP0005337
WANDSWORTH COUNCIL,ASC,SOCIAL SERVICES,VOL ASS,SUPPORTED HOUSING PROGRAMME,383696,130248030,07-Apr-14,"2,592.60",Revenue,THE BRANDON TRUST,SP0005337
WANDSWORTH COUNCIL,ASC,SOCIAL SERVICES,VOL ASS,SUPPORTED HOUSING PROGRAMME,383697,130248030,07-Apr-14,"2,724.48",Revenue,THE BRANDON TRUST,SP0005337
WANDSWORTH COUNCIL,ASC,SOCIAL SERVICES,VOL ASS,SUPPORTED HOUSING PROGRAMME,383698,130248030,07-Apr-14,"3,564.56",Revenue,THE BRANDON TRUST,SP0005337
WANDSWORTH COUNCIL,ASC,SOCIAL SERVICES,VOL ASS,SUPPORTED HOUSING PROGRAMME,383699,130248030,07-Apr-14,"3,416.80",Revenue,THE BRANDON TRUST,SP0005337
WANDSWORTH COUNCIL,ASC,SOCIAL SERVICES,VOL ASS,SUPPORTED HOUSING PROGRAMME,383700,130248030,07-Apr-14,"4,007.84",Revenue,THE BRANDON TRUST,SP0005337
WANDSWORTH COUNCIL,ASC,SOCIAL SERVICES,VOL ASS,SUPPORTED HOUSING PROGRAMME,383701,130248030,07-Apr-14,"2,327.24",Revenue,THE BRANDON TRUST,SP0005337
WANDSWORTH COUNCIL,ASC,SOCIAL SERVICES,VOL ASS,SUPPORTED HOUSING PROGRAMME,383702,130248030,07-Apr-14,"2,327.24",Revenue,THE BRANDON TRUST,SP0005337
WANDSWORTH COUNCIL,ASC,SOCIAL SERVICES,VOL ASS,SUPPORTED HOUSING PROGRAMME,383703,130248030,07-Apr-14,"2,819.52",Revenue,THE BRANDON TRUST,SP0005337
WANDSWORTH COUNCIL,ASC,SOCIAL SERVICES,VOL ASS,SUPPORTED HOUSING PROGRAMME,383720,130248030,07-Apr-14,"1,499.04",Revenue,THE BRANDON TRUST,SP0005337
WANDSWORTH COUNCIL,ASC,SOCIAL SERVICES,VOL ASS,SUPPORTED HOUSING PROGRAMME,383726,130248030,07-Apr-14,"6,723.36",Revenue,THE BRANDON TRUST,SP0005337
WANDSWORTH COUNCIL,ASC,SOCIAL SERVICES,VOL ASS,SUPPORTED HOUSING PROGRAMME,384405,130248030,07-Apr-14,"1,034.48",Revenue,THE BRANDON TRUST,SP0005337
WANDSWORTH COUNCIL,ASC,SOCIAL SERVICES,VOL ASS,SUPPORTED HOUSING PROGRAMME,384426,130248030,07-Apr-14,"1,477.60",Revenue,THE BRANDON TRUST,SP0005337
WANDSWORTH COUNCIL,ASC,SOCIAL SERVICES,VOL ASS,SUPPORTED HOUSING PROGRAMME,384427,130248030,07-Apr-14,"1,674.84",Revenue,THE BRANDON TRUST,SP0005337
WANDSWORTH COUNCIL,ASC,SOCIAL SERVICES,VOL ASS,SUPPORTED HOUSING PROGRAMME,384428,130248030,07-Apr-14,"2,658.24",Revenue,THE BRANDON TRUST,SP0005337
WANDSWORTH COUNCIL,ASC,SOCIAL SERVICES,VOL ASS,SUPPORTED HOUSING PROGRAMME,384429,130248030,07-Apr-14,"2,405.96",Revenue,THE BRANDON TRUST,SP0005337
WANDSWORTH COUNCIL,ASC,SOCIAL SERVICES,VOL ASS,SUPPORTED HOUSING PROGRAMME,384432,130248030,07-Apr-14,"2,459.52",Revenue,THE BRANDON TRUST,SP0005337
WANDSWORTH COUNCIL,ASC,SOCIAL SERVICES,VOL ASS,SUPPORTED HOUSING PROGRAMME,384433,130248030,07-Apr-14,"3,883.68",Revenue,THE BRANDON TRUST,SP0005337
WANDSWORTH COUNCIL,ASC,SOCIAL SERVICES,VOL ASS,SUPPORTED HOUSING PROGRAMME,384434,130248030,07-Apr-14,"2,618.48",Revenue,THE BRANDON TRUST,SP0005337
WANDSWORTH COUNCIL,ASC,SOCIAL SERVICES,VOL ASS,SUPPORTED HOUSING PROGRAMME,384435,130248030,07-Apr-14,"1,730.88",Revenue,THE BRANDON TRUST,SP0005337
WANDSWORTH COUNCIL,ASC,SOCIAL SERVICES,VOL ASS,SUPPORTED HOUSING PROGRAMME,385034,130248030,08-Apr-14,"1,817.24",Revenue,THE BRANDON TRUST,SP0005337
WANDSWORTH COUNCIL,ASC,SOCIAL SERVICES,VOL ASS,SUPPORTED HOUSING PROGRAMME,385035,130248030,08-Apr-14,"1,932.04",Revenue,THE BRANDON TRUST,SP0005337
WANDSWORTH COUNCIL,ASC,SOCIAL SERVICES,VOL ASS,SUPPORTED HOUSING PROGRAMME,390829,130248030,16-Apr-14,"1,856.31",Revenue,THE BRANDON TRUST,SP0005337
WANDSWORTH COUNCIL,ASC,SOCIAL SERVICES,VOL ASS,SUPPORTED HOUSING PROGRAMME,385685,130248030,09-Apr-14,"2,980.32",Revenue,THE HOME FARM TRUST LTD,SP0001048
WANDSWORTH COUNCIL,ASC,SOCIAL SERVICES,VOL ASS,SUPPORTED HOUSING PROGRAMME,383733,130248030,07-Apr-14,"5,701.56",Revenue,WELMEDE HOUSING ASSOCIATION LTD,SP0001717
WANDSWORTH COUNCIL,ASC,SOCIAL SERVICES,VOL ASS,SUPPORTED HOUSING PROGRAMME,394015,130248030,25-Apr-14,"6,579.11",Revenue,WELMEDE HOUSING ASSOCIATION LTD,SP0001717
WANDSWORTH COUNCIL,ASC,SOCIAL SERVICES,VOL ASS,SUPPORTED HOUSING PROGRAMME,394016,130248030,25-Apr-14,"6,798.41",Revenue,WELMEDE HOUSING ASSOCIATION LTD,SP0001717
WANDSWORTH COUNCIL,ASC,SOCIAL SERVICES,VOL ASS,SUPPORTED HOUSING PROGRAMME,394017,130248030,25-Apr-14,"6,579.11",Revenue,WELMEDE HOUSING ASSOCIATION LTD,SP0001717
WANDSWORTH COUNCIL,ASC,SOCIAL SERVICES,VOL ASS,SUPPORTED HOUSING PROGRAMME,394018,130248030,25-Apr-14,"6,798.41",Revenue,WELMEDE HOUSING ASSOCIATION LTD,SP0001717
WANDSWORTH COUNCIL,ASC,SOCIAL SERVICES,VOL ASS,SUPPORTED HOUSING PROGRAMME,394019,130248030,25-Apr-14,"6,798.41",Revenue,WELMEDE HOUSING ASSOCIATION LTD,SP0001717
WANDSWORTH COUNCIL,ASC,SOCIAL SERVICES,VOL ASS,SUPPORTED HOUSING PROGRAMME,394020,130248030,25-Apr-14,"6,579.11",Revenue,WELMEDE HOUSING ASSOCIATION LTD,SP0001717
WANDSWORTH COUNCIL,ASC,SOCIAL SERVICES,VOL ASS,SUPPORTED HOUSING PROGRAMME,394021,130248030,25-Apr-14,"6,798.41",Revenue,WELMEDE HOUSING ASSOCIATION LTD,SP0001717
WANDSWORTH COUNCIL,ASC,SOCIAL SERVICES,VOL ASS,SUPPORTED HOUSING PROGRAMME,394022,130248030,25-Apr-14,"6,579.11",Revenue,WELMEDE HOUSING ASSOCIATION LTD,SP0001717
WANDSWORTH COUNCIL,ASC,SOCIAL SERVICES,VOL ASS,SUPPORTED HOUSING PROGRAMME,394023,130248030,25-Apr-14,"6,798.41",Revenue,WELMEDE HOUSING ASSOCIATION LTD,SP0001717
WANDSWORTH COUNCIL,ASC,SOCIAL SERVICES,VOL ASS,SUPPORTED HOUSING PROGRAMME,394024,130248030,25-Apr-14,"6,798.41",Revenue,WELMEDE HOUSING ASSOCIATION LTD,SP0001717
WANDSWORTH COUNCIL,ASC,SOCIAL SERVICES,VOL ASS,SUPPORTED HOUSING PROGRAMME,394025,130248030,25-Apr-14,"6,140.50",Revenue,WELMEDE HOUSING ASSOCIATION LTD,SP0001717
WANDSWORTH COUNCIL,ASC,SOCIAL SERVICES,VOL ASS,SUPPORTED HOUSING PROGRAMME,394026,130248030,25-Apr-14,"6,798.41",Revenue,WELMEDE HOUSING ASSOCIATION LTD,SP0001717
WANDSWORTH COUNCIL,ASC,SOCIAL SERVICES,DIRECT,DIRECT PAYMENTS,392666,130250380,24-Apr-14,613.76,Revenue, SHAW TRUST LTD,SP0005390
WANDSWORTH COUNCIL,ASC,SOCIAL SERVICES,CUSTOMER & CLIENT RECPTS - EXT,CL CONT EXT RESIDEN S28A 100%,383406,130280680,07-Apr-14,-486.00,Revenue,ASHTON CARE,SP0000695
WANDSWORTH COUNCIL,ASC,SOCIAL SERVICES,CUSTOMER & CLIENT RECPTS - EXT,CL CONT EXT RESIDEN S28A 100%,384179,130280680,07-Apr-14,-538.07,Revenue,CARE UK LEARNING DISABILITIES SERVICES L,SP0001039
WANDSWORTH COUNCIL,ASC,SOCIAL SERVICES,CUSTOMER & CLIENT RECPTS - EXT,CL CONT EXT RESIDEN S28A 100%,393841,130280680,25-Apr-14,-486.00,Revenue,ELEANOR NURSING & SOCIAL CARE,SP0000110
WANDSWORTH COUNCIL,ASC,SOCIAL SERVICES,CUSTOMER & CLIENT RECPTS - EXT,CL CONT EXT RESIDEN S28A 100%,383380,130280680,07-Apr-14,-315.20,Revenue,LOVING CARE LTD,SP0000670
WANDSWORTH COUNCIL,ASC,SOCIAL SERVICES,CUSTOMER & CLIENT RECPTS - EXT,CL CONT EXT RESIDEN S28A 100%,383381,130280680,07-Apr-14,-315.20,Revenue,LOVING CARE LTD,SP0000670
WANDSWORTH COUNCIL,ASC,SOCIAL SERVICES,CUSTOMER & CLIENT RECPTS - EXT,CL CONT EXT RESIDEN S28A 100%,383383,130280680,07-Apr-14,-538.07,Revenue,RALEIGH HOUSE LTD,SP0000760
WANDSWORTH COUNCIL,ASC,SOCIAL SERVICES,CUSTOMER & CLIENT RECPTS - EXT,CL CONT EXT RESIDEN S28A 100%,384161,130280680,07-Apr-14,-538.07,Revenue,ST MARYS RESIDENTIAL HOME,SP0000215
WANDSWORTH COUNCIL,ASC,SOCIAL SERVICES,CUSTOMER & CLIENT RECPTS - EXT,CL CONT EXT RESIDEN S28A 100%,384163,130280680,07-Apr-14,-538.07,Revenue,ST MARYS RESIDENTIAL HOME,SP0000215
WANDSWORTH COUNCIL,ASC,SOCIAL SERVICES,CUSTOMER & CLIENT RECPTS - EXT,CL CONT EXT RESIDEN S28A 100%,391710,130280680,22-Apr-14,-538.08,Revenue,ST MARYS RESIDENTIAL HOME,SP0000215
WANDSWORTH COUNCIL,ASC,SOCIAL SERVICES,CUSTOMER & CLIENT RECPTS - EXT,CL CONT EXT RESIDEN S28A 100%,384128,130280680,07-Apr-14,-538.07,Revenue,VOYAGE CARE LTD,SP0000366
WANDSWORTH COUNCIL,ASC,SOCIAL SERVICES,CUSTOMER & CLIENT RECPTS - EXT,CL CONT EXT RESIDEN S28A 100%,384129,130280680,07-Apr-14,-348.97,Revenue,VOYAGE CARE LTD,SP0000366
WANDSWORTH COUNCIL,ASC,SOCIAL SERVICES,CUSTOMER & CLIENT RECPTS - EXT,CL CONT EXT RESIDEN S28A 100%,384145,130280680,07-Apr-14,-348.97,Revenue,VOYAGE CARE LTD,SP0000366
WANDSWORTH COUNCIL,ASC,SOCIAL SERVICES,CUSTOMER & CLIENT RECPTS - EXT,CL CONT EXT RESIDEN S28A 100%,391932,130280680,22-Apr-14,-529.11,Revenue,VOYAGE CARE LTD,SP0000366
WANDSWORTH COUNCIL,ASC,SOCIAL SERVICES,CUSTOMER & CLIENT RECPTS - EXT,CL CONT EXT RESIDEN S28A 100%,391933,130280680,22-Apr-14,-341.31,Revenue,VOYAGE CARE LTD,SP0000366
WANDSWORTH COUNCIL,ASC,SOCIAL SERVICES,CUSTOMER & CLIENT RECPTS - EXT,CL CONT EXT RESIDEN S28A 100%,391936,130280680,22-Apr-14,-341.31,Revenue,VOYAGE CARE LTD,SP0000366
WANDSWORTH COUNCIL,ASC,SOCIAL SERVICES,CUSTOMER & CLIENT RECPTS - EXT,CL CONT EXTERNAL RESIDENT S28A,393858,130280710,25-Apr-14,-318.20,Revenue,MACINTYRE CARE,SP0000473
WANDSWORTH COUNCIL,ASC,SOCIAL SERVICES,CUSTOMER & CLIENT RECPTS - EXT,CL CONT EXTERNAL RESIDENT S28A,393868,130280710,25-Apr-14,-318.20,Revenue,MACINTYRE CARE,SP0000473
WANDSWORTH COUNCIL,ASC,SOCIAL SERVICES,CUSTOMER & CLIENT RECPTS - EXT,CL CONT EXTERNAL RESIDENT S28A,383424,130280710,07-Apr-14,-315.20,Revenue,PROGRESS HOUSING MARLOW,SP0000952
WANDSWORTH COUNCIL,ASC,SOCIAL SERVICES,CUSTOMER & CLIENT RECPTS - EXT,CL CONT EXTERNAL RESIDENTIAL,384139,130280720,07-Apr-14,-348.97,Revenue,AIMS CARE PARTNERSHIP,SP0000561
WANDSWORTH COUNCIL,ASC,SOCIAL SERVICES,CUSTOMER & CLIENT RECPTS - EXT,CL CONT EXTERNAL RESIDENTIAL,384170,130280720,07-Apr-14,-348.97,Revenue,BEECH LODGE,SP0000807
WANDSWORTH COUNCIL,ASC,SOCIAL SERVICES,CUSTOMER & CLIENT RECPTS - EXT,CL CONT EXTERNAL RESIDENTIAL,384171,130280720,07-Apr-14,-348.97,Revenue,BEECH LODGE,SP0000807
WANDSWORTH COUNCIL,ASC,SOCIAL SERVICES,CUSTOMER & CLIENT RECPTS - EXT,CL CONT EXTERNAL RESIDENTIAL,384172,130280720,07-Apr-14,-348.97,Revenue,BEECH LODGE,SP0000807
WANDSWORTH COUNCIL,ASC,SOCIAL SERVICES,CUSTOMER & CLIENT RECPTS - EXT,CL CONT EXTERNAL RESIDENTIAL,395821,130280720,30-Apr-14,-75.56,Revenue,BROOKDALE CARE,SP0000282
WANDSWORTH COUNCIL,ASC,SOCIAL SERVICES,CUSTOMER & CLIENT RECPTS - EXT,CL CONT EXTERNAL RESIDENTIAL,395822,130280720,30-Apr-14,-310.97,Revenue,BROOKDALE CARE,SP0000282
WANDSWORTH COUNCIL,ASC,SOCIAL SERVICES,CUSTOMER & CLIENT RECPTS - EXT,CL CONT EXTERNAL RESIDENTIAL,391729,130280720,22-Apr-14,-386.53,Revenue,CHATSWORTH CARE,SP0000831
WANDSWORTH COUNCIL,ASC,SOCIAL SERVICES,CUSTOMER & CLIENT RECPTS - EXT,CL CONT EXTERNAL RESIDENTIAL,384181,130280720,07-Apr-14,-348.97,Revenue,CHERRY LODGE,SP0000965
WANDSWORTH COUNCIL,ASC,SOCIAL SERVICES,CUSTOMER & CLIENT RECPTS - EXT,CL CONT EXTERNAL RESIDENTIAL,383410,130280720,07-Apr-14,-315.20,Revenue,COUNTRY CARE,SP0000090
WANDSWORTH COUNCIL,ASC,SOCIAL SERVICES,CUSTOMER & CLIENT RECPTS - EXT,CL CONT EXTERNAL RESIDENTIAL,391686,130280720,22-Apr-14,-315.95,Revenue,CRAEGMOOR FACILITIES CO LTD,SP0000306
WANDSWORTH COUNCIL,ASC,SOCIAL SERVICES,CUSTOMER & CLIENT RECPTS - EXT,CL CONT EXTERNAL RESIDENTIAL,383423,130280720,07-Apr-14,274.33,Revenue,CRAEGMOOR OLD RECTORY BREDE PRIORY,SP0001621
WANDSWORTH COUNCIL,ASC,SOCIAL SERVICES,CUSTOMER & CLIENT RECPTS - EXT,CL CONT EXTERNAL RESIDENTIAL,391696,130280720,22-Apr-14,-281.66,Revenue,CRAEGMOOR OLD RECTORY BREDE PRIORY,SP0001621
WANDSWORTH COUNCIL,ASC,SOCIAL SERVICES,CUSTOMER & CLIENT RECPTS - EXT,CL CONT EXTERNAL RESIDENTIAL,393846,130280720,25-Apr-14,-131.60,Revenue,ENHAM,SP0005845
WANDSWORTH COUNCIL,ASC,SOCIAL SERVICES,CUSTOMER & CLIENT RECPTS - EXT,CL CONT EXTERNAL RESIDENTIAL,390693,130280720,16-Apr-14,-316.70,Revenue,EVERGREEN PARTNERSHIP,SP0000597
WANDSWORTH COUNCIL,ASC,SOCIAL SERVICES,CUSTOMER & CLIENT RECPTS - EXT,CL CONT EXTERNAL RESIDENTIAL,389549,130280720,15-Apr-14,-315.20,Revenue,FREEWAYS TRUST LTD,SP0000793
WANDSWORTH COUNCIL,ASC,SOCIAL SERVICES,CUSTOMER & CLIENT RECPTS - EXT,CL CONT EXTERNAL RESIDENTIAL,383413,130280720,07-Apr-14,-486.00,Revenue,HEYWOODS GRANGE LTD,SP0000361
WANDSWORTH COUNCIL,ASC,SOCIAL SERVICES,CUSTOMER & CLIENT RECPTS - EXT,CL CONT EXTERNAL RESIDENTIAL,395824,130280720,30-Apr-14,-341.31,Revenue,HILL PARK AUTISTIC TRUST,SP0000926
WANDSWORTH COUNCIL,ASC,SOCIAL SERVICES,CUSTOMER & CLIENT RECPTS - EXT,CL CONT EXTERNAL RESIDENTIAL,384133,130280720,07-Apr-14,-348.97,Revenue,ILG LTD,SP0001103
WANDSWORTH COUNCIL,ASC,SOCIAL SERVICES,CUSTOMER & CLIENT RECPTS - EXT,CL CONT EXTERNAL RESIDENTIAL,391720,130280720,22-Apr-14,-341.31,Revenue,ILG LTD,SP0001103
WANDSWORTH COUNCIL,ASC,SOCIAL SERVICES,CUSTOMER & CLIENT RECPTS - EXT,CL CONT EXTERNAL RESIDENTIAL,389521,130280720,15-Apr-14,-316.25,Revenue,KENILWORTH RESIDENTIAL HOME,SP0000432
WANDSWORTH COUNCIL,ASC,SOCIAL SERVICES,CUSTOMER & CLIENT RECPTS - EXT,CL CONT EXTERNAL RESIDENTIAL,389522,130280720,15-Apr-14,-486.00,Revenue,KENILWORTH RESIDENTIAL HOME,SP0000432
WANDSWORTH COUNCIL,ASC,SOCIAL SERVICES,CUSTOMER & CLIENT RECPTS - EXT,CL CONT EXTERNAL RESIDENTIAL,389525,130280720,15-Apr-14,-391.00,Revenue,LAETUS LODGE,SP0000600
WANDSWORTH COUNCIL,ASC,SOCIAL SERVICES,CUSTOMER & CLIENT RECPTS - EXT,CL CONT EXTERNAL RESIDENTIAL,389527,130280720,15-Apr-14,-238.64,Revenue,LAETUS LODGE,SP0000600
WANDSWORTH COUNCIL,ASC,SOCIAL SERVICES,CUSTOMER & CLIENT RECPTS - EXT,CL CONT EXTERNAL RESIDENTIAL,389528,130280720,15-Apr-14,-352.60,Revenue,LAETUS LODGE,SP0000600
WANDSWORTH COUNCIL,ASC,SOCIAL SERVICES,CUSTOMER & CLIENT RECPTS - EXT,CL CONT EXTERNAL RESIDENTIAL,389529,130280720,15-Apr-14,-315.20,Revenue,LAETUS LODGE,SP0000600
WANDSWORTH COUNCIL,ASC,SOCIAL SERVICES,CUSTOMER & CLIENT RECPTS - EXT,CL CONT EXTERNAL RESIDENTIAL,389530,130280720,15-Apr-14,-315.20,Revenue,LAETUS LODGE,SP0000600
WANDSWORTH COUNCIL,ASC,SOCIAL SERVICES,CUSTOMER & CLIENT RECPTS - EXT,CL CONT EXTERNAL RESIDENTIAL,392533,130280720,24-Apr-14,-315.20,Revenue,LAETUS LODGE,SP0000600
WANDSWORTH COUNCIL,ASC,SOCIAL SERVICES,CUSTOMER & CLIENT RECPTS - EXT,CL CONT EXTERNAL RESIDENTIAL,389555,130280720,15-Apr-14,-348.97,Revenue,LD CARE,SP0005447
WANDSWORTH COUNCIL,ASC,SOCIAL SERVICES,CUSTOMER & CLIENT RECPTS - EXT,CL CONT EXTERNAL RESIDENTIAL,389558,130280720,15-Apr-14,-315.20,Revenue,LD CARE,SP0005447
WANDSWORTH COUNCIL,ASC,SOCIAL SERVICES,CUSTOMER & CLIENT RECPTS - EXT,CL CONT EXTERNAL RESIDENTIAL,389560,130280720,15-Apr-14,-348.97,Revenue,LD CARE,SP0005447
WANDSWORTH COUNCIL,ASC,SOCIAL SERVICES,CUSTOMER & CLIENT RECPTS - EXT,CL CONT EXTERNAL RESIDENTIAL,384178,130280720,07-Apr-14,-348.97,Revenue,LEONARD CHESHIRE,SP0000976
WANDSWORTH COUNCIL,ASC,SOCIAL SERVICES,CUSTOMER & CLIENT RECPTS - EXT,CL CONT EXTERNAL RESIDENTIAL,384848,130280720,08-Apr-14,-63.90,Revenue,LIFESINE LTD,SP0000414
WANDSWORTH COUNCIL,ASC,SOCIAL SERVICES,CUSTOMER & CLIENT RECPTS - EXT,CL CONT EXTERNAL RESIDENTIAL,389531,130280720,15-Apr-14,-315.20,Revenue,LOTUS CARE HOME LTD,SP0001006
WANDSWORTH COUNCIL,ASC,SOCIAL SERVICES,CUSTOMER & CLIENT RECPTS - EXT,CL CONT EXTERNAL RESIDENTIAL,383375,130280720,07-Apr-14,-315.20,Revenue,LOVING CARE LTD,SP0000670
WANDSWORTH COUNCIL,ASC,SOCIAL SERVICES,CUSTOMER & CLIENT RECPTS - EXT,CL CONT EXTERNAL RESIDENTIAL,383376,130280720,07-Apr-14,-315.20,Revenue,LOVING CARE LTD,SP0000670
WANDSWORTH COUNCIL,ASC,SOCIAL SERVICES,CUSTOMER & CLIENT RECPTS - EXT,CL CONT EXTERNAL RESIDENTIAL,383377,130280720,07-Apr-14,-315.20,Revenue,LOVING CARE LTD,SP0000670
WANDSWORTH COUNCIL,ASC,SOCIAL SERVICES,CUSTOMER & CLIENT RECPTS - EXT,CL CONT EXTERNAL RESIDENTIAL,383378,130280720,07-Apr-14,-315.20,Revenue,LOVING CARE LTD,SP0000670
WANDSWORTH COUNCIL,ASC,SOCIAL SERVICES,CUSTOMER & CLIENT RECPTS - EXT,CL CONT EXTERNAL RESIDENTIAL,383379,130280720,07-Apr-14,-315.20,Revenue,LOVING CARE LTD,SP0000670
WANDSWORTH COUNCIL,ASC,SOCIAL SERVICES,CUSTOMER & CLIENT RECPTS - EXT,CL CONT EXTERNAL RESIDENTIAL,391698,130280720,22-Apr-14,-407.20,Revenue,MACINTYRE CARE,SP0000473
WANDSWORTH COUNCIL,ASC,SOCIAL SERVICES,CUSTOMER & CLIENT RECPTS - EXT,CL CONT EXTERNAL RESIDENTIAL,391699,130280720,22-Apr-14,-407.20,Revenue,MACINTYRE CARE,SP0000473
WANDSWORTH COUNCIL,ASC,SOCIAL SERVICES,CUSTOMER & CLIENT RECPTS - EXT,CL CONT EXTERNAL RESIDENTIAL,391700,130280720,22-Apr-14,-407.20,Revenue,MACINTYRE CARE,SP0000473
WANDSWORTH COUNCIL,ASC,SOCIAL SERVICES,CUSTOMER & CLIENT RECPTS - EXT,CL CONT EXTERNAL RESIDENTIAL,393853,130280720,25-Apr-14,-315.20,Revenue,MACINTYRE CARE,SP0000473
WANDSWORTH COUNCIL,ASC,SOCIAL SERVICES,CUSTOMER & CLIENT RECPTS - EXT,CL CONT EXTERNAL RESIDENTIAL,393854,130280720,25-Apr-14,-318.20,Revenue,MACINTYRE CARE,SP0000473
WANDSWORTH COUNCIL,ASC,SOCIAL SERVICES,CUSTOMER & CLIENT RECPTS - EXT,CL CONT EXTERNAL RESIDENTIAL,393855,130280720,25-Apr-14,-493.00,Revenue,MACINTYRE CARE,SP0000473
WANDSWORTH COUNCIL,ASC,SOCIAL SERVICES,CUSTOMER & CLIENT RECPTS - EXT,CL CONT EXTERNAL RESIDENTIAL,393857,130280720,25-Apr-14,-318.20,Revenue,MACINTYRE CARE,SP0000473
WANDSWORTH COUNCIL,ASC,SOCIAL SERVICES,CUSTOMER & CLIENT RECPTS - EXT,CL CONT EXTERNAL RESIDENTIAL,393859,130280720,25-Apr-14,-359.88,Revenue,MACINTYRE CARE,SP0000473
WANDSWORTH COUNCIL,ASC,SOCIAL SERVICES,CUSTOMER & CLIENT RECPTS - EXT,CL CONT EXTERNAL RESIDENTIAL,393860,130280720,25-Apr-14,-318.20,Revenue,MACINTYRE CARE,SP0000473
WANDSWORTH COUNCIL,ASC,SOCIAL SERVICES,CUSTOMER & CLIENT RECPTS - EXT,CL CONT EXTERNAL RESIDENTIAL,393861,130280720,25-Apr-14,-318.20,Revenue,MACINTYRE CARE,SP0000473
WANDSWORTH COUNCIL,ASC,SOCIAL SERVICES,CUSTOMER & CLIENT RECPTS - EXT,CL CONT EXTERNAL RESIDENTIAL,393862,130280720,25-Apr-14,-318.20,Revenue,MACINTYRE CARE,SP0000473
WANDSWORTH COUNCIL,ASC,SOCIAL SERVICES,CUSTOMER & CLIENT RECPTS - EXT,CL CONT EXTERNAL RESIDENTIAL,393863,130280720,25-Apr-14,-318.20,Revenue,MACINTYRE CARE,SP0000473
WANDSWORTH COUNCIL,ASC,SOCIAL SERVICES,CUSTOMER & CLIENT RECPTS - EXT,CL CONT EXTERNAL RESIDENTIAL,393864,130280720,25-Apr-14,-315.20,Revenue,MACINTYRE CARE,SP0000473
WANDSWORTH COUNCIL,ASC,SOCIAL SERVICES,CUSTOMER & CLIENT RECPTS - EXT,CL CONT EXTERNAL RESIDENTIAL,393865,130280720,25-Apr-14,-493.00,Revenue,MACINTYRE CARE,SP0000473
WANDSWORTH COUNCIL,ASC,SOCIAL SERVICES,CUSTOMER & CLIENT RECPTS - EXT,CL CONT EXTERNAL RESIDENTIAL,393866,130280720,25-Apr-14,-493.00,Revenue,MACINTYRE CARE,SP0000473
WANDSWORTH COUNCIL,ASC,SOCIAL SERVICES,CUSTOMER & CLIENT RECPTS - EXT,CL CONT EXTERNAL RESIDENTIAL,393869,130280720,25-Apr-14,-318.20,Revenue,MACINTYRE CARE,SP0000473
WANDSWORTH COUNCIL,ASC,SOCIAL SERVICES,CUSTOMER & CLIENT RECPTS - EXT,CL CONT EXTERNAL RESIDENTIAL,393870,130280720,25-Apr-14,-325.48,Revenue,MACINTYRE CARE,SP0000473
WANDSWORTH COUNCIL,ASC,SOCIAL SERVICES,CUSTOMER & CLIENT RECPTS - EXT,CL CONT EXTERNAL RESIDENTIAL,393871,130280720,25-Apr-14,-318.20,Revenue,MACINTYRE CARE,SP0000473
WANDSWORTH COUNCIL,ASC,SOCIAL SERVICES,CUSTOMER & CLIENT RECPTS - EXT,CL CONT EXTERNAL RESIDENTIAL,389544,130280720,15-Apr-14,-273.77,Revenue,MENCAP,SP0000604
WANDSWORTH COUNCIL,ASC,SOCIAL SERVICES,CUSTOMER & CLIENT RECPTS - EXT,CL CONT EXTERNAL RESIDENTIAL,389545,130280720,15-Apr-14,-67.54,Revenue,MENCAP,SP0000604
WANDSWORTH COUNCIL,ASC,SOCIAL SERVICES,CUSTOMER & CLIENT RECPTS - EXT,CL CONT EXTERNAL RESIDENTIAL,389546,130280720,15-Apr-14,-273.77,Revenue,MENCAP,SP0000604
WANDSWORTH COUNCIL,ASC,SOCIAL SERVICES,CUSTOMER & CLIENT RECPTS - EXT,CL CONT EXTERNAL RESIDENTIAL,389547,130280720,15-Apr-14,-67.54,Revenue,MENCAP,SP0000604
WANDSWORTH COUNCIL,ASC,SOCIAL SERVICES,CUSTOMER & CLIENT RECPTS - EXT,CL CONT EXTERNAL RESIDENTIAL,390692,130280720,16-Apr-14,-317.15,Revenue,MISSION CARE,SP0000958
WANDSWORTH COUNCIL,ASC,SOCIAL SERVICES,CUSTOMER & CLIENT RECPTS - EXT,CL CONT EXTERNAL RESIDENTIAL,385592,130280720,09-Apr-14,-315.20,Revenue,NAS SERVICES LIMITED,SP0000217
WANDSWORTH COUNCIL,ASC,SOCIAL SERVICES,CUSTOMER & CLIENT RECPTS - EXT,CL CONT EXTERNAL RESIDENTIAL,390695,130280720,16-Apr-14,-316.85,Revenue,NAS SERVICES LIMITED,SP0000217
WANDSWORTH COUNCIL,ASC,SOCIAL SERVICES,CUSTOMER & CLIENT RECPTS - EXT,CL CONT EXTERNAL RESIDENTIAL,390951,130280720,16-Apr-14,-315.20,Revenue,NAS SERVICES LIMITED,SP0000217
WANDSWORTH COUNCIL,ASC,SOCIAL SERVICES,CUSTOMER & CLIENT RECPTS - EXT,CL CONT EXTERNAL RESIDENTIAL,390696,130280720,16-Apr-14,-315.20,Revenue,NORWOOD SCHOOLS LTD,SP0000332
WANDSWORTH COUNCIL,ASC,SOCIAL SERVICES,CUSTOMER & CLIENT RECPTS - EXT,CL CONT EXTERNAL RESIDENTIAL,390697,130280720,16-Apr-14,-315.20,Revenue,NORWOOD SCHOOLS LTD,SP0000332
WANDSWORTH COUNCIL,ASC,SOCIAL SERVICES,CUSTOMER & CLIENT RECPTS - EXT,CL CONT EXTERNAL RESIDENTIAL,385578,130280720,09-Apr-14,-315.20,Revenue,ORCHARD VALE TRUST,SP0000214
WANDSWORTH COUNCIL,ASC,SOCIAL SERVICES,CUSTOMER & CLIENT RECPTS - EXT,CL CONT EXTERNAL RESIDENTIAL,383382,130280720,07-Apr-14,-348.97,Revenue,PATHWAY HEALTHCARE,SP0001779
WANDSWORTH COUNCIL,ASC,SOCIAL SERVICES,CUSTOMER & CLIENT RECPTS - EXT,CL CONT EXTERNAL RESIDENTIAL,385587,130280720,09-Apr-14,-348.97,Revenue,PROSPECTS,SP0000800
WANDSWORTH COUNCIL,ASC,SOCIAL SERVICES,CUSTOMER & CLIENT RECPTS - EXT,CL CONT EXTERNAL RESIDENTIAL,383384,130280720,07-Apr-14,-538.07,Revenue,RALEIGH HOUSE LTD,SP0000760
WANDSWORTH COUNCIL,ASC,SOCIAL SERVICES,CUSTOMER & CLIENT RECPTS - EXT,CL CONT EXTERNAL RESIDENTIAL,389489,130280720,15-Apr-14,-314.00,Revenue,REDACTED PERSONAL DATA,SP0000931
WANDSWORTH COUNCIL,ASC,SOCIAL SERVICES,CUSTOMER & CLIENT RECPTS - EXT,CL CONT EXTERNAL RESIDENTIAL,384147,130280720,07-Apr-14,-348.97,Revenue,RESIDENTIAL CARE SERVICES T/A FRANKLYN L,SP0000147
WANDSWORTH COUNCIL,ASC,SOCIAL SERVICES,CUSTOMER & CLIENT RECPTS - EXT,CL CONT EXTERNAL RESIDENTIAL,391727,130280720,22-Apr-14,-341.31,Revenue,RESIDENTIAL COMMUNITY CARE,SP0000315
WANDSWORTH COUNCIL,ASC,SOCIAL SERVICES,CUSTOMER & CLIENT RECPTS - EXT,CL CONT EXTERNAL RESIDENTIAL,389513,130280720,15-Apr-14,-315.20,Revenue,RIDGEWOOD CARE SERVICES LTD,SP0000969
WANDSWORTH COUNCIL,ASC,SOCIAL SERVICES,CUSTOMER & CLIENT RECPTS - EXT,CL CONT EXTERNAL RESIDENTIAL,385584,130280720,09-Apr-14,-315.20,Revenue,ROYAL MENCAP SOCIETY,SP0000842
WANDSWORTH COUNCIL,ASC,SOCIAL SERVICES,CUSTOMER & CLIENT RECPTS - EXT,CL CONT EXTERNAL RESIDENTIAL,385585,130280720,09-Apr-14,-315.20,Revenue,ROYAL MENCAP SOCIETY,SP0000842
WANDSWORTH COUNCIL,ASC,SOCIAL SERVICES,CUSTOMER & CLIENT RECPTS - EXT,CL CONT EXTERNAL RESIDENTIAL,390694,130280720,16-Apr-14,-316.70,Revenue,ROYAL MENCAP SOCIETY,SP0000842
WANDSWORTH COUNCIL,ASC,SOCIAL SERVICES,CUSTOMER & CLIENT RECPTS - EXT,CL CONT EXTERNAL RESIDENTIAL,386691,130280720,10-Apr-14,-315.20,Revenue,SANCTUARY CARE LTD,SP0000121
WANDSWORTH COUNCIL,ASC,SOCIAL SERVICES,CUSTOMER & CLIENT RECPTS - EXT,CL CONT EXTERNAL RESIDENTIAL,383391,130280720,07-Apr-14,-348.97,Revenue,SEEABILITY,SP0000572
WANDSWORTH COUNCIL,ASC,SOCIAL SERVICES,CUSTOMER & CLIENT RECPTS - EXT,CL CONT EXTERNAL RESIDENTIAL,383402,130280720,07-Apr-14,-315.20,Revenue,SPRING LAKE,SP0000223
WANDSWORTH COUNCIL,ASC,SOCIAL SERVICES,CUSTOMER & CLIENT RECPTS - EXT,CL CONT EXTERNAL RESIDENTIAL,383403,130280720,07-Apr-14,-352.60,Revenue,SPRING LAKE,SP0000223
WANDSWORTH COUNCIL,ASC,SOCIAL SERVICES,CUSTOMER & CLIENT RECPTS - EXT,CL CONT EXTERNAL RESIDENTIAL,383404,130280720,07-Apr-14,-315.20,Revenue,SPRING LAKE,SP0000223
WANDSWORTH COUNCIL,ASC,SOCIAL SERVICES,CUSTOMER & CLIENT RECPTS - EXT,CL CONT EXTERNAL RESIDENTIAL,383405,130280720,07-Apr-14,-352.60,Revenue,SPRING LAKE,SP0000223
WANDSWORTH COUNCIL,ASC,SOCIAL SERVICES,CUSTOMER & CLIENT RECPTS - EXT,CL CONT EXTERNAL RESIDENTIAL,389480,130280720,15-Apr-14,-337.72,Revenue,ST DAVIDS CARE IN THE COMMUNITY,SP0000379
WANDSWORTH COUNCIL,ASC,SOCIAL SERVICES,CUSTOMER & CLIENT RECPTS - EXT,CL CONT EXTERNAL RESIDENTIAL,389481,130280720,15-Apr-14,-337.72,Revenue,ST DAVIDS CARE IN THE COMMUNITY,SP0000379
WANDSWORTH COUNCIL,ASC,SOCIAL SERVICES,CUSTOMER & CLIENT RECPTS - EXT,CL CONT EXTERNAL RESIDENTIAL,389482,130280720,15-Apr-14,-337.72,Revenue,ST DAVIDS CARE IN THE COMMUNITY,SP0000379
WANDSWORTH COUNCIL,ASC,SOCIAL SERVICES,CUSTOMER & CLIENT RECPTS - EXT,CL CONT EXTERNAL RESIDENTIAL,389509,130280720,15-Apr-14,-348.98,Revenue,ST DAVIDS CARE IN THE COMMUNITY,SP0000379
WANDSWORTH COUNCIL,ASC,SOCIAL SERVICES,CUSTOMER & CLIENT RECPTS - EXT,CL CONT EXTERNAL RESIDENTIAL,384152,130280720,07-Apr-14,-707.12,Revenue,ST MARYS RESIDENTIAL HOME,SP0000215
WANDSWORTH COUNCIL,ASC,SOCIAL SERVICES,CUSTOMER & CLIENT RECPTS - EXT,CL CONT EXTERNAL RESIDENTIAL,384153,130280720,07-Apr-14,-315.20,Revenue,ST MARYS RESIDENTIAL HOME,SP0000215
WANDSWORTH COUNCIL,ASC,SOCIAL SERVICES,CUSTOMER & CLIENT RECPTS - EXT,CL CONT EXTERNAL RESIDENTIAL,384154,130280720,07-Apr-14,-348.97,Revenue,ST MARYS RESIDENTIAL HOME,SP0000215
WANDSWORTH COUNCIL,ASC,SOCIAL SERVICES,CUSTOMER & CLIENT RECPTS - EXT,CL CONT EXTERNAL RESIDENTIAL,384155,130280720,07-Apr-14,-348.97,Revenue,ST MARYS RESIDENTIAL HOME,SP0000215
WANDSWORTH COUNCIL,ASC,SOCIAL SERVICES,CUSTOMER & CLIENT RECPTS - EXT,CL CONT EXTERNAL RESIDENTIAL,384156,130280720,07-Apr-14,-538.07,Revenue,ST MARYS RESIDENTIAL HOME,SP0000215
WANDSWORTH COUNCIL,ASC,SOCIAL SERVICES,CUSTOMER & CLIENT RECPTS - EXT,CL CONT EXTERNAL RESIDENTIAL,384157,130280720,07-Apr-14,-348.97,Revenue,ST MARYS RESIDENTIAL HOME,SP0000215
WANDSWORTH COUNCIL,ASC,SOCIAL SERVICES,CUSTOMER & CLIENT RECPTS - EXT,CL CONT EXTERNAL RESIDENTIAL,384158,130280720,07-Apr-14,-345.43,Revenue,ST MARYS RESIDENTIAL HOME,SP0000215
WANDSWORTH COUNCIL,ASC,SOCIAL SERVICES,CUSTOMER & CLIENT RECPTS - EXT,CL CONT EXTERNAL RESIDENTIAL,384159,130280720,07-Apr-14,-348.97,Revenue,ST MARYS RESIDENTIAL HOME,SP0000215
WANDSWORTH COUNCIL,ASC,SOCIAL SERVICES,CUSTOMER & CLIENT RECPTS - EXT,CL CONT EXTERNAL RESIDENTIAL,384160,130280720,07-Apr-14,-538.07,Revenue,ST MARYS RESIDENTIAL HOME,SP0000215
WANDSWORTH COUNCIL,ASC,SOCIAL SERVICES,CUSTOMER & CLIENT RECPTS - EXT,CL CONT EXTERNAL RESIDENTIAL,384162,130280720,07-Apr-14,-538.07,Revenue,ST MARYS RESIDENTIAL HOME,SP0000215
WANDSWORTH COUNCIL,ASC,SOCIAL SERVICES,CUSTOMER & CLIENT RECPTS - EXT,CL CONT EXTERNAL RESIDENTIAL,384164,130280720,07-Apr-14,-260.49,Revenue,ST MARYS RESIDENTIAL HOME,SP0000215
WANDSWORTH COUNCIL,ASC,SOCIAL SERVICES,CUSTOMER & CLIENT RECPTS - EXT,CL CONT EXTERNAL RESIDENTIAL,384165,130280720,07-Apr-14,-538.07,Revenue,ST MARYS RESIDENTIAL HOME,SP0000215
WANDSWORTH COUNCIL,ASC,SOCIAL SERVICES,CUSTOMER & CLIENT RECPTS - EXT,CL CONT EXTERNAL RESIDENTIAL,389532,130280720,15-Apr-14,-315.20,Revenue,ST MARYS RESIDENTIAL HOME,SP0000215
WANDSWORTH COUNCIL,ASC,SOCIAL SERVICES,CUSTOMER & CLIENT RECPTS - EXT,CL CONT EXTERNAL RESIDENTIAL,391701,130280720,22-Apr-14,-707.12,Revenue,ST MARYS RESIDENTIAL HOME,SP0000215
WANDSWORTH COUNCIL,ASC,SOCIAL SERVICES,CUSTOMER & CLIENT RECPTS - EXT,CL CONT EXTERNAL RESIDENTIAL,391702,130280720,22-Apr-14,-315.20,Revenue,ST MARYS RESIDENTIAL HOME,SP0000215
WANDSWORTH COUNCIL,ASC,SOCIAL SERVICES,CUSTOMER & CLIENT RECPTS - EXT,CL CONT EXTERNAL RESIDENTIAL,391703,130280720,22-Apr-14,-348.98,Revenue,ST MARYS RESIDENTIAL HOME,SP0000215
WANDSWORTH COUNCIL,ASC,SOCIAL SERVICES,CUSTOMER & CLIENT RECPTS - EXT,CL CONT EXTERNAL RESIDENTIAL,391704,130280720,22-Apr-14,-348.98,Revenue,ST MARYS RESIDENTIAL HOME,SP0000215
WANDSWORTH COUNCIL,ASC,SOCIAL SERVICES,CUSTOMER & CLIENT RECPTS - EXT,CL CONT EXTERNAL RESIDENTIAL,391705,130280720,22-Apr-14,-538.08,Revenue,ST MARYS RESIDENTIAL HOME,SP0000215
WANDSWORTH COUNCIL,ASC,SOCIAL SERVICES,CUSTOMER & CLIENT RECPTS - EXT,CL CONT EXTERNAL RESIDENTIAL,391706,130280720,22-Apr-14,-348.98,Revenue,ST MARYS RESIDENTIAL HOME,SP0000215
WANDSWORTH COUNCIL,ASC,SOCIAL SERVICES,CUSTOMER & CLIENT RECPTS - EXT,CL CONT EXTERNAL RESIDENTIAL,391707,130280720,22-Apr-14,-345.42,Revenue,ST MARYS RESIDENTIAL HOME,SP0000215
WANDSWORTH COUNCIL,ASC,SOCIAL SERVICES,CUSTOMER & CLIENT RECPTS - EXT,CL CONT EXTERNAL RESIDENTIAL,391708,130280720,22-Apr-14,-348.98,Revenue,ST MARYS RESIDENTIAL HOME,SP0000215
WANDSWORTH COUNCIL,ASC,SOCIAL SERVICES,CUSTOMER & CLIENT RECPTS - EXT,CL CONT EXTERNAL RESIDENTIAL,391709,130280720,22-Apr-14,-545.63,Revenue,ST MARYS RESIDENTIAL HOME,SP0000215
WANDSWORTH COUNCIL,ASC,SOCIAL SERVICES,CUSTOMER & CLIENT RECPTS - EXT,CL CONT EXTERNAL RESIDENTIAL,391711,130280720,22-Apr-14,-538.08,Revenue,ST MARYS RESIDENTIAL HOME,SP0000215
WANDSWORTH COUNCIL,ASC,SOCIAL SERVICES,CUSTOMER & CLIENT RECPTS - EXT,CL CONT EXTERNAL RESIDENTIAL,391712,130280720,22-Apr-14,-260.48,Revenue,ST MARYS RESIDENTIAL HOME,SP0000215
WANDSWORTH COUNCIL,ASC,SOCIAL SERVICES,CUSTOMER & CLIENT RECPTS - EXT,CL CONT EXTERNAL RESIDENTIAL,391713,130280720,22-Apr-14,-538.08,Revenue,ST MARYS RESIDENTIAL HOME,SP0000215
WANDSWORTH COUNCIL,ASC,SOCIAL SERVICES,CUSTOMER & CLIENT RECPTS - EXT,CL CONT EXTERNAL RESIDENTIAL,386535,130280720,10-Apr-14,-348.97,Revenue,STALLCOMBE HOUSE,SP0000843
WANDSWORTH COUNCIL,ASC,SOCIAL SERVICES,CUSTOMER & CLIENT RECPTS - EXT,CL CONT EXTERNAL RESIDENTIAL,383412,130280720,07-Apr-14,-315.20,Revenue,THE BRANDON TRUST,SP0005337
WANDSWORTH COUNCIL,ASC,SOCIAL SERVICES,CUSTOMER & CLIENT RECPTS - EXT,CL CONT EXTERNAL RESIDENTIAL,389564,130280720,15-Apr-14,-315.20,Revenue,THE CHESTNUTS,SP0000182
WANDSWORTH COUNCIL,ASC,SOCIAL SERVICES,CUSTOMER & CLIENT RECPTS - EXT,CL CONT EXTERNAL RESIDENTIAL,389566,130280720,15-Apr-14,-121.50,Revenue,THE CHESTNUTS,SP0000182
WANDSWORTH COUNCIL,ASC,SOCIAL SERVICES,CUSTOMER & CLIENT RECPTS - EXT,CL CONT EXTERNAL RESIDENTIAL,386828,130280720,10-Apr-14,-957.12,Revenue,THE LYLE PARK TRUST,SP0000070
WANDSWORTH COUNCIL,ASC,SOCIAL SERVICES,CUSTOMER & CLIENT RECPTS - EXT,CL CONT EXTERNAL RESIDENTIAL,391715,130280720,22-Apr-14,-424.25,Revenue,THE REGARD PARTNERSHIP,SP0000588
WANDSWORTH COUNCIL,ASC,SOCIAL SERVICES,CUSTOMER & CLIENT RECPTS - EXT,CL CONT EXTERNAL RESIDENTIAL,391716,130280720,22-Apr-14,-424.25,Revenue,THE REGARD PARTNERSHIP,SP0000588
WANDSWORTH COUNCIL,ASC,SOCIAL SERVICES,CUSTOMER & CLIENT RECPTS - EXT,CL CONT EXTERNAL RESIDENTIAL,391717,130280720,22-Apr-14,-424.25,Revenue,THE REGARD PARTNERSHIP,SP0000588
WANDSWORTH COUNCIL,ASC,SOCIAL SERVICES,CUSTOMER & CLIENT RECPTS - EXT,CL CONT EXTERNAL RESIDENTIAL,391718,130280720,22-Apr-14,-341.31,Revenue,THE REGARD PARTNERSHIP,SP0000588
WANDSWORTH COUNCIL,ASC,SOCIAL SERVICES,CUSTOMER & CLIENT RECPTS - EXT,CL CONT EXTERNAL RESIDENTIAL,391719,130280720,22-Apr-14,-433.47,Revenue,THE REGARD PARTNERSHIP,SP0000588
WANDSWORTH COUNCIL,ASC,SOCIAL SERVICES,CUSTOMER & CLIENT RECPTS - EXT,CL CONT EXTERNAL RESIDENTIAL,391732,130280720,22-Apr-14,-424.25,Revenue,THE REGARD PARTNERSHIP,SP0000588
WANDSWORTH COUNCIL,ASC,SOCIAL SERVICES,CUSTOMER & CLIENT RECPTS - EXT,CL CONT EXTERNAL RESIDENTIAL,389514,130280720,15-Apr-14,-188.89,Revenue,THE WELL HOUSE,SP0000448
WANDSWORTH COUNCIL,ASC,SOCIAL SERVICES,CUSTOMER & CLIENT RECPTS - EXT,CL CONT EXTERNAL RESIDENTIAL,389515,130280720,15-Apr-14,-168.86,Revenue,THE WELL HOUSE,SP0000448
WANDSWORTH COUNCIL,ASC,SOCIAL SERVICES,CUSTOMER & CLIENT RECPTS - EXT,CL CONT EXTERNAL RESIDENTIAL,393903,130280720,25-Apr-14,-168.44,Revenue,THE WELL HOUSE,SP0000448
WANDSWORTH COUNCIL,ASC,SOCIAL SERVICES,CUSTOMER & CLIENT RECPTS - EXT,CL CONT EXTERNAL RESIDENTIAL,389534,130280720,15-Apr-14,-352.60,Revenue,TOTTERDOWN,SP0001113
WANDSWORTH COUNCIL,ASC,SOCIAL SERVICES,CUSTOMER & CLIENT RECPTS - EXT,CL CONT EXTERNAL RESIDENTIAL,384140,130280720,07-Apr-14,-390.38,Revenue,TRACS,SP0000914
WANDSWORTH COUNCIL,ASC,SOCIAL SERVICES,CUSTOMER & CLIENT RECPTS - EXT,CL CONT EXTERNAL RESIDENTIAL,384130,130280720,07-Apr-14,-538.07,Revenue,VOYAGE CARE LTD,SP0000366
WANDSWORTH COUNCIL,ASC,SOCIAL SERVICES,CUSTOMER & CLIENT RECPTS - EXT,CL CONT EXTERNAL RESIDENTIAL,384142,130280720,07-Apr-14,-348.97,Revenue,VOYAGE CARE LTD,SP0000366
WANDSWORTH COUNCIL,ASC,SOCIAL SERVICES,CUSTOMER & CLIENT RECPTS - EXT,CL CONT EXTERNAL RESIDENTIAL,384144,130280720,07-Apr-14,-224.84,Revenue,VOYAGE CARE LTD,SP0000366
WANDSWORTH COUNCIL,ASC,SOCIAL SERVICES,CUSTOMER & CLIENT RECPTS - EXT,CL CONT EXTERNAL RESIDENTIAL,391721,130280720,22-Apr-14,-393.22,Revenue,VOYAGE CARE LTD,SP0000366
WANDSWORTH COUNCIL,ASC,SOCIAL SERVICES,CUSTOMER & CLIENT RECPTS - EXT,CL CONT EXTERNAL RESIDENTIAL,391731,130280720,22-Apr-14,-356.24,Revenue,VOYAGE CARE LTD,SP0000366
WANDSWORTH COUNCIL,ASC,SOCIAL SERVICES,CUSTOMER & CLIENT RECPTS - EXT,CL CONT EXTERNAL RESIDENTIAL,391934,130280720,22-Apr-14,-529.11,Revenue,VOYAGE CARE LTD,SP0000366
WANDSWORTH COUNCIL,ASC,SOCIAL SERVICES,CUSTOMER & CLIENT RECPTS - EXT,CL CONT EXTERNAL RESIDENTIAL,391935,130280720,22-Apr-14,-341.31,Revenue,VOYAGE CARE LTD,SP0000366
WANDSWORTH COUNCIL,ASC,SOCIAL SERVICES,CUSTOMER & CLIENT RECPTS - EXT,CL CONT EXTERNAL RESIDENTIAL,385586,130280720,09-Apr-14,-352.60,Revenue,WHITE ROSE CARE,SP0000780
WANDSWORTH COUNCIL,ASC,SOCIAL SERVICES,CUSTOMER & CLIENT RECPTS - EXT,CL CONT EXTERNAL RESIDENTIAL,386542,130280720,10-Apr-14,-315.20,Revenue,WINSLOW COURT,SP0000886
WANDSWORTH COUNCIL,ASC,SOCIAL SERVICES,CUSTOMER & CLIENT RECPTS - EXT,CL CONTS INTERNAL RESIDENTIAL,386540,130280760,10-Apr-14,-348.97,Revenue,LEONARD CHESHIRE,SP0000976
WANDSWORTH COUNCIL,ASC,SOCIAL SERVICES,CUSTOMER & CLIENT RECPTS - EXT,CLIENT CONTS EXTERNAL NURSING,386739,130280820,10-Apr-14,-486.00,Revenue,GEORGE POTTER CARE HOME LTD,SP0000276
WANDSWORTH COUNCIL,ASC,SOCIAL SERVICES,CUSTOMER & CLIENT RECPTS - EXT,CLIENT CONTS EXTERNAL NURSING,389505,130280820,15-Apr-14,-344.23,Revenue,ROYAL HOSPITAL FOR NEURO-DISABILITY,SP0000375
WANDSWORTH COUNCIL,ASC,SOCIAL SERVICES,CUSTOMER & CLIENT RECPTS - EXT,CLIENT CONTS EXTERNAL NURSING,384138,130280820,07-Apr-14,-348.97,Revenue,SUSSEX HEALTH CARE,SP0001115
WANDSWORTH COUNCIL,ASC,SOCIAL SERVICES,CUSTOMER & CLIENT RECPTS - EXT,CLIENT CONTS EXTERNAL NURSING,386980,130280820,10-Apr-14,-383.20,Revenue,TRINITY COURT NURSING HOME,SP0001001
WANDSWORTH COUNCIL,ASC,SOCIAL SERVICES,CUSTOMER & CLIENT RECPTS - EXT,CLIENT CONTS EXTERNAL NURSING,384131,130280820,07-Apr-14,-443.74,Revenue,VOYAGE CARE LTD,SP0000366
WANDSWORTH COUNCIL,ASC,SOCIAL SERVICES,CUSTOMER & CLIENT RECPTS - EXT,CLIENT CONTS EXTERNAL NURSING,391726,130280820,22-Apr-14,-316.70,Revenue,VOYAGE CARE LTD,SP0000366
WANDSWORTH COUNCIL,ASC,SOCIAL SERVICES,CUSTOMER & CLIENT RECPTS - EXT,CLIENT CONTS EXTERNAL NURSING,389516,130280820,15-Apr-14,-486.00,Revenue,YEW TREE NURSING HOME,SP0000454
WANDSWORTH COUNCIL,ASC,SOCIAL SERVICES,CUSTOMER & CLIENT RECPTS - EXT,RNCC,386919,130284120,10-Apr-14,-439.16,Revenue,FOUR SEASONS HEALTH CARE LTD,SP0000422
WANDSWORTH COUNCIL,ASC,SOCIAL SERVICES,CUSTOMER & CLIENT RECPTS - EXT,RNCC,386739,130284120,10-Apr-14,-439.16,Revenue,GEORGE POTTER CARE HOME LTD,SP0000276
WANDSWORTH COUNCIL,ASC,SOCIAL SERVICES,CUSTOMER & CLIENT RECPTS - EXT,RNCC,389505,130284120,15-Apr-14,-486.21,Revenue,ROYAL HOSPITAL FOR NEURO-DISABILITY,SP0000375
WANDSWORTH COUNCIL,ASC,SOCIAL SERVICES,CUSTOMER & CLIENT RECPTS - EXT,RNCC,386980,130284120,10-Apr-14,-439.16,Revenue,TRINITY COURT NURSING HOME,SP0001001
WANDSWORTH COUNCIL,ASC,SOCIAL SERVICES,CUSTOMER & CLIENT RECPTS - EXT,RNCC,391726,130284120,22-Apr-14,-434.80,Revenue,VOYAGE CARE LTD,SP0000366
WANDSWORTH COUNCIL,ASC,SOCIAL SERVICES,CUSTOMER & CLIENT RECPTS - EXT,RNCC,389516,130284120,15-Apr-14,-439.16,Revenue,YEW TREE NURSING HOME,SP0000454
WANDSWORTH COUNCIL,ASC,SOCIAL SERVICES,SERVICES,PROJECT WORK,20280408,130634800,30-Apr-14,"7,500.00",Revenue,WANDSWORTH CARE ALLIANCE,2006618
WANDSWORTH COUNCIL,ASC,ENVIRONMENT & COMMUNITY,GRANTS & SUBSCRIPTIONS,CONTRACTS TO VOLUNTARY ORGS,387447,136237550,11-Apr-14,"5,839.40",Revenue,WANDSWORTH MENCAP,SP0000834
WANDSWORTH COUNCIL,ASC,ENVIRONMENT & COMMUNITY,GRANTS & SUBSCRIPTIONS,CONTRACTS TO VOLUNTARY ORGS,387274,136437550,11-Apr-14,"4,777.80",Revenue,GENERATE OPPORTUNITIES LTD,SP0000503
WANDSWORTH COUNCIL,ASC,SOCIAL SERVICES,DIRECT2,AGENCY STAFF,20278843,140000510,23-Apr-14,"2,414.56",Revenue,MATRIX SCM LIMITED,2014926
WANDSWORTH COUNCIL,ASC,SOCIAL SERVICES,DIRECT2,AGENCY STAFF,20278844,140000510,15-Apr-14,"1,717.61",Revenue,MATRIX SCM LIMITED,2014926
WANDSWORTH COUNCIL,ASC,SOCIAL SERVICES,DIRECT2,AGENCY STAFF,20278845,140000510,15-Apr-14,"1,020.21",Revenue,MATRIX SCM LIMITED,2014926
WANDSWORTH COUNCIL,ASC,SOCIAL SERVICES,DIRECT2,AGENCY STAFF,20279371,140000510,22-Apr-14,997.78,Revenue,MATRIX SCM LIMITED,2014926
WANDSWORTH COUNCIL,ASC,SOCIAL SERVICES,DIRECT2,AGENCY STAFF,20279908,140000510,29-Apr-14,"1,423.34",Revenue,MATRIX SCM LIMITED,2014926
WANDSWORTH COUNCIL,ASC,SOCIAL SERVICES,DIRECT2,AGENCY STAFF,20278843,140100510,23-Apr-14,316.45,Revenue,MATRIX SCM LIMITED,2014926
WANDSWORTH COUNCIL,ASC,SOCIAL SERVICES,DIRECT2,AGENCY STAFF,20278844,140100510,15-Apr-14,"3,657.85",Revenue,MATRIX SCM LIMITED,2014926
WANDSWORTH COUNCIL,ASC,SOCIAL SERVICES,DIRECT2,AGENCY STAFF,20278845,140100510,15-Apr-14,"1,072.75",Revenue,MATRIX SCM LIMITED,2014926
WANDSWORTH COUNCIL,ASC,SOCIAL SERVICES,DIRECT2,AGENCY STAFF,20279908,140100510,29-Apr-14,"3,829.60",Revenue,MATRIX SCM LIMITED,2014926
WANDSWORTH COUNCIL,ASC,SOCIAL SERVICES,HIRE,HIRE - TRANSPORT,389542,140120410,15-Apr-14,80.00,Revenue,ANA TREATMENT CENTRES LTD,SP0006362
WANDSWORTH COUNCIL,ASC,SOCIAL SERVICES,PRIVATE,EXTERNAL RESIDENTIAL CARE,389541,140145330,15-Apr-14,720.00,Revenue,ANA TREATMENT CENTRES LTD,SP0006362
WANDSWORTH COUNCIL,ASC,SOCIAL SERVICES,PRIVATE,EXTERNAL RESIDENTIAL CARE,389542,140145330,15-Apr-14,"2,440.00",Revenue,ANA TREATMENT CENTRES LTD,SP0006362
WANDSWORTH COUNCIL,ASC,SOCIAL SERVICES,PRIVATE,EXTERNAL RESIDENTIAL CARE,389543,140145330,15-Apr-14,"2,790.00",Revenue,ANA TREATMENT CENTRES LTD,SP0006362
WANDSWORTH COUNCIL,ASC,SOCIAL SERVICES,PRIVATE,EXTERNAL RESIDENTIAL CARE,389572,140145330,15-Apr-14,"1,462.00",Revenue,COMMUNITY HOUSING & THERAPY,SP0001366
WANDSWORTH COUNCIL,ASC,SOCIAL SERVICES,PRIVATE,EXTERNAL RESIDENTIAL CARE,385127,140145330,08-Apr-14,"1,185.43",Revenue,FOUNDATION 66,SP0005873
WANDSWORTH COUNCIL,ASC,SOCIAL SERVICES,PRIVATE,EXTERNAL RESIDENTIAL CARE,383418,140145330,07-Apr-14,972.57,Revenue,PHOENIX HOUSE,SP0000373
WANDSWORTH COUNCIL,ASC,SOCIAL SERVICES,PRIVATE,EXTERNAL RESIDENTIAL CARE,383419,140145330,07-Apr-14,"3,294.20",Revenue,PHOENIX HOUSE,SP0000373
WANDSWORTH COUNCIL,ASC,SOCIAL SERVICES,PRIVATE,EXTERNAL RESIDENTIAL CARE,383414,140145330,07-Apr-14,"2,500.00",Revenue,STREETSCENE ADDICTION RECOVERY,SP0001163
WANDSWORTH COUNCIL,ASC,SOCIAL SERVICES,PRIVATE,EXTERNAL RESIDENTIAL CARE,383415,140145330,07-Apr-14,"2,379.79",Revenue,STREETSCENE ADDICTION RECOVERY,SP0001163
WANDSWORTH COUNCIL,ASC,SOCIAL SERVICES,PRIVATE,EXTERNAL RESIDENTIAL CARE,384855,140145330,08-Apr-14,"1,277.31",Revenue,STREETSCENE ADDICTION RECOVERY,SP0001163
WANDSWORTH COUNCIL,ASC,SOCIAL SERVICES,PRIVATE,EXTERNAL RESIDENTIAL CARE,384856,140145330,08-Apr-14,"2,500.00",Revenue,STREETSCENE ADDICTION RECOVERY,SP0001163
WANDSWORTH COUNCIL,ASC,SOCIAL SERVICES,PRIVATE,EXTERNAL RESIDENTIAL CARE,384857,140145330,08-Apr-14,"2,500.00",Revenue,STREETSCENE ADDICTION RECOVERY,SP0001163
WANDSWORTH COUNCIL,ASC,SOCIAL SERVICES,PRIVATE,EXTERNAL RESIDENTIAL CARE,395818,140145330,30-Apr-14,"2,443.89",Revenue,STREETSCENE ADDICTION RECOVERY,SP0001163
WANDSWORTH COUNCIL,ASC,SOCIAL SERVICES,PRIVATE,EXTERNAL RESIDENTIAL CARE,389517,140145330,15-Apr-14,"3,941.20",Revenue,TREVI HOUSE LTD,SP0001055
WANDSWORTH COUNCIL,ASC,SOCIAL SERVICES,PRIVATE,EXTERNAL RESIDENTIAL CARE,389518,140145330,15-Apr-14,"2,415.58",Revenue,TREVI HOUSE LTD,SP0001055
WANDSWORTH COUNCIL,ASC,SOCIAL SERVICES,VOL ASS,SUPPORTED HOUSING PROGRAMME,384853,140148030,08-Apr-14,"1,000.00",Revenue,ADDICTION RECOVERY CENTRE,SP0001547
WANDSWORTH COUNCIL,ASC,SOCIAL SERVICES,VOL ASS,SUPPORTED HOUSING PROGRAMME,384854,140148030,08-Apr-14,"2,000.00",Revenue,ADDICTION RECOVERY CENTRE,SP0001547
WANDSWORTH COUNCIL,ASC,SOCIAL SERVICES,CUSTOMER & CLIENT RECPTS - EXT,CL CONT EXTERNAL RESIDENTIAL,389541,140180720,15-Apr-14,-54.63,Revenue,ANA TREATMENT CENTRES LTD,SP0006362
WANDSWORTH COUNCIL,ASC,SOCIAL SERVICES,CUSTOMER & CLIENT RECPTS - EXT,CL CONT EXTERNAL RESIDENTIAL,389542,140180720,15-Apr-14,-191.20,Revenue,ANA TREATMENT CENTRES LTD,SP0006362
WANDSWORTH COUNCIL,ASC,SOCIAL SERVICES,CUSTOMER & CLIENT RECPTS - EXT,CL CONT EXTERNAL RESIDENTIAL,389543,140180720,15-Apr-14,-211.69,Revenue,ANA TREATMENT CENTRES LTD,SP0006362
WANDSWORTH COUNCIL,ASC,SOCIAL SERVICES,CUSTOMER & CLIENT RECPTS - EXT,CL CONT EXTERNAL RESIDENTIAL,385127,140180720,08-Apr-14,-81.95,Revenue,FOUNDATION 66,SP0005873
WANDSWORTH COUNCIL,ASC,SOCIAL SERVICES,CUSTOMER & CLIENT RECPTS - EXT,CL CONT EXTERNAL RESIDENTIAL,383418,140180720,07-Apr-14,-108.57,Revenue,PHOENIX HOUSE,SP0000373
WANDSWORTH COUNCIL,ASC,SOCIAL SERVICES,CUSTOMER & CLIENT RECPTS - EXT,CL CONT EXTERNAL RESIDENTIAL,383419,140180720,07-Apr-14,-191.20,Revenue,PHOENIX HOUSE,SP0000373
WANDSWORTH COUNCIL,ASC,SOCIAL SERVICES,CUSTOMER & CLIENT RECPTS - EXT,CL CONT EXTERNAL RESIDENTIAL,383414,140180720,07-Apr-14,-305.00,Revenue,STREETSCENE ADDICTION RECOVERY,SP0001163
WANDSWORTH COUNCIL,ASC,SOCIAL SERVICES,CUSTOMER & CLIENT RECPTS - EXT,CL CONT EXTERNAL RESIDENTIAL,383415,140180720,07-Apr-14,-191.20,Revenue,STREETSCENE ADDICTION RECOVERY,SP0001163
WANDSWORTH COUNCIL,ASC,SOCIAL SERVICES,CUSTOMER & CLIENT RECPTS - EXT,CL CONT EXTERNAL RESIDENTIAL,384855,140180720,08-Apr-14,-122.91,Revenue,STREETSCENE ADDICTION RECOVERY,SP0001163
WANDSWORTH COUNCIL,ASC,SOCIAL SERVICES,CUSTOMER & CLIENT RECPTS - EXT,CL CONT EXTERNAL RESIDENTIAL,384856,140180720,08-Apr-14,-191.20,Revenue,STREETSCENE ADDICTION RECOVERY,SP0001163
WANDSWORTH COUNCIL,ASC,SOCIAL SERVICES,CUSTOMER & CLIENT RECPTS - EXT,CL CONT EXTERNAL RESIDENTIAL,384857,140180720,08-Apr-14,-191.20,Revenue,STREETSCENE ADDICTION RECOVERY,SP0001163
WANDSWORTH COUNCIL,ASC,SOCIAL SERVICES,CUSTOMER & CLIENT RECPTS - EXT,CL CONT EXTERNAL RESIDENTIAL,395818,140180720,30-Apr-14,-255.30,Revenue,STREETSCENE ADDICTION RECOVERY,SP0001163
WANDSWORTH COUNCIL,ASC,SOCIAL SERVICES,CUSTOMER & CLIENT RECPTS - EXT,CL CONT EXTERNAL RESIDENTIAL,389517,140180720,15-Apr-14,-211.68,Revenue,TREVI HOUSE LTD,SP0001055
WANDSWORTH COUNCIL,ASC,SOCIAL SERVICES,CUSTOMER & CLIENT RECPTS - EXT,CL CONT EXTERNAL RESIDENTIAL,389518,140180720,15-Apr-14,-129.75,Revenue,TREVI HOUSE LTD,SP0001055
WANDSWORTH COUNCIL,ASC,SOCIAL SERVICES,DIRECT2,AGENCY STAFF,20278843,140300510,23-Apr-14,"7,305.70",Revenue,MATRIX SCM LIMITED,2014926
WANDSWORTH COUNCIL,ASC,SOCIAL SERVICES,DIRECT2,AGENCY STAFF,20278844,140300510,15-Apr-14,"1,988.20",Revenue,MATRIX SCM LIMITED,2014926
WANDSWORTH COUNCIL,ASC,SOCIAL SERVICES,DIRECT2,AGENCY STAFF,20278845,140300510,15-Apr-14,"2,176.15",Revenue,MATRIX SCM LIMITED,2014926
WANDSWORTH COUNCIL,ASC,SOCIAL SERVICES,DIRECT2,AGENCY STAFF,20279371,140300510,22-Apr-14,"2,579.00",Revenue,MATRIX SCM LIMITED,2014926
WANDSWORTH COUNCIL,ASC,SOCIAL SERVICES,DIRECT2,AGENCY STAFF,20279908,140300510,29-Apr-14,"1,972.00",Revenue,MATRIX SCM LIMITED,2014926
WANDSWORTH COUNCIL,ASC,SOCIAL SERVICES,OTHER AGENCIES,EXTERNAL OUTREACH,394014,140543330,25-Apr-14,940.56,Revenue,ACTION ON HEARING LOSS,SP0000563
WANDSWORTH COUNCIL,ASC,SOCIAL SERVICES,OTHER AGENCIES,EXTERNAL OUTREACH,393988,140543330,25-Apr-14,"2,262.80",Revenue,SIGNHEALTH,SP0000496
WANDSWORTH COUNCIL,ASC,SOCIAL SERVICES,OTHER AGENCIES,EXTERNAL OUTREACH,393990,140543330,25-Apr-14,"2,604.50",Revenue,SIGNHEALTH,SP0000496
WANDSWORTH COUNCIL,ASC,SOCIAL SERVICES,OTHER AGENCIES,EXTERNAL OUTREACH,385131,140543330,08-Apr-14,608.40,Revenue,VIRIDIAN HOUSING,SP0001289
WANDSWORTH COUNCIL,ASC,SOCIAL SERVICES,OTHER AGENCIES,EXTERNAL OUTREACH,385132,140543330,08-Apr-14,608.40,Revenue,VIRIDIAN HOUSING,SP0001289
WANDSWORTH COUNCIL,ASC,SOCIAL SERVICES,OTHER AGENCIES,EXTERNAL OUTREACH,385345,140543330,08-Apr-14,992.00,Revenue,VIRIDIAN HOUSING,SP0001289
WANDSWORTH COUNCIL,ASC,SOCIAL SERVICES,PRIVATE,EXTERNAL RESIDENTIAL CARE,383420,140545330,07-Apr-14,"5,155.16",Revenue,ACTION ON HEARING LOSS,SP0001359
WANDSWORTH COUNCIL,ASC,SOCIAL SERVICES,PRIVATE,EXTERNAL RESIDENTIAL CARE,385130,140545330,08-Apr-14,"3,398.72",Revenue,ACTION ON HEARING LOSS,SP0001359
WANDSWORTH COUNCIL,ASC,SOCIAL SERVICES,PRIVATE,EXTERNAL RESIDENTIAL CARE,393884,140545330,25-Apr-14,"2,670.42",Revenue,ACTION ON HEARING LOSS,SP0001359
WANDSWORTH COUNCIL,ASC,SOCIAL SERVICES,PRIVATE,EXTERNAL RESIDENTIAL CARE,393885,140545330,25-Apr-14,"2,460.32",Revenue,ACTION ON HEARING LOSS,SP0001359
WANDSWORTH COUNCIL,ASC,SOCIAL SERVICES,PRIVATE,EXTERNAL RESIDENTIAL CARE,395845,140545330,30-Apr-14,"5,843.57",Revenue,SIGNHEALTH,SP0000496
WANDSWORTH COUNCIL,ASC,SOCIAL SERVICES,PRIVATE,EXTERNAL RESIDENTIAL CARE,395846,140545330,30-Apr-14,"6,814.76",Revenue,SIGNHEALTH,SP0000496
WANDSWORTH COUNCIL,ASC,SOCIAL SERVICES,PRIVATE,EXTERNAL RESIDENTIAL CARE,395847,140545330,30-Apr-14,"5,758.80",Revenue,SIGNHEALTH,SP0000496
WANDSWORTH COUNCIL,ASC,SOCIAL SERVICES,PRIVATE,EXTERNAL RESIDENTIAL CARE,389519,140545330,15-Apr-14,"4,024.32",Revenue,VIRIDIAN HOUSING,SP0001289
WANDSWORTH COUNCIL,ASC,SOCIAL SERVICES,CUSTOMER & CLIENT RECPTS - EXT,CL CONT EXTERNAL RESIDENTIAL,393885,140580720,25-Apr-14,-247.66,Revenue,ACTION ON HEARING LOSS,SP0001359
WANDSWORTH COUNCIL,ASC,SOCIAL SERVICES,CUSTOMER & CLIENT RECPTS - EXT,CL CONT EXTERNAL RESIDENTIAL,389519,140580720,15-Apr-14,-315.20,Revenue,VIRIDIAN HOUSING,SP0001289
WANDSWORTH COUNCIL,ASC,SOCIAL SERVICES,PRIVATE,EXTERNAL HOMECARE,383450,142045300,07-Apr-14,297.12,Revenue,HFH HOMECARE,SP0001058
WANDSWORTH COUNCIL,ASC,SOCIAL SERVICES,PRIVATE,EXTERNAL HOMECARE,391748,142045300,22-Apr-14,297.12,Revenue,HFH HOMECARE,SP0001058
WANDSWORTH COUNCIL,ASC,SOCIAL SERVICES,PRIVATE,EXTERNAL HOMECARE,383496,142045300,07-Apr-14,522.28,Revenue,LONDON CARE PLC,SP0001035
WANDSWORTH COUNCIL,ASC,SOCIAL SERVICES,PRIVATE,EXTERNAL HOMECARE,383536,142045300,07-Apr-14,523.94,Revenue,LONDON CARE PLC,SP0001035
WANDSWORTH COUNCIL,ASC,SOCIAL SERVICES,PRIVATE,EXTERNAL HOMECARE,386545,142045300,10-Apr-14,645.20,Revenue,SUPREME CARE SERVICE LTD,SP0001600
WANDSWORTH COUNCIL,ASC,SOCIAL SERVICES,PRIVATE,EXTERNAL HOMECARE,384932,142045300,08-Apr-14,465.00,Revenue,THE BUSINESS OFFICE CLEANING SERVICES LT,SP0001787
WANDSWORTH COUNCIL,ASC,SOCIAL SERVICES,PRIVATE,EXTERNAL NURSING CARE,389493,142045310,15-Apr-14,"2,815.88",Revenue,ROSEDENE NURSING HOME,SP0000316
WANDSWORTH COUNCIL,ASC,SOCIAL SERVICES,PRIVATE,EXTERNAL NURSING CARE,389498,142045310,15-Apr-14,"2,815.88",Revenue,ROSEDENE NURSING HOME,SP0000316
WANDSWORTH COUNCIL,ASC,SOCIAL SERVICES,PRIVATE,EXTERNAL NURSING CARE,389499,142045310,15-Apr-14,"2,815.88",Revenue,ROSEDENE NURSING HOME,SP0000316
WANDSWORTH COUNCIL,ASC,SOCIAL SERVICES,PRIVATE,EXTERNAL NURSING CARE,389502,142045310,15-Apr-14,"2,815.88",Revenue,ROSEDENE NURSING HOME,SP0000316
WANDSWORTH COUNCIL,ASC,SOCIAL SERVICES,PRIVATE,EXTERNAL NURSING CARE,389503,142045310,15-Apr-14,"2,815.88",Revenue,ROSEDENE NURSING HOME,SP0000316
WANDSWORTH COUNCIL,ASC,SOCIAL SERVICES,PRIVATE,EXTERNAL NURSING CARE,386966,142045310,10-Apr-14,"3,138.52",Revenue,TRINITY COURT NURSING HOME,SP0001001
WANDSWORTH COUNCIL,ASC,SOCIAL SERVICES,PRIVATE,EXTERNAL NURSING CARE,386979,142045310,10-Apr-14,"2,828.00",Revenue,TRINITY COURT NURSING HOME,SP0001001
WANDSWORTH COUNCIL,ASC,SOCIAL SERVICES,PRIVATE,EXTERNAL RESIDENTIAL CARE,384852,142045330,08-Apr-14,"3,050.00",Revenue,ABBEY HOUSE,SP0001434
WANDSWORTH COUNCIL,ASC,SOCIAL SERVICES,PRIVATE,EXTERNAL RESIDENTIAL CARE,394876,142045330,28-Apr-14,"2,440.00",Revenue,ABBEY HOUSE,SP0001434
WANDSWORTH COUNCIL,ASC,SOCIAL SERVICES,PRIVATE,EXTERNAL RESIDENTIAL CARE,384837,142045330,08-Apr-14,"3,465.60",Revenue,ADMIRAL HEALTHCARE LTD,SP0001227
WANDSWORTH COUNCIL,ASC,SOCIAL SERVICES,PRIVATE,EXTERNAL RESIDENTIAL CARE,384838,142045330,08-Apr-14,"3,747.12",Revenue,ADMIRAL HEALTHCARE LTD,SP0001227
WANDSWORTH COUNCIL,ASC,SOCIAL SERVICES,PRIVATE,EXTERNAL RESIDENTIAL CARE,384839,142045330,08-Apr-14,"3,747.12",Revenue,ADMIRAL HEALTHCARE LTD,SP0001227
WANDSWORTH COUNCIL,ASC,SOCIAL SERVICES,PRIVATE,EXTERNAL RESIDENTIAL CARE,384840,142045330,08-Apr-14,"4,000.00",Revenue,ADMIRAL HEALTHCARE LTD,SP0001227
WANDSWORTH COUNCIL,ASC,SOCIAL SERVICES,PRIVATE,EXTERNAL RESIDENTIAL CARE,384841,142045330,08-Apr-14,"1,571.43",Revenue,ADMIRAL HEALTHCARE LTD,SP0001227
WANDSWORTH COUNCIL,ASC,SOCIAL SERVICES,PRIVATE,EXTERNAL RESIDENTIAL CARE,384842,142045330,08-Apr-14,"3,747.12",Revenue,ADMIRAL HEALTHCARE LTD,SP0001227
WANDSWORTH COUNCIL,ASC,SOCIAL SERVICES,PRIVATE,EXTERNAL RESIDENTIAL CARE,384843,142045330,08-Apr-14,"3,881.03",Revenue,ADMIRAL HEALTHCARE LTD,SP0001227
WANDSWORTH COUNCIL,ASC,SOCIAL SERVICES,PRIVATE,EXTERNAL RESIDENTIAL CARE,384844,142045330,08-Apr-14,"4,000.00",Revenue,ADMIRAL HEALTHCARE LTD,SP0001227
WANDSWORTH COUNCIL,ASC,SOCIAL SERVICES,PRIVATE,EXTERNAL RESIDENTIAL CARE,384845,142045330,08-Apr-14,"3,714.30",Revenue,ADMIRAL HEALTHCARE LTD,SP0001227
WANDSWORTH COUNCIL,ASC,SOCIAL SERVICES,PRIVATE,EXTERNAL RESIDENTIAL CARE,395848,142045330,30-Apr-14,"2,193.09",Revenue,CROWNWISE LTD,SP0001202
WANDSWORTH COUNCIL,ASC,SOCIAL SERVICES,PRIVATE,EXTERNAL RESIDENTIAL CARE,383417,142045330,07-Apr-14,"15,453.00",Revenue,KIMBERLEY RD,SP0005694
WANDSWORTH COUNCIL,ASC,SOCIAL SERVICES,PRIVATE,EXTERNAL RESIDENTIAL CARE,393904,142045330,25-Apr-14,"2,504.80",Revenue,QUANTUM CARE LTD,SP0001151
WANDSWORTH COUNCIL,ASC,SOCIAL SERVICES,PRIVATE,EXTERNAL RESIDENTIAL CARE,386518,142045330,10-Apr-14,"2,625.04",Revenue,REDACTED PERSONAL DATA,SP0001200
WANDSWORTH COUNCIL,ASC,SOCIAL SERVICES,PRIVATE,EXTERNAL RESIDENTIAL CARE,386519,142045330,10-Apr-14,"2,714.40",Revenue,REDACTED PERSONAL DATA,SP0001200
WANDSWORTH COUNCIL,ASC,SOCIAL SERVICES,PRIVATE,EXTERNAL RESIDENTIAL CARE,395825,142045330,30-Apr-14,"3,131.00",Revenue,REDACTED PERSONAL DATA,SP0000408
WANDSWORTH COUNCIL,ASC,SOCIAL SERVICES,PRIVATE,EXTERNAL RESIDENTIAL CARE,395826,142045330,30-Apr-14,"2,828.00",Revenue,REDACTED PERSONAL DATA,SP0000408
WANDSWORTH COUNCIL,ASC,SOCIAL SERVICES,PRIVATE,EXTERNAL RESIDENTIAL CARE,395827,142045330,30-Apr-14,"3,131.00",Revenue,REDACTED PERSONAL DATA,SP0000408
WANDSWORTH COUNCIL,ASC,SOCIAL SERVICES,PRIVATE,EXTERNAL RESIDENTIAL CARE,386942,142045330,10-Apr-14,"2,504.48",Revenue,RICHARD CUSDEN HOMES LTD,SP0000268
WANDSWORTH COUNCIL,ASC,SOCIAL SERVICES,PRIVATE,EXTERNAL RESIDENTIAL CARE,384860,142045330,08-Apr-14,"1,486.07",Revenue,ROSENMANOR LTD,SP0001457
WANDSWORTH COUNCIL,ASC,SOCIAL SERVICES,PRIVATE,EXTERNAL RESIDENTIAL CARE,384862,142045330,08-Apr-14,"4,112.64",Revenue,TOGETHER WORKING FOR WELLBEING,SP0000950
WANDSWORTH COUNCIL,ASC,SOCIAL SERVICES,PRIVATE,EXTERNAL RESIDENTIAL CARE,384863,142045330,08-Apr-14,"4,285.20",Revenue,TOGETHER WORKING FOR WELLBEING,SP0000950
WANDSWORTH COUNCIL,ASC,SOCIAL SERVICES,PRIVATE,EXTERNAL RESIDENTIAL CARE,395849,142045330,30-Apr-14,"5,140.80",Revenue,TOGETHER WORKING FOR WELLBEING,SP0000950
WANDSWORTH COUNCIL,ASC,SOCIAL SERVICES,PRIVATE,EXTERNAL RESIDENTIAL CARE,395850,142045330,30-Apr-14,"3,213.90",Revenue,TOGETHER WORKING FOR WELLBEING,SP0000950
WANDSWORTH COUNCIL,ASC,SOCIAL SERVICES,VOL ASS,SUPPORTED HOUSING PROGRAMME,390698,142048030,16-Apr-14,"1,218.40",Revenue,C M CARE LTD,SP0000455
WANDSWORTH COUNCIL,ASC,SOCIAL SERVICES,VOL ASS,SUPPORTED HOUSING PROGRAMME,390699,142048030,16-Apr-14,473.20,Revenue,C M CARE LTD,SP0000455
WANDSWORTH COUNCIL,ASC,SOCIAL SERVICES,VOL ASS,SUPPORTED HOUSING PROGRAMME,390707,142048030,16-Apr-14,432.00,Revenue,C M CARE LTD,SP0000455
WANDSWORTH COUNCIL,ASC,SOCIAL SERVICES,VOL ASS,SUPPORTED HOUSING PROGRAMME,393876,142048030,25-Apr-14,"1,160.00",Revenue,CROWNWISE LTD,SP0001202
WANDSWORTH COUNCIL,ASC,SOCIAL SERVICES,VOL ASS,SUPPORTED HOUSING PROGRAMME,393877,142048030,25-Apr-14,"1,160.00",Revenue,CROWNWISE LTD,SP0001202
WANDSWORTH COUNCIL,ASC,SOCIAL SERVICES,VOL ASS,SUPPORTED HOUSING PROGRAMME,393878,142048030,25-Apr-14,"1,160.00",Revenue,CROWNWISE LTD,SP0001202
WANDSWORTH COUNCIL,ASC,SOCIAL SERVICES,VOL ASS,SUPPORTED HOUSING PROGRAMME,385128,142048030,08-Apr-14,"1,536.98",Revenue,PATHWAYS TO INDEPENDENCE LTD,SP0001607
WANDSWORTH COUNCIL,ASC,SOCIAL SERVICES,VOL ASS,SUPPORTED HOUSING PROGRAMME,385129,142048030,08-Apr-14,"1,536.98",Revenue,PATHWAYS TO INDEPENDENCE LTD,SP0001607
WANDSWORTH COUNCIL,ASC,SOCIAL SERVICES,CUSTOMER & CLIENT RECPTS - EXT,CL CONT EXTERNAL RESIDENTIAL,395848,142080720,30-Apr-14,-589.22,Revenue,CROWNWISE LTD,SP0001202
WANDSWORTH COUNCIL,ASC,SOCIAL SERVICES,CUSTOMER & CLIENT RECPTS - EXT,CL CONT EXTERNAL RESIDENTIAL,393904,142080720,25-Apr-14,-558.89,Revenue,QUANTUM CARE LTD,SP0001151
WANDSWORTH COUNCIL,ASC,SOCIAL SERVICES,CUSTOMER & CLIENT RECPTS - EXT,CL CONT EXTERNAL RESIDENTIAL,386518,142080720,10-Apr-14,-486.00,Revenue,REDACTED PERSONAL DATA,SP0001200
WANDSWORTH COUNCIL,ASC,SOCIAL SERVICES,CUSTOMER & CLIENT RECPTS - EXT,CL CONT EXTERNAL RESIDENTIAL,395825,142080720,30-Apr-14,-390.38,Revenue,REDACTED PERSONAL DATA,SP0000408
WANDSWORTH COUNCIL,ASC,SOCIAL SERVICES,CUSTOMER & CLIENT RECPTS - EXT,CL CONT EXTERNAL RESIDENTIAL,395826,142080720,30-Apr-14,-352.60,Revenue,REDACTED PERSONAL DATA,SP0000408
WANDSWORTH COUNCIL,ASC,SOCIAL SERVICES,CUSTOMER & CLIENT RECPTS - EXT,CL CONT EXTERNAL RESIDENTIAL,395827,142080720,30-Apr-14,-390.38,Revenue,REDACTED PERSONAL DATA,SP0000408
WANDSWORTH COUNCIL,ASC,SOCIAL SERVICES,CUSTOMER & CLIENT RECPTS - EXT,CL CONT EXTERNAL RESIDENTIAL,386942,142080720,10-Apr-14,"-1,336.50",Revenue,RICHARD CUSDEN HOMES LTD,SP0000268
WANDSWORTH COUNCIL,ASC,SOCIAL SERVICES,CUSTOMER & CLIENT RECPTS - EXT,CLIENT CONTS EXTERNAL NURSING,389498,142080820,15-Apr-14,-561.12,Revenue,ROSEDENE NURSING HOME,SP0000316
WANDSWORTH COUNCIL,ASC,SOCIAL SERVICES,CUSTOMER & CLIENT RECPTS - EXT,CLIENT CONTS EXTERNAL NURSING,389502,142080820,15-Apr-14,-486.00,Revenue,ROSEDENE NURSING HOME,SP0000316
WANDSWORTH COUNCIL,ASC,SOCIAL SERVICES,CUSTOMER & CLIENT RECPTS - EXT,CLIENT CONTS EXTERNAL NURSING,386966,142080820,10-Apr-14,-502.24,Revenue,TRINITY COURT NURSING HOME,SP0001001
WANDSWORTH COUNCIL,ASC,SOCIAL SERVICES,CUSTOMER & CLIENT RECPTS - EXT,RNCC,389493,142084120,15-Apr-14,-439.16,Revenue,ROSEDENE NURSING HOME,SP0000316
WANDSWORTH COUNCIL,ASC,SOCIAL SERVICES,CUSTOMER & CLIENT RECPTS - EXT,RNCC,389498,142084120,15-Apr-14,-439.16,Revenue,ROSEDENE NURSING HOME,SP0000316
WANDSWORTH COUNCIL,ASC,SOCIAL SERVICES,CUSTOMER & CLIENT RECPTS - EXT,RNCC,389499,142084120,15-Apr-14,-439.16,Revenue,ROSEDENE NURSING HOME,SP0000316
WANDSWORTH COUNCIL,ASC,SOCIAL SERVICES,CUSTOMER & CLIENT RECPTS - EXT,RNCC,389502,142084120,15-Apr-14,-439.16,Revenue,ROSEDENE NURSING HOME,SP0000316
WANDSWORTH COUNCIL,ASC,SOCIAL SERVICES,CUSTOMER & CLIENT RECPTS - EXT,RNCC,389503,142084120,15-Apr-14,-604.40,Revenue,ROSEDENE NURSING HOME,SP0000316
WANDSWORTH COUNCIL,ASC,SOCIAL SERVICES,CUSTOMER & CLIENT RECPTS - EXT,RNCC,386966,142084120,10-Apr-14,-439.16,Revenue,TRINITY COURT NURSING HOME,SP0001001
WANDSWORTH COUNCIL,ASC,SOCIAL SERVICES,CUSTOMER & CLIENT RECPTS - EXT,RNCC,386979,142084120,10-Apr-14,-439.16,Revenue,TRINITY COURT NURSING HOME,SP0001001
WANDSWORTH COUNCIL,ASC,SOCIAL SERVICES,CUSTOMER & CLIENT RECPTS - EXT,SECTION 117 CONT,384863,142085630,08-Apr-14,"-1,714.08",Revenue,TOGETHER WORKING FOR WELLBEING,SP0000950
WANDSWORTH COUNCIL,ASC,SOCIAL SERVICES,PRIVATE,EXTERNAL HOMECARE,384199,142145300,07-Apr-14,"3,695.90",Revenue,WESTMINSTER HOMECARE LTD,SP0001548
WANDSWORTH COUNCIL,ASC,SOCIAL SERVICES,PRIVATE,EXTERNAL HOMECARE,384268,142145300,07-Apr-14,873.64,Revenue,WESTMINSTER HOMECARE LTD,SP0001548
WANDSWORTH COUNCIL,ASC,SOCIAL SERVICES,PRIVATE,EXTERNAL HOMECARE,384929,142145300,08-Apr-14,"3,718.72",Revenue,WESTMINSTER HOMECARE LTD,SP0001548
WANDSWORTH COUNCIL,ASC,SOCIAL SERVICES,PRIVATE,EXTERNAL HOMECARE,387170,142145300,11-Apr-14,921.12,Revenue,WESTMINSTER HOMECARE LTD,SP0001548
WANDSWORTH COUNCIL,ASC,SOCIAL SERVICES,PRIVATE,EXTERNAL HOMECARE,387179,142145300,11-Apr-14,"4,121.68",Revenue,WESTMINSTER HOMECARE LTD,SP0001548
WANDSWORTH COUNCIL,ASC,SOCIAL SERVICES,PRIVATE,EXTERNAL HOMECARE,387199,142145300,11-Apr-14,894.68,Revenue,WESTMINSTER HOMECARE LTD,SP0001548
WANDSWORTH COUNCIL,ASC,SOCIAL SERVICES,PRIVATE,EXTERNAL NURSING CARE,386755,142145310,10-Apr-14,"2,991.72",Revenue,SHAW HEALTHCARE(SPECIALIST SERVICES) LIM,SP0001040
WANDSWORTH COUNCIL,ASC,SOCIAL SERVICES,PRIVATE,EXTERNAL RESIDENTIAL CARE,385126,142145330,08-Apr-14,"4,340.00",Revenue,COMMUNITY HOUSING & THERAPY,SP0001366
WANDSWORTH COUNCIL,ASC,SOCIAL SERVICES,PRIVATE,EXTERNAL RESIDENTIAL CARE,389571,142145330,15-Apr-14,"4,343.00",Revenue,COMMUNITY HOUSING & THERAPY,SP0001366
WANDSWORTH COUNCIL,ASC,SOCIAL SERVICES,PRIVATE,EXTERNAL RESIDENTIAL CARE,386900,142145330,10-Apr-14,"2,228.08",Revenue,FOUR SEASONS HEALTH CARE LTD,SP0000422
WANDSWORTH COUNCIL,ASC,SOCIAL SERVICES,PRIVATE,EXTERNAL RESIDENTIAL CARE,386517,142145330,10-Apr-14,"2,625.04",Revenue,REDACTED PERSONAL DATA,SP0001200
WANDSWORTH COUNCIL,ASC,SOCIAL SERVICES,PRIVATE,EXTERNAL RESIDENTIAL CARE,391714,142145330,22-Apr-14,"5,677.89",Revenue,THE REGARD PARTNERSHIP,SP0000588
WANDSWORTH COUNCIL,ASC,SOCIAL SERVICES,VOL ASS,SUPPORTED HOUSING PROGRAMME,390708,142148030,16-Apr-14,"1,896.36",Revenue,C M CARE LTD,SP0000455
WANDSWORTH COUNCIL,ASC,SOCIAL SERVICES,VOL ASS,SUPPORTED HOUSING PROGRAMME,393991,142148030,25-Apr-14,"2,966.70",Revenue,COMFORT CARE SERVICES (UK) LTD,SP0005792
WANDSWORTH COUNCIL,ASC,SOCIAL SERVICES,VOL ASS,SUPPORTED HOUSING PROGRAMME,383407,142148030,07-Apr-14,"1,458.12",Revenue,THE BRANDON TRUST,SP0005337
WANDSWORTH COUNCIL,ASC,SOCIAL SERVICES,CUSTOMER & CLIENT RECPTS - EXT,CL CONT EXTERNAL RESIDENTIAL,386900,142180720,10-Apr-14,-486.00,Revenue,FOUR SEASONS HEALTH CARE LTD,SP0000422
WANDSWORTH COUNCIL,ASC,SOCIAL SERVICES,CUSTOMER & CLIENT RECPTS - EXT,CL CONT EXTERNAL RESIDENTIAL,386517,142180720,10-Apr-14,-532.68,Revenue,REDACTED PERSONAL DATA,SP0001200
WANDSWORTH COUNCIL,ASC,SOCIAL SERVICES,CUSTOMER & CLIENT RECPTS - EXT,RNCC,386755,142184120,10-Apr-14,-439.16,Revenue,SHAW HEALTHCARE(SPECIALIST SERVICES) LIM,SP0001040
WANDSWORTH COUNCIL,ASC,SOCIAL SERVICES,CUSTOMER & CLIENT RECPTS - EXT,SECTION 117 CONT,391714,142185630,22-Apr-14,"-2,827.63",Revenue,THE REGARD PARTNERSHIP,SP0000588
WANDSWORTH COUNCIL,ASC,SOCIAL SERVICES,PRIVATE,EXTERNAL DAYCARE,384308,142245290,07-Apr-14,677.84,Revenue,SHARE COMMUNITY,SP0000329
WANDSWORTH COUNCIL,ASC,SOCIAL SERVICES,PRIVATE,EXTERNAL DAYCARE,383591,142245290,07-Apr-14,760.00,Revenue,WANDSWORTH BENGALI WELFARE ASSOCIATION,SP0000479
WANDSWORTH COUNCIL,ASC,SOCIAL SERVICES,PRIVATE,EXTERNAL DAYCARE,384348,142245290,07-Apr-14,944.23,Revenue,WANDSWORTH MIND,SP0000837
WANDSWORTH COUNCIL,ASC,SOCIAL SERVICES,PRIVATE,EXTERNAL DAYCARE,395934,142245290,30-Apr-14,944.23,Revenue,WANDSWORTH MIND,SP0000837
WANDSWORTH COUNCIL,ASC,SOCIAL SERVICES,PRIVATE,EXTERNAL HOMECARE,384214,142245300,07-Apr-14,"1,388.24",Revenue,MUSHKIL AASAAN LTD,SP0000978
WANDSWORTH COUNCIL,ASC,SOCIAL SERVICES,PRIVATE,EXTERNAL HOMECARE,389596,142245300,15-Apr-14,954.72,Revenue,SOMA HEALTHCARE LTD,SP0001116
WANDSWORTH COUNCIL,ASC,SOCIAL SERVICES,PRIVATE,EXTERNAL HOMECARE,389607,142245300,15-Apr-14,916.84,Revenue,SOMA HEALTHCARE LTD,SP0001116
WANDSWORTH COUNCIL,ASC,SOCIAL SERVICES,PRIVATE,EXTERNAL HOMECARE,392552,142245300,24-Apr-14,604.32,Revenue,SOMA HEALTHCARE LTD,SP0001116
WANDSWORTH COUNCIL,ASC,SOCIAL SERVICES,PRIVATE,EXTERNAL HOMECARE,393917,142245300,25-Apr-14,954.72,Revenue,SOMA HEALTHCARE LTD,SP0001116
WANDSWORTH COUNCIL,ASC,SOCIAL SERVICES,PRIVATE,EXTERNAL HOMECARE,393943,142245300,25-Apr-14,916.84,Revenue,SOMA HEALTHCARE LTD,SP0001116
WANDSWORTH COUNCIL,ASC,SOCIAL SERVICES,PRIVATE,EXTERNAL HOMECARE,386560,142245300,10-Apr-14,805.80,Revenue,SUPREME CARE SERVICE LTD,SP0001600
WANDSWORTH COUNCIL,ASC,SOCIAL SERVICES,PRIVATE,EXTERNAL NURSING CARE,386742,142245310,10-Apr-14,"2,716.60",Revenue,GEORGE POTTER CARE HOME LTD,SP0000276
WANDSWORTH COUNCIL,ASC,SOCIAL SERVICES,PRIVATE,EXTERNAL NURSING CARE,384861,142245310,08-Apr-14,"1,393.80",Revenue,HYDEFALL LTD,SP0001248
WANDSWORTH COUNCIL,ASC,SOCIAL SERVICES,PRIVATE,EXTERNAL NURSING CARE,386711,142245310,10-Apr-14,"2,689.76",Revenue,LIFE STYLE CARE (2011) PLC,SP0001580
WANDSWORTH COUNCIL,ASC,SOCIAL SERVICES,PRIVATE,EXTERNAL NURSING CARE,383386,142245310,07-Apr-14,"4,022.02",Revenue,ROSEDENE NURSING HOME,SP0000316
WANDSWORTH COUNCIL,ASC,SOCIAL SERVICES,PRIVATE,EXTERNAL NURSING CARE,383387,142245310,07-Apr-14,"3,892.28",Revenue,ROSEDENE NURSING HOME,SP0000316
WANDSWORTH COUNCIL,ASC,SOCIAL SERVICES,PRIVATE,EXTERNAL NURSING CARE,383388,142245310,07-Apr-14,"4,022.02",Revenue,ROSEDENE NURSING HOME,SP0000316
WANDSWORTH COUNCIL,ASC,SOCIAL SERVICES,PRIVATE,EXTERNAL NURSING CARE,383389,142245310,07-Apr-14,"4,022.02",Revenue,ROSEDENE NURSING HOME,SP0000316
WANDSWORTH COUNCIL,ASC,SOCIAL SERVICES,PRIVATE,EXTERNAL NURSING CARE,389495,142245310,15-Apr-14,"2,815.88",Revenue,ROSEDENE NURSING HOME,SP0000316
WANDSWORTH COUNCIL,ASC,SOCIAL SERVICES,PRIVATE,EXTERNAL NURSING CARE,389500,142245310,15-Apr-14,"2,815.88",Revenue,ROSEDENE NURSING HOME,SP0000316
WANDSWORTH COUNCIL,ASC,SOCIAL SERVICES,PRIVATE,EXTERNAL NURSING CARE,391723,142245310,22-Apr-14,"3,434.00",Revenue,ROSEDENE NURSING HOME,SP0000316
WANDSWORTH COUNCIL,ASC,SOCIAL SERVICES,PRIVATE,EXTERNAL NURSING CARE,386963,142245310,10-Apr-14,"2,918.36",Revenue,TRINITY COURT NURSING HOME,SP0001001
WANDSWORTH COUNCIL,ASC,SOCIAL SERVICES,PRIVATE,EXTERNAL NURSING CARE,386982,142245310,10-Apr-14,"2,876.48",Revenue,TRINITY COURT NURSING HOME,SP0001001
WANDSWORTH COUNCIL,ASC,SOCIAL SERVICES,PRIVATE,EXTERNAL NURSING CARE,386984,142245310,10-Apr-14,"2,848.00",Revenue,TRINITY COURT NURSING HOME,SP0001001
WANDSWORTH COUNCIL,ASC,SOCIAL SERVICES,PRIVATE,EXTERNAL NURSING CARE,386985,142245310,10-Apr-14,"2,880.00",Revenue,TRINITY COURT NURSING HOME,SP0001001
WANDSWORTH COUNCIL,ASC,SOCIAL SERVICES,PRIVATE,EXTERNAL RESIDENTIAL CARE,384846,142245330,08-Apr-14,"3,880.00",Revenue,ADMIRAL HEALTHCARE LTD,SP0001227
WANDSWORTH COUNCIL,ASC,SOCIAL SERVICES,PRIVATE,EXTERNAL RESIDENTIAL CARE,384847,142245330,08-Apr-14,"5,542.86",Revenue,ADMIRAL HEALTHCARE LTD,SP0001227
WANDSWORTH COUNCIL,ASC,SOCIAL SERVICES,PRIVATE,EXTERNAL RESIDENTIAL CARE,387169,142245330,11-Apr-14,"3,214.20",Revenue,CHRIST THE KING RESIDENTIAL CARE,SP0001203
WANDSWORTH COUNCIL,ASC,SOCIAL SERVICES,PRIVATE,EXTERNAL RESIDENTIAL CARE,387000,142245330,10-Apr-14,"3,052.00",Revenue,GOLD CARE HOMES,SP0001823
WANDSWORTH COUNCIL,ASC,SOCIAL SERVICES,PRIVATE,EXTERNAL RESIDENTIAL CARE,395819,142245330,30-Apr-14,"8,571.03",Revenue,GRACE & FAVOUR RESIDENTIAL HOME LTD,SP0006358
WANDSWORTH COUNCIL,ASC,SOCIAL SERVICES,PRIVATE,EXTERNAL RESIDENTIAL CARE,383416,142245330,07-Apr-14,"7,650.00",Revenue,KIMBERLEY RD,SP0005694
WANDSWORTH COUNCIL,ASC,SOCIAL SERVICES,PRIVATE,EXTERNAL RESIDENTIAL CARE,384858,142245330,08-Apr-14,"3,626.00",Revenue,ROSENMANOR LTD,SP0001457
WANDSWORTH COUNCIL,ASC,SOCIAL SERVICES,PRIVATE,EXTERNAL RESIDENTIAL CARE,384859,142245330,08-Apr-14,"3,038.00",Revenue,ROSENMANOR LTD,SP0001457
WANDSWORTH COUNCIL,ASC,SOCIAL SERVICES,PRIVATE,EXTERNAL RESIDENTIAL CARE,386961,142245330,10-Apr-14,"2,132.48",Revenue,SANCTUARY CARE LTD,SP0000121
WANDSWORTH COUNCIL,ASC,SOCIAL SERVICES,VOL ASS,SUPPORTED HOUSING PROGRAMME,390701,142248030,16-Apr-14,"1,516.56",Revenue,C M CARE LTD,SP0000455
WANDSWORTH COUNCIL,ASC,SOCIAL SERVICES,VOL ASS,SUPPORTED HOUSING PROGRAMME,390703,142248030,16-Apr-14,"1,516.56",Revenue,C M CARE LTD,SP0000455
WANDSWORTH COUNCIL,ASC,SOCIAL SERVICES,VOL ASS,SUPPORTED HOUSING PROGRAMME,390709,142248030,16-Apr-14,"1,516.56",Revenue,C M CARE LTD,SP0000455
WANDSWORTH COUNCIL,ASC,SOCIAL SERVICES,VOL ASS,SUPPORTED HOUSING PROGRAMME,393872,142248030,25-Apr-14,"8,990.00",Revenue,CROWNWISE LTD,SP0001202
WANDSWORTH COUNCIL,ASC,SOCIAL SERVICES,VOL ASS,SUPPORTED HOUSING PROGRAMME,393873,142248030,25-Apr-14,"1,160.00",Revenue,CROWNWISE LTD,SP0001202
WANDSWORTH COUNCIL,ASC,SOCIAL SERVICES,VOL ASS,SUPPORTED HOUSING PROGRAMME,393874,142248030,25-Apr-14,"1,160.00",Revenue,CROWNWISE LTD,SP0001202
WANDSWORTH COUNCIL,ASC,SOCIAL SERVICES,VOL ASS,SUPPORTED HOUSING PROGRAMME,393875,142248030,25-Apr-14,"1,160.00",Revenue,CROWNWISE LTD,SP0001202
WANDSWORTH COUNCIL,ASC,SOCIAL SERVICES,VOL ASS,SUPPORTED HOUSING PROGRAMME,393879,142248030,25-Apr-14,"1,160.00",Revenue,CROWNWISE LTD,SP0001202
WANDSWORTH COUNCIL,ASC,SOCIAL SERVICES,VOL ASS,SUPPORTED HOUSING PROGRAMME,393880,142248030,25-Apr-14,"1,160.00",Revenue,CROWNWISE LTD,SP0001202
WANDSWORTH COUNCIL,ASC,SOCIAL SERVICES,VOL ASS,SUPPORTED HOUSING PROGRAMME,393881,142248030,25-Apr-14,"1,160.00",Revenue,CROWNWISE LTD,SP0001202
WANDSWORTH COUNCIL,ASC,SOCIAL SERVICES,VOL ASS,SUPPORTED HOUSING PROGRAMME,393886,142248030,25-Apr-14,"3,500.00",Revenue,CROWNWISE LTD,SP0001202
WANDSWORTH COUNCIL,ASC,SOCIAL SERVICES,VOL ASS,SUPPORTED HOUSING PROGRAMME,393887,142248030,25-Apr-14,"1,400.00",Revenue,CROWNWISE LTD,SP0001202
WANDSWORTH COUNCIL,ASC,SOCIAL SERVICES,VOL ASS,SUPPORTED HOUSING PROGRAMME,393888,142248030,25-Apr-14,"1,400.00",Revenue,CROWNWISE LTD,SP0001202
WANDSWORTH COUNCIL,ASC,SOCIAL SERVICES,VOL ASS,SUPPORTED HOUSING PROGRAMME,393889,142248030,25-Apr-14,"1,400.00",Revenue,CROWNWISE LTD,SP0001202
WANDSWORTH COUNCIL,ASC,SOCIAL SERVICES,VOL ASS,SUPPORTED HOUSING PROGRAMME,393890,142248030,25-Apr-14,"3,900.00",Revenue,CROWNWISE LTD,SP0001202
WANDSWORTH COUNCIL,ASC,SOCIAL SERVICES,VOL ASS,SUPPORTED HOUSING PROGRAMME,393891,142248030,25-Apr-14,"2,600.00",Revenue,CROWNWISE LTD,SP0001202
WANDSWORTH COUNCIL,ASC,SOCIAL SERVICES,VOL ASS,SUPPORTED HOUSING PROGRAMME,393892,142248030,25-Apr-14,"2,600.00",Revenue,CROWNWISE LTD,SP0001202
WANDSWORTH COUNCIL,ASC,SOCIAL SERVICES,VOL ASS,SUPPORTED HOUSING PROGRAMME,393893,142248030,25-Apr-14,"2,600.00",Revenue,CROWNWISE LTD,SP0001202
WANDSWORTH COUNCIL,ASC,SOCIAL SERVICES,CUSTOMER & CLIENT RECPTS - EXT,CLIENT CONTS EXTERNAL NURSING,384861,142280820,08-Apr-14,-243.00,Revenue,HYDEFALL LTD,SP0001248
WANDSWORTH COUNCIL,ASC,SOCIAL SERVICES,CUSTOMER & CLIENT RECPTS - EXT,RNCC,386742,142284120,10-Apr-14,-439.16,Revenue,GEORGE POTTER CARE HOME LTD,SP0000276
WANDSWORTH COUNCIL,ASC,SOCIAL SERVICES,CUSTOMER & CLIENT RECPTS - EXT,RNCC,384861,142284120,08-Apr-14,-219.58,Revenue,HYDEFALL LTD,SP0001248
WANDSWORTH COUNCIL,ASC,SOCIAL SERVICES,CUSTOMER & CLIENT RECPTS - EXT,RNCC,386711,142284120,10-Apr-14,-439.16,Revenue,LIFE STYLE CARE (2011) PLC,SP0001580
WANDSWORTH COUNCIL,ASC,SOCIAL SERVICES,CUSTOMER & CLIENT RECPTS - EXT,RNCC,389500,142284120,15-Apr-14,-439.16,Revenue,ROSEDENE NURSING HOME,SP0000316
WANDSWORTH COUNCIL,ASC,SOCIAL SERVICES,CUSTOMER & CLIENT RECPTS - EXT,RNCC,386963,142284120,10-Apr-14,-439.16,Revenue,TRINITY COURT NURSING HOME,SP0001001
WANDSWORTH COUNCIL,ASC,SOCIAL SERVICES,CUSTOMER & CLIENT RECPTS - EXT,RNCC,386982,142284120,10-Apr-14,-439.16,Revenue,TRINITY COURT NURSING HOME,SP0001001
WANDSWORTH COUNCIL,ASC,SOCIAL SERVICES,CUSTOMER & CLIENT RECPTS - EXT,RNCC,386984,142284120,10-Apr-14,-439.16,Revenue,TRINITY COURT NURSING HOME,SP0001001
WANDSWORTH COUNCIL,ASC,SOCIAL SERVICES,CUSTOMER & CLIENT RECPTS - EXT,RNCC,386985,142284120,10-Apr-14,-439.16,Revenue,TRINITY COURT NURSING HOME,SP0001001
WANDSWORTH COUNCIL,ASC,SOCIAL SERVICES,CUSTOMER & CLIENT RECPTS - EXT,SECTION 117 CONT,391723,142285630,22-Apr-14,"-2,747.20",Revenue,ROSEDENE NURSING HOME,SP0000316
WANDSWORTH COUNCIL,ASC,SOCIAL SERVICES,PRIVATE,EXTERNAL NURSING CARE,383422,142545310,07-Apr-14,"5,034.47",Revenue,JESMUND CARE HOMES LIMITED,SP0000573
WANDSWORTH COUNCIL,ASC,SOCIAL SERVICES,PRIVATE,EXTERNAL NURSING CARE,389492,142545310,15-Apr-14,"2,815.88",Revenue,ROSEDENE NURSING HOME,SP0000316
WANDSWORTH COUNCIL,ASC,SOCIAL SERVICES,PRIVATE,EXTERNAL NURSING CARE,389496,142545310,15-Apr-14,"2,815.88",Revenue,ROSEDENE NURSING HOME,SP0000316
WANDSWORTH COUNCIL,ASC,SOCIAL SERVICES,PRIVATE,EXTERNAL NURSING CARE,389497,142545310,15-Apr-14,"2,815.88",Revenue,ROSEDENE NURSING HOME,SP0000316
WANDSWORTH COUNCIL,ASC,SOCIAL SERVICES,PRIVATE,EXTERNAL NURSING CARE,389501,142545310,15-Apr-14,"2,815.88",Revenue,ROSEDENE NURSING HOME,SP0000316
WANDSWORTH COUNCIL,ASC,SOCIAL SERVICES,PRIVATE,EXTERNAL NURSING CARE,386964,142545310,10-Apr-14,"2,876.48",Revenue,TRINITY COURT NURSING HOME,SP0001001
WANDSWORTH COUNCIL,ASC,SOCIAL SERVICES,PRIVATE,EXTERNAL NURSING CARE,386965,142545310,10-Apr-14,"2,787.60",Revenue,TRINITY COURT NURSING HOME,SP0001001
WANDSWORTH COUNCIL,ASC,SOCIAL SERVICES,PRIVATE,EXTERNAL NURSING CARE,386983,142545310,10-Apr-14,"2,828.00",Revenue,TRINITY COURT NURSING HOME,SP0001001
WANDSWORTH COUNCIL,ASC,SOCIAL SERVICES,PRIVATE,EXTERNAL RESIDENTIAL CARE,387168,142545330,11-Apr-14,"3,571.20",Revenue,CHRIST THE KING RESIDENTIAL CARE,SP0001203
WANDSWORTH COUNCIL,ASC,SOCIAL SERVICES,PRIVATE,EXTERNAL RESIDENTIAL CARE,395841,142545330,30-Apr-14,"2,177.96",Revenue,THORNTON LODGE,SP0001197
WANDSWORTH COUNCIL,ASC,SOCIAL SERVICES,PRIVATE,EXTERNAL RESIDENTIAL CARE,395842,142545330,30-Apr-14,"1,967.61",Revenue,THORNTON LODGE,SP0001197
WANDSWORTH COUNCIL,ASC,SOCIAL SERVICES,PRIVATE,EXTERNAL RESIDENTIAL CARE,395844,142545330,30-Apr-14,"2,177.96",Revenue,THORNTON LODGE,SP0001197
WANDSWORTH COUNCIL,ASC,SOCIAL SERVICES,VOL ASS,SUPPORTED HOUSING PROGRAMME,390702,142548030,16-Apr-14,"1,583.16",Revenue,C M CARE LTD,SP0000455
WANDSWORTH COUNCIL,ASC,SOCIAL SERVICES,VOL ASS,SUPPORTED HOUSING PROGRAMME,390710,142548030,16-Apr-14,"2,281.64",Revenue,C M CARE LTD,SP0000455
WANDSWORTH COUNCIL,ASC,SOCIAL SERVICES,VOL ASS,SUPPORTED HOUSING PROGRAMME,390711,142548030,16-Apr-14,"1,692.00",Revenue,C M CARE LTD,SP0000455
WANDSWORTH COUNCIL,ASC,SOCIAL SERVICES,VOL ASS,SUPPORTED HOUSING PROGRAMME,390712,142548030,16-Apr-14,"1,692.00",Revenue,C M CARE LTD,SP0000455
WANDSWORTH COUNCIL,ASC,SOCIAL SERVICES,CUSTOMER & CLIENT RECPTS - EXT,CL CONT EXTERNAL RESIDENTIAL,395842,142580720,30-Apr-14,-529.11,Revenue,THORNTON LODGE,SP0001197
WANDSWORTH COUNCIL,ASC,SOCIAL SERVICES,CUSTOMER & CLIENT RECPTS - EXT,CLIENT CONTS EXTERNAL NURSING,389492,142580820,15-Apr-14,-486.00,Revenue,ROSEDENE NURSING HOME,SP0000316
WANDSWORTH COUNCIL,ASC,SOCIAL SERVICES,CUSTOMER & CLIENT RECPTS - EXT,CLIENT CONTS EXTERNAL NURSING,386965,142580820,10-Apr-14,-486.00,Revenue,TRINITY COURT NURSING HOME,SP0001001
WANDSWORTH COUNCIL,ASC,SOCIAL SERVICES,CUSTOMER & CLIENT RECPTS - EXT,CLIENT CONTS EXTERNAL NURSING,386983,142580820,10-Apr-14,-511.16,Revenue,TRINITY COURT NURSING HOME,SP0001001
WANDSWORTH COUNCIL,ASC,SOCIAL SERVICES,CUSTOMER & CLIENT RECPTS - EXT,RNCC,389492,142584120,15-Apr-14,-604.40,Revenue,ROSEDENE NURSING HOME,SP0000316
WANDSWORTH COUNCIL,ASC,SOCIAL SERVICES,CUSTOMER & CLIENT RECPTS - EXT,RNCC,389496,142584120,15-Apr-14,-439.16,Revenue,ROSEDENE NURSING HOME,SP0000316
WANDSWORTH COUNCIL,ASC,SOCIAL SERVICES,CUSTOMER & CLIENT RECPTS - EXT,RNCC,389497,142584120,15-Apr-14,-439.16,Revenue,ROSEDENE NURSING HOME,SP0000316
WANDSWORTH COUNCIL,ASC,SOCIAL SERVICES,CUSTOMER & CLIENT RECPTS - EXT,RNCC,389501,142584120,15-Apr-14,-439.16,Revenue,ROSEDENE NURSING HOME,SP0000316
WANDSWORTH COUNCIL,ASC,SOCIAL SERVICES,CUSTOMER & CLIENT RECPTS - EXT,RNCC,386964,142584120,10-Apr-14,-439.16,Revenue,TRINITY COURT NURSING HOME,SP0001001
WANDSWORTH COUNCIL,ASC,SOCIAL SERVICES,CUSTOMER & CLIENT RECPTS - EXT,RNCC,386965,142584120,10-Apr-14,-439.16,Revenue,TRINITY COURT NURSING HOME,SP0001001
WANDSWORTH COUNCIL,ASC,SOCIAL SERVICES,CUSTOMER & CLIENT RECPTS - EXT,RNCC,386983,142584120,10-Apr-14,-439.16,Revenue,TRINITY COURT NURSING HOME,SP0001001
WANDSWORTH COUNCIL,ASC,SOCIAL SERVICES,PRIVATE,EXTERNAL HOMECARE,392606,142645300,24-Apr-14,890.12,Revenue,MUSHKIL AASAAN LTD,SP0000978
WANDSWORTH COUNCIL,ASC,SOCIAL SERVICES,PRIVATE,EXTERNAL NURSING CARE,386926,142645310,10-Apr-14,"2,675.12",Revenue,FOUR SEASONS HEALTH CARE LTD,SP0000422
WANDSWORTH COUNCIL,ASC,SOCIAL SERVICES,PRIVATE,EXTERNAL NURSING CARE,386692,142645310,10-Apr-14,"2,615.52",Revenue,LIFE STYLE CARE (2011) PLC,SP0001580
WANDSWORTH COUNCIL,ASC,SOCIAL SERVICES,PRIVATE,EXTERNAL RESIDENTIAL CARE,389572,142645330,15-Apr-14,"2,838.00",Revenue,COMMUNITY HOUSING & THERAPY,SP0001366
WANDSWORTH COUNCIL,ASC,SOCIAL SERVICES,PRIVATE,EXTERNAL RESIDENTIAL CARE,389573,142645330,15-Apr-14,"1,599.60",Revenue,COMMUNITY HOUSING & THERAPY,SP0001366
WANDSWORTH COUNCIL,ASC,SOCIAL SERVICES,PRIVATE,EXTERNAL RESIDENTIAL CARE,386801,142645330,10-Apr-14,"2,807.80",Revenue,JOYCARE HOME SERVICES LTD,SP0000339
WANDSWORTH COUNCIL,ASC,SOCIAL SERVICES,PRIVATE,EXTERNAL RESIDENTIAL CARE,386807,142645330,10-Apr-14,"2,512.84",Revenue,THE LYLE PARK TRUST,SP0000070
WANDSWORTH COUNCIL,ASC,SOCIAL SERVICES,VOL ASS,SUPPORTED HOUSING PROGRAMME,390700,142648030,16-Apr-14,"1,516.56",Revenue,C M CARE LTD,SP0000455
WANDSWORTH COUNCIL,ASC,SOCIAL SERVICES,VOL ASS,SUPPORTED HOUSING PROGRAMME,385340,142648030,08-Apr-14,"3,750.00",Revenue,COMMUNITY HOUSING & THERAPY,SP0001366
WANDSWORTH COUNCIL,ASC,SOCIAL SERVICES,VOL ASS,SUPPORTED HOUSING PROGRAMME,389574,142648030,15-Apr-14,"2,425.00",Revenue,COMMUNITY HOUSING & THERAPY,SP0001366
WANDSWORTH COUNCIL,ASC,SOCIAL SERVICES,CUSTOMER & CLIENT RECPTS - EXT,CL CONT EXTERNAL RESIDENTIAL,389572,142680720,15-Apr-14,-262.75,Revenue,COMMUNITY HOUSING & THERAPY,SP0001366
WANDSWORTH COUNCIL,ASC,SOCIAL SERVICES,CUSTOMER & CLIENT RECPTS - EXT,CL CONT EXTERNAL RESIDENTIAL,386807,142680720,10-Apr-14,-522.76,Revenue,THE LYLE PARK TRUST,SP0000070
WANDSWORTH COUNCIL,ASC,SOCIAL SERVICES,CUSTOMER & CLIENT RECPTS - EXT,CLIENT CONTS EXTERNAL NURSING,386692,142680820,10-Apr-14,-486.00,Revenue,LIFE STYLE CARE (2011) PLC,SP0001580
WANDSWORTH COUNCIL,ASC,SOCIAL SERVICES,CUSTOMER & CLIENT RECPTS - EXT,RNCC,386926,142684120,10-Apr-14,-439.16,Revenue,FOUR SEASONS HEALTH CARE LTD,SP0000422
WANDSWORTH COUNCIL,ASC,SOCIAL SERVICES,CUSTOMER & CLIENT RECPTS - EXT,RNCC,386692,142684120,10-Apr-14,-439.16,Revenue,LIFE STYLE CARE (2011) PLC,SP0001580
WANDSWORTH COUNCIL,ASC,SOCIAL SERVICES,DIRECT2,AGENCY STAFF,20278843,142700510,23-Apr-14,"1,864.74",Revenue,MATRIX SCM LIMITED,2014926
WANDSWORTH COUNCIL,ASC,SOCIAL SERVICES,DIRECT2,AGENCY STAFF,20278844,142700510,15-Apr-14,"1,174.10",Revenue,MATRIX SCM LIMITED,2014926
WANDSWORTH COUNCIL,ASC,SOCIAL SERVICES,DIRECT2,AGENCY STAFF,20278845,142700510,15-Apr-14,"2,812.46",Revenue,MATRIX SCM LIMITED,2014926
WANDSWORTH COUNCIL,ASC,SOCIAL SERVICES,DIRECT2,AGENCY STAFF,20279371,142700510,22-Apr-14,"1,862.04",Revenue,MATRIX SCM LIMITED,2014926
WANDSWORTH COUNCIL,ASC,SOCIAL SERVICES,DIRECT2,AGENCY STAFF,20279908,142700510,29-Apr-14,690.97,Revenue,MATRIX SCM LIMITED,2014926
WANDSWORTH COUNCIL,ASC,SOCIAL SERVICES,PRIVATE,EXTERNAL HOMECARE,383450,142745300,07-Apr-14,297.12,Revenue,HFH HOMECARE,SP0001058
